{"text_format":"1","workbook":"xlsx","n_sheets":8,"sheets":["Assistente","Calcular","Informações","BaseFuncionarios","GerarManualColorido","GerarManualPB","Modelo","CBO"],"not_rendered":{"charts":0,"images":12,"macros":1,"external_links":0,"defined_names":21,"comments":0,"pivot_tables":0},"unopened":[],"bounds":{"document_bytes":16777216,"sheet_cells":100000,"rows_first":2000,"rows_last":500,"rows_between":2000,"halvings":0,"cell_chars":16384,"cell_head_chars":4096},"cells_cut":0,"cells_raw":0,"read":"whole","date_system":"1900"}

{"sheet":"Assistente","index":0,"n_rows":79,"n_cols":19,"rows_kept":79,"cut":false,"hidden":false,"merged":[[0,3,0,16],[36,2,36,3],[36,6,36,7],[36,8,36,10],[36,11,36,12],[37,2,37,3],[37,6,37,7],[37,8,37,10],[37,11,37,12],[29,10,29,12],[30,2,34,6],[30,7,30,9],[30,10,30,12],[31,7,31,9],[31,10,31,12],[32,7,32,12],[33,7,34,9],[33,10,34,12],[24,15,36,15],[24,16,36,16],[25,3,25,5],[25,7,25,9],[25,10,25,12],[26,3,26,5],[26,7,26,9],[26,10,26,12],[27,3,27,5],[27,7,27,9],[27,10,27,12],[28,3,28,5],[28,7,28,9],[28,10,28,12],[29,3,29,5],[29,7,29,9],[24,3,24,5],[24,7,24,9],[24,10,24,12],[21,3,21,5],[21,7,21,9],[21,10,21,12],[22,3,22,5],[22,7,22,9],[22,10,22,12],[15,7,15,9],[15,10,15,12],[16,3,16,5],[16,7,16,9],[16,10,16,12],[2,14,37,14],[3,15,21,15],[4,3,4,5],[4,6,4,12],[19,3,19,5],[19,7,19,9],[19,10,19,12],[20,3,20,5],[20,7,20,9],[20,10,20,12],[17,3,17,5],[17,7,17,9],[17,10,17,12],[18,3,18,5],[18,7,18,9],[18,10,18,12],[23,3,23,5],[23,7,23,9],[23,10,23,12],[14,3,14,5],[14,7,14,9],[66,7,66,9],[66,10,66,12],[67,3,67,5],[67,7,67,9],[67,10,67,12],[40,1,40,17],[65,3,65,5],[65,7,65,9],[4,16,21,16],[5,2,5,12],[6,3,6,5],[7,3,7,5],[7,6,7,12],[8,2,8,12],[9,3,9,5],[9,7,9,9],[9,10,9,12],[10,3,10,5],[10,7,10,9],[10,10,10,12],[14,10,14,12],[15,3,15,5],[2,2,3,5],[2,6,3,12],[11,3,11,5],[11,7,11,9],[11,10,11,12],[12,3,12,5],[12,7,12,9],[12,10,12,12],[13,3,13,5],[13,7,13,9],[13,10,13,12],[65,15,77,15],[65,16,77,16],[66,3,66,5],[78,2,78,3],[78,6,78,7],[78,8,78,10],[78,11,78,12],[70,3,70,5],[70,7,70,9],[70,10,70,12],[71,2,75,6],[71,7,71,9],[71,10,71,12],[74,10,75,12],[77,2,77,3],[77,6,77,7],[77,8,77,10],[77,11,77,12],[72,7,72,9],[72,10,72,12],[73,7,73,12],[74,7,75,9],[68,3,68,5],[68,7,68,9],[69,3,69,5],[69,7,69,9],[69,10,69,12],[62,3,62,5],[62,7,62,9],[62,10,62,12],[63,3,63,5],[63,7,63,9],[63,10,63,12],[64,3,64,5],[64,7,64,9],[64,10,64,12],[65,10,65,12],[68,10,68,12],[45,16,62,16],[46,2,46,12],[47,3,47,5],[48,3,48,5],[48,6,48,12],[49,2,49,12],[50,3,50,5],[50,7,50,9],[50,10,50,12],[51,3,51,5],[52,10,52,12],[53,3,53,5],[53,7,53,9],[59,7,59,9],[59,10,59,12],[60,3,60,5],[60,7,60,9],[60,10,60,12],[45,3,45,5],[53,10,53,12],[54,3,54,5],[54,7,54,9],[54,10,54,12],[55,3,55,5],[43,2,44,5],[43,6,44,12],[43,14,78,14],[44,15,62,15],[45,6,45,12],[51,7,51,9],[51,10,51,12],[52,3,52,5],[52,7,52,9],[57,7,57,9],[57,10,57,12],[58,3,58,5],[58,7,58,9],[58,10,58,12],[59,3,59,5],[55,7,55,9],[55,10,55,12],[61,3,61,5],[61,7,61,9],[61,10,61,12],[56,3,56,5],[56,7,56,9],[56,10,56,12],[57,3,57,5]]}
["Desenvolvido por www.evandrogf.com.br",null,null,"Holerite Fácil. Versão 1.7"]
[]
[null,null,{"$f":"NomeEmpresa","v":"Empresa Fictícia LTDA"},null,null,null,"Recibo de Pagamento de Salário",null,null,null,null,null,null,null,"DECLARO TER RECEBIDO  A I MPOTÂNCIA LÍQUIDA DISCRIMINADA NESTE RECIBO\n"]
[null,null,null,null,null,null,null,null,null,null,null,null,null,null,null,"________________________________"]
[null,null,"CNPJ:",{"$f":"CnpjFormatado","v":"12.345.675/3342-11"},null,null,{"$f":"MesRef&\"/\"&AnoRef","v":"Março/2018"},null,null,null,null,null,null,null,null,null,"ASSINATURA DO FUNCIONÁRIO"]
[]
[null,null,"Código","Nome do Funcionário",null,null,"CBO","Emp.","Local","Depto.","Setor","Seção","Fl."]
[null,null,{"$f":"CodFuncionario","v":1},{"$f":"IF(MAX(BaseFuncionarios!A:A)=0,\"Nenhum funcionário cadastrado\",IFERROR(VLOOKUP(C8,BaseFuncionarios!A:C,2,0),\"Não encontrado\"))","v":"João"},null,null,{"$f":"IFERROR(VLOOKUP(C8,BaseFuncionarios!A:F,3,0)&\" - \"&VLOOKUP(C8,BaseFuncionarios!A:F,4,0),\"\")","v":"3331-05 - Instrutor de cursos livres"}]
[]
[null,null,"Cód.","Descrição",null,null,"Referência","Vencimentos",null,null,"Descontos"]
[null,null,null,null,null,null,null,null,null,null,null,null,null,null,null,null,null,null,1]
[null,null,{"$f":"IFERROR(VLOOKUP(D12,Opcoes,2,0),\"\")","v":1},"SALÁRIO",null,null,null,1837,null,null,""]
[null,null,90,"INSS",null,null,null,"",null,null,146.96]
[null,null,200,"IRRF",null,null,null,"",null,null,""]
[null,null,6,"SERV. EXTRAORDINARIO 50%",null,null,"12",150.29999999999998,null,null,""]
[null,null,47,"ADIANTAMENTO DE SALÁRIO",null,null,null,"",null,null,670]
[null,null,96,"VALE TRANSPORTE",null,null,null,"",null,null,110]
[null,null,"",null,null,null,null,"",null,null,""]
[null,null,"",null,null,null,null,"",null,null,""]
[null,null,"",null,null,null,null,"",null,null,""]
[null,null,"",null,null,null,null,"",null,null,""]
[null,null,"",null,null,null,null,"",null,null,""]
[null,null,"",null,null,null,null,"",null,null,""]
[null,null,"",null,null,null,null,"",null,null,""]
[null,null,"",null,null,null,null,"",null,null,"",null,null,null,null,"_____/_____/_____","DATA"]
[null,null,"",null,null,null,null,"",null,null,""]
[null,null,"",null,null,null,null,"",null,null,""]
[null,null,"",null,null,null,null,"",null,null,""]
[null,null,"",null,null,null,null,"",null,null,""]
[]
[null,null,null,null,null,null,null,"Total de Vencimentos",null,null,"Total de Descontos"]
[null,null,null,null,null,null,null,{"$f":"SUM(H12:J29)","v":1987.3},null,null,{"$f":"SUM(K12:M29)","v":926.96}]
[]
[null,null,null,null,null,null,null,"Valor Líquido",null,null,{"$f":"H32-K32","v":1060.3399999999999}]
[]
[]
[null,null,"Salário Base",null,"Sal. Contr. INSS","Base Cálc. FGTS","FGTS do Mês",null,"Base Cálc. IRRF",null,null,"Faixa IRRF"]
[null,null,{"$f":"IFERROR(VLOOKUP(C8,BaseFuncionarios!A:E,5,0),\"\")","v":1837},null,{"$f":"C38","v":1837},{"$f":"E38","v":1837},{"$f":"IFERROR(C38*8%,\"\")","v":146.96},null,{"$f":"C38","v":1837},null,null,{"$f":"IFERROR(VLOOKUP(I38,tabIRRF,4),\"\")","v":1}]
[]
[]
[null,"- - - - - - - - - - - - - - - - - - - - - - - - - - - - - - - - - - - - - - - - - - - - - - - - - - - - - - - - - - - - Cortar aqui - - - - - - - - - - - - - - - - - - - - - - - - - - - - - - - - - - - - - - - - - - - - - - - - - - - - - - - - - - - -"]
[]
[]
[null,null,{"$f":"IF(C3=\"\",\"\",C3)","v":"Empresa Fictícia LTDA"},null,null,null,"Recibo de Pagamento de Salário",null,null,null,null,null,null,null,"DECLARO TER RECEBIDO  A I MPOTÂNCIA LÍQUIDA DISCRIMINADA NESTE RECIBO\n"]
[null,null,null,null,null,null,null,null,null,null,null,null,null,null,null,"________________________________"]
[null,null,{"$f":"IF(C5=\"\",\"\",C5)","v":"CNPJ:"},null,null,null,{"$f":"IF(G5=\"\",\"\",G5)","v":"Março/2018"},null,null,null,null,null,null,null,null,null,"ASSINATURA DO FUNCIONÁRIO"]
[]
[null,null,"Código","Nome do Funcionário",null,null,"CBO","Emp.","Local","Depto.","Setor","Seção","Fl."]
[null,null,{"$f":"IF(C8=\"\",\"\",C8)","v":1},{"$f":"IF(D8=\"\",\"\",D8)","v":"João"},null,null,{"$f":"IF(G8=\"\",\"\",G8)","v":"3331-05 - Instrutor de cursos livres"}]
[]
[null,null,"Cód.","Descrição",null,null,"Referência","Vencimentos",null,null,"Descontos"]
[]
[null,null,{"$f":"IF(C12=\"\",\"\",C12)","v":1},{"$f":"IF(D12=\"\",\"\",D12)","v":"SALÁRIO"},null,null,{"$f":"IF(G12=\"\",\"\",G12)","v":""},{"$f":"IF(H12=\"\",\"\",H12)","v":1837},null,null,{"$f":"IF(K12=\"\",\"\",K12)","v":""}]
[null,null,{"$f":"IF(C13=\"\",\"\",C13)","v":90},{"$f":"IF(D13=\"\",\"\",D13)","v":"INSS"},null,null,{"$f":"IF(G13=\"\",\"\",G13)","v":""},{"$f":"IF(H13=\"\",\"\",H13)","v":""},null,null,{"$f":"IF(K13=\"\",\"\",K13)","v":146.96}]
[null,null,200,"IRRF",null,null,"","",null,null,{"$f":"IF(K14=\"\",\"\",K14)","v":""}]
[null,null,6,"SERV. EXTRAORDINARIO 50%",null,null,"12",150.29999999999998,null,null,{"$f":"IF(K15=\"\",\"\",K15)","v":""}]
[null,null,47,"ADIANTAMENTO DE SALÁRIO",null,null,"","",null,null,{"$f":"IF(K16=\"\",\"\",K16)","v":670}]
[null,null,96,"VALE TRANSPORTE",null,null,"","",null,null,110]
[null,null,"","",null,null,"","",null,null,""]
[null,null,"","",null,null,"","",null,null,""]
[null,null,"","",null,null,"","",null,null,""]
[null,null,"","",null,null,"","",null,null,""]
[null,null,"","",null,null,"","",null,null,""]
[null,null,"","",null,null,"","",null,null,""]
[null,null,"","",null,null,"","",null,null,""]
[null,null,"","",null,null,"","",null,null,"",null,null,null,null,"_____/_____/_____","DATA"]
[null,null,"","",null,null,"","",null,null,""]
[null,null,"","",null,null,"","",null,null,""]
[null,null,"","",null,null,"","",null,null,""]
[null,null,"","",null,null,"","",null,null,""]
[]
[null,null,null,null,null,null,null,"Total de Vencimentos",null,null,"Total de Descontos"]
[null,null,null,null,null,null,null,{"$f":"IF(H32=\"\",\"\",H32)","v":1987.3},null,null,{"$f":"IF(K32=\"\",\"\",K32)","v":926.96}]
[]
[null,null,null,null,null,null,null,"Valor Líquido",null,null,{"$f":"IF(K34=\"\",\"\",K34)","v":1060.3399999999999}]
[]
[]
[null,null,"Salário Base",null,"Sal. Contr. INSS","Base Cálc. FGTS","FGTS do Mês",null,"Base Cálc. IRRF",null,null,"Faixa IRRF"]
[null,null,{"$f":"IF(C38=\"\",\"\",C38)","v":1837},null,{"$f":"IF(E38=\"\",\"\",E38)","v":1837},{"$f":"IF(F38=\"\",\"\",F38)","v":1837},{"$f":"IF(G38=\"\",\"\",G38)","v":146.96},null,{"$f":"IF(I38=\"\",\"\",I38)","v":1837},null,null,{"$f":"IF(L38=\"\",\"\",L38)","v":1}]

{"sheet":"Calcular","index":1,"n_rows":19,"n_cols":15,"rows_kept":19,"cut":false,"hidden":true,"merged":[[18,14,18,16],[0,14,0,16],[12,14,12,16],[13,14,13,16],[14,14,14,16],[15,14,15,16],[16,14,16,16],[17,14,17,16],[6,14,6,16],[7,14,7,16],[8,14,8,16],[9,14,9,16],[10,14,10,16],[11,14,11,16],[5,14,5,16],[0,11,0,13],[1,14,1,16],[2,14,2,16],[3,14,3,16],[4,14,4,16],[1,11,1,13],[2,11,2,13],[3,11,3,13],[4,11,4,13],[5,11,5,13],[6,11,6,13],[18,11,18,13],[7,11,7,13],[8,11,8,13],[9,11,9,13],[10,11,10,13],[11,11,11,13],[12,11,12,13],[13,11,13,13],[14,11,14,13],[15,11,15,13],[16,11,16,13],[17,11,17,13]]}
[null,"SALÁRIO","VENCIMENTOS","SERV. EXTRAORDINARIO 50%","SERV. EXTRAORDINÁRIO 100%","ABONO DE FÉRIAS (1/3)","ADIANTAMENTO DE SALÁRIO","HORAS FALTA","FALTAS EM DIAS","INSS","IRRF","venc",null,null,"desc"]
[{"$f":"Assistente!D12","v":"SALÁRIO"},{"$f":"IF($A2=B$1,Assistente!$C$38,0)","v":1837},{"$f":"IF($A2=C$1,Assistente!$C$38,0)","v":0},{"$f":"IF($A2=D$1,Assistente!$C$38/220*1.5*Assistente!G12,0)","v":0},{"$f":"IF($A2=E$1,Assistente!$C$38/220*2*Assistente!G12,0)","v":0},{"$f":"IF($A2=F$1,Assistente!$C$38/3,0)","v":0},{"$f":"IF($A2=G$1,Assistente!$C$38*Assistente!G12,0)","v":0},{"$f":"-IF($A2=H$1,Assistente!$C$38/220*Assistente!G12,0)","v":0},{"$f":"-IF($A2=I$1,Assistente!$C$38/30*Assistente!G12,0)","v":0},{"$f":"-IF($A2=J$1,Assistente!$C$38*VLOOKUP(Assistente!$C$38,tabINSS,2,1),0)","v":0},{"$f":"-IF($A2=K$1,Assistente!$C$38*VLOOKUP(Assistente!$C$38,tabIRRF,2,1)-VLOOKUP(Assistente!$C$38,tabIRRF,3,1),0)","v":0},{"$f":"IF(SUMIF(B2:K2,\">0\")=0,\"\",SUMIF(B2:K2,\">0\"))","v":1837},null,null,{"$f":"IF(SUMIF(B2:K2,\"<0\")*-1=0,\"\",SUMIF(B2:K2,\"<0\")*-1)","v":""}]
[{"$f":"Assistente!D13","v":"INSS"},{"$f":"IF($A3=B$1,Assistente!$C$38,0)","v":0},{"$f":"IF($A3=C$1,Assistente!$C$38,0)","v":0},{"$f":"IF($A3=D$1,Assistente!$C$38/220*1.5*Assistente!G13,0)","v":0},{"$f":"IF($A3=E$1,Assistente!$C$38/220*2*Assistente!G13,0)","v":0},{"$f":"IF($A3=F$1,Assistente!$C$38/3,0)","v":0},{"$f":"IF($A3=G$1,Assistente!$C$38*Assistente!G13,0)","v":0},{"$f":"-IF($A3=H$1,Assistente!$C$38/220*Assistente!G13,0)","v":0},{"$f":"-IF($A3=I$1,Assistente!$C$38/30*Assistente!G13,0)","v":0},{"$f":"-IF($A3=J$1,Assistente!$C$38*VLOOKUP(Assistente!$C$38,tabINSS,2,1),0)","v":-146.96},{"$f":"-IF($A3=K$1,Assistente!$C$38*VLOOKUP(Assistente!$C$38,tabIRRF,2,1)-VLOOKUP(Assistente!$C$38,tabIRRF,3,1),0)","v":0},{"$f":"IF(SUMIF(B3:K3,\">0\")=0,\"\",SUMIF(B3:K3,\">0\"))","v":""},null,null,{"$f":"IF(SUMIF(B3:K3,\"<0\")*-1=0,\"\",SUMIF(B3:K3,\"<0\")*-1)","v":146.96}]
[{"$f":"Assistente!D14","v":"IRRF"},{"$f":"IF($A4=B$1,Assistente!$C$38,0)","v":0},{"$f":"IF($A4=C$1,Assistente!$C$38,0)","v":0},{"$f":"IF($A4=D$1,Assistente!$C$38/220*1.5*Assistente!G14,0)","v":0},{"$f":"IF($A4=E$1,Assistente!$C$38/220*2*Assistente!G14,0)","v":0},{"$f":"IF($A4=F$1,Assistente!$C$38/3,0)","v":0},{"$f":"IF($A4=G$1,Assistente!$C$38*Assistente!G14,0)","v":0},{"$f":"-IF($A4=H$1,Assistente!$C$38/220*Assistente!G14,0)","v":0},{"$f":"-IF($A4=I$1,Assistente!$C$38/30*Assistente!G14,0)","v":0},{"$f":"-IF($A4=J$1,Assistente!$C$38*VLOOKUP(Assistente!$C$38,tabINSS,2,1),0)","v":0},{"$f":"-IF($A4=K$1,Assistente!$C$38*VLOOKUP(Assistente!$C$38,tabIRRF,2,1)-VLOOKUP(Assistente!$C$38,tabIRRF,3,1),0)","v":0},"",null,null,""]
[{"$f":"Assistente!D15","v":"SERV. EXTRAORDINARIO 50%"},{"$f":"IF($A5=B$1,Assistente!$C$38,0)","v":0},{"$f":"IF($A5=C$1,Assistente!$C$38,0)","v":0},{"$f":"IF($A5=D$1,Assistente!$C$38/220*1.5*Assistente!G15,0)","v":150.29999999999998},{"$f":"IF($A5=E$1,Assistente!$C$38/220*2*Assistente!G15,0)","v":0},{"$f":"IF($A5=F$1,Assistente!$C$38/3,0)","v":0},{"$f":"IF($A5=G$1,Assistente!$C$38*Assistente!G15,0)","v":0},{"$f":"-IF($A5=H$1,Assistente!$C$38/220*Assistente!G15,0)","v":0},{"$f":"-IF($A5=I$1,Assistente!$C$38/30*Assistente!G15,0)","v":0},{"$f":"-IF($A5=J$1,Assistente!$C$38*VLOOKUP(Assistente!$C$38,tabINSS,2,1),0)","v":0},{"$f":"-IF($A5=K$1,Assistente!$C$38*VLOOKUP(Assistente!$C$38,tabIRRF,2,1)-VLOOKUP(Assistente!$C$38,tabIRRF,3,1),0)","v":0},150.29999999999998,null,null,""]
[{"$f":"Assistente!D16","v":"ADIANTAMENTO DE SALÁRIO"},{"$f":"IF($A6=B$1,Assistente!$C$38,0)","v":0},{"$f":"IF($A6=C$1,Assistente!$C$38,0)","v":0},{"$f":"IF($A6=D$1,Assistente!$C$38/220*1.5*Assistente!G16,0)","v":0},{"$f":"IF($A6=E$1,Assistente!$C$38/220*2*Assistente!G16,0)","v":0},{"$f":"IF($A6=F$1,Assistente!$C$38/3,0)","v":0},{"$f":"IF($A6=G$1,Assistente!$C$38*Assistente!G16,0)","v":0},{"$f":"-IF($A6=H$1,Assistente!$C$38/220*Assistente!G16,0)","v":0},{"$f":"-IF($A6=I$1,Assistente!$C$38/30*Assistente!G16,0)","v":0},{"$f":"-IF($A6=J$1,Assistente!$C$38*VLOOKUP(Assistente!$C$38,tabINSS,2,1),0)","v":0},{"$f":"-IF($A6=K$1,Assistente!$C$38*VLOOKUP(Assistente!$C$38,tabIRRF,2,1)-VLOOKUP(Assistente!$C$38,tabIRRF,3,1),0)","v":0},"",null,null,""]
[{"$f":"Assistente!D17","v":"VALE TRANSPORTE"},{"$f":"IF($A7=B$1,Assistente!$C$38,0)","v":0},{"$f":"IF($A7=C$1,Assistente!$C$38,0)","v":0},{"$f":"IF($A7=D$1,Assistente!$C$38/220*1.5*Assistente!G17,0)","v":0},{"$f":"IF($A7=E$1,Assistente!$C$38/220*2*Assistente!G17,0)","v":0},{"$f":"IF($A7=F$1,Assistente!$C$38/3,0)","v":0},{"$f":"IF($A7=G$1,Assistente!$C$38*Assistente!G17,0)","v":0},{"$f":"-IF($A7=H$1,Assistente!$C$38/220*Assistente!G17,0)","v":0},{"$f":"-IF($A7=I$1,Assistente!$C$38/30*Assistente!G17,0)","v":0},{"$f":"-IF($A7=J$1,Assistente!$C$38*VLOOKUP(Assistente!$C$38,tabINSS,2,1),0)","v":0},{"$f":"-IF($A7=K$1,Assistente!$C$38*VLOOKUP(Assistente!$C$38,tabIRRF,2,1)-VLOOKUP(Assistente!$C$38,tabIRRF,3,1),0)","v":0},"",null,null,""]
[{"$f":"Assistente!D18","v":0},{"$f":"IF($A8=B$1,Assistente!$C$38,0)","v":0},{"$f":"IF($A8=C$1,Assistente!$C$38,0)","v":0},{"$f":"IF($A8=D$1,Assistente!$C$38/220*1.5*Assistente!G18,0)","v":0},{"$f":"IF($A8=E$1,Assistente!$C$38/220*2*Assistente!G18,0)","v":0},{"$f":"IF($A8=F$1,Assistente!$C$38/3,0)","v":0},{"$f":"IF($A8=G$1,Assistente!$C$38*Assistente!G18,0)","v":0},{"$f":"-IF($A8=H$1,Assistente!$C$38/220*Assistente!G18,0)","v":0},{"$f":"-IF($A8=I$1,Assistente!$C$38/30*Assistente!G18,0)","v":0},{"$f":"-IF($A8=J$1,Assistente!$C$38*VLOOKUP(Assistente!$C$38,tabINSS,2,1),0)","v":0},{"$f":"-IF($A8=K$1,Assistente!$C$38*VLOOKUP(Assistente!$C$38,tabIRRF,2,1)-VLOOKUP(Assistente!$C$38,tabIRRF,3,1),0)","v":0},"",null,null,""]
[{"$f":"Assistente!D19","v":0},{"$f":"IF($A9=B$1,Assistente!$C$38,0)","v":0},{"$f":"IF($A9=C$1,Assistente!$C$38,0)","v":0},{"$f":"IF($A9=D$1,Assistente!$C$38/220*1.5*Assistente!G19,0)","v":0},{"$f":"IF($A9=E$1,Assistente!$C$38/220*2*Assistente!G19,0)","v":0},{"$f":"IF($A9=F$1,Assistente!$C$38/3,0)","v":0},{"$f":"IF($A9=G$1,Assistente!$C$38*Assistente!G19,0)","v":0},{"$f":"-IF($A9=H$1,Assistente!$C$38/220*Assistente!G19,0)","v":0},{"$f":"-IF($A9=I$1,Assistente!$C$38/30*Assistente!G19,0)","v":0},{"$f":"-IF($A9=J$1,Assistente!$C$38*VLOOKUP(Assistente!$C$38,tabINSS,2,1),0)","v":0},{"$f":"-IF($A9=K$1,Assistente!$C$38*VLOOKUP(Assistente!$C$38,tabIRRF,2,1)-VLOOKUP(Assistente!$C$38,tabIRRF,3,1),0)","v":0},"",null,null,""]
[{"$f":"Assistente!D20","v":0},{"$f":"IF($A10=B$1,Assistente!$C$38,0)","v":0},{"$f":"IF($A10=C$1,Assistente!$C$38,0)","v":0},{"$f":"IF($A10=D$1,Assistente!$C$38/220*1.5*Assistente!G20,0)","v":0},{"$f":"IF($A10=E$1,Assistente!$C$38/220*2*Assistente!G20,0)","v":0},{"$f":"IF($A10=F$1,Assistente!$C$38/3,0)","v":0},{"$f":"IF($A10=G$1,Assistente!$C$38*Assistente!G20,0)","v":0},{"$f":"-IF($A10=H$1,Assistente!$C$38/220*Assistente!G20,0)","v":0},{"$f":"-IF($A10=I$1,Assistente!$C$38/30*Assistente!G20,0)","v":0},{"$f":"-IF($A10=J$1,Assistente!$C$38*VLOOKUP(Assistente!$C$38,tabINSS,2,1),0)","v":0},{"$f":"-IF($A10=K$1,Assistente!$C$38*VLOOKUP(Assistente!$C$38,tabIRRF,2,1)-VLOOKUP(Assistente!$C$38,tabIRRF,3,1),0)","v":0},"",null,null,""]
[{"$f":"Assistente!D21","v":0},{"$f":"IF($A11=B$1,Assistente!$C$38,0)","v":0},{"$f":"IF($A11=C$1,Assistente!$C$38,0)","v":0},{"$f":"IF($A11=D$1,Assistente!$C$38/220*1.5*Assistente!G21,0)","v":0},{"$f":"IF($A11=E$1,Assistente!$C$38/220*2*Assistente!G21,0)","v":0},{"$f":"IF($A11=F$1,Assistente!$C$38/3,0)","v":0},{"$f":"IF($A11=G$1,Assistente!$C$38*Assistente!G21,0)","v":0},{"$f":"-IF($A11=H$1,Assistente!$C$38/220*Assistente!G21,0)","v":0},{"$f":"-IF($A11=I$1,Assistente!$C$38/30*Assistente!G21,0)","v":0},{"$f":"-IF($A11=J$1,Assistente!$C$38*VLOOKUP(Assistente!$C$38,tabINSS,2,1),0)","v":0},{"$f":"-IF($A11=K$1,Assistente!$C$38*VLOOKUP(Assistente!$C$38,tabIRRF,2,1)-VLOOKUP(Assistente!$C$38,tabIRRF,3,1),0)","v":0},"",null,null,""]
[{"$f":"Assistente!D22","v":0},{"$f":"IF($A12=B$1,Assistente!$C$38,0)","v":0},{"$f":"IF($A12=C$1,Assistente!$C$38,0)","v":0},{"$f":"IF($A12=D$1,Assistente!$C$38/220*1.5*Assistente!G22,0)","v":0},{"$f":"IF($A12=E$1,Assistente!$C$38/220*2*Assistente!G22,0)","v":0},{"$f":"IF($A12=F$1,Assistente!$C$38/3,0)","v":0},{"$f":"IF($A12=G$1,Assistente!$C$38*Assistente!G22,0)","v":0},{"$f":"-IF($A12=H$1,Assistente!$C$38/220*Assistente!G22,0)","v":0},{"$f":"-IF($A12=I$1,Assistente!$C$38/30*Assistente!G22,0)","v":0},{"$f":"-IF($A12=J$1,Assistente!$C$38*VLOOKUP(Assistente!$C$38,tabINSS,2,1),0)","v":0},{"$f":"-IF($A12=K$1,Assistente!$C$38*VLOOKUP(Assistente!$C$38,tabIRRF,2,1)-VLOOKUP(Assistente!$C$38,tabIRRF,3,1),0)","v":0},"",null,null,""]
[{"$f":"Assistente!D23","v":0},{"$f":"IF($A13=B$1,Assistente!$C$38,0)","v":0},{"$f":"IF($A13=C$1,Assistente!$C$38,0)","v":0},{"$f":"IF($A13=D$1,Assistente!$C$38/220*1.5*Assistente!G23,0)","v":0},{"$f":"IF($A13=E$1,Assistente!$C$38/220*2*Assistente!G23,0)","v":0},{"$f":"IF($A13=F$1,Assistente!$C$38/3,0)","v":0},{"$f":"IF($A13=G$1,Assistente!$C$38*Assistente!G23,0)","v":0},{"$f":"-IF($A13=H$1,Assistente!$C$38/220*Assistente!G23,0)","v":0},{"$f":"-IF($A13=I$1,Assistente!$C$38/30*Assistente!G23,0)","v":0},{"$f":"-IF($A13=J$1,Assistente!$C$38*VLOOKUP(Assistente!$C$38,tabINSS,2,1),0)","v":0},{"$f":"-IF($A13=K$1,Assistente!$C$38*VLOOKUP(Assistente!$C$38,tabIRRF,2,1)-VLOOKUP(Assistente!$C$38,tabIRRF,3,1),0)","v":0},"",null,null,""]
[{"$f":"Assistente!D24","v":0},{"$f":"IF($A14=B$1,Assistente!$C$38,0)","v":0},{"$f":"IF($A14=C$1,Assistente!$C$38,0)","v":0},{"$f":"IF($A14=D$1,Assistente!$C$38/220*1.5*Assistente!G24,0)","v":0},{"$f":"IF($A14=E$1,Assistente!$C$38/220*2*Assistente!G24,0)","v":0},{"$f":"IF($A14=F$1,Assistente!$C$38/3,0)","v":0},{"$f":"IF($A14=G$1,Assistente!$C$38*Assistente!G24,0)","v":0},{"$f":"-IF($A14=H$1,Assistente!$C$38/220*Assistente!G24,0)","v":0},{"$f":"-IF($A14=I$1,Assistente!$C$38/30*Assistente!G24,0)","v":0},{"$f":"-IF($A14=J$1,Assistente!$C$38*VLOOKUP(Assistente!$C$38,tabINSS,2,1),0)","v":0},{"$f":"-IF($A14=K$1,Assistente!$C$38*VLOOKUP(Assistente!$C$38,tabIRRF,2,1)-VLOOKUP(Assistente!$C$38,tabIRRF,3,1),0)","v":0},"",null,null,""]
[{"$f":"Assistente!D25","v":0},{"$f":"IF($A15=B$1,Assistente!$C$38,0)","v":0},{"$f":"IF($A15=C$1,Assistente!$C$38,0)","v":0},{"$f":"IF($A15=D$1,Assistente!$C$38/220*1.5*Assistente!G25,0)","v":0},{"$f":"IF($A15=E$1,Assistente!$C$38/220*2*Assistente!G25,0)","v":0},{"$f":"IF($A15=F$1,Assistente!$C$38/3,0)","v":0},{"$f":"IF($A15=G$1,Assistente!$C$38*Assistente!G25,0)","v":0},{"$f":"-IF($A15=H$1,Assistente!$C$38/220*Assistente!G25,0)","v":0},{"$f":"-IF($A15=I$1,Assistente!$C$38/30*Assistente!G25,0)","v":0},{"$f":"-IF($A15=J$1,Assistente!$C$38*VLOOKUP(Assistente!$C$38,tabINSS,2,1),0)","v":0},{"$f":"-IF($A15=K$1,Assistente!$C$38*VLOOKUP(Assistente!$C$38,tabIRRF,2,1)-VLOOKUP(Assistente!$C$38,tabIRRF,3,1),0)","v":0},"",null,null,""]
[{"$f":"Assistente!D26","v":0},{"$f":"IF($A16=B$1,Assistente!$C$38,0)","v":0},{"$f":"IF($A16=C$1,Assistente!$C$38,0)","v":0},{"$f":"IF($A16=D$1,Assistente!$C$38/220*1.5*Assistente!G26,0)","v":0},{"$f":"IF($A16=E$1,Assistente!$C$38/220*2*Assistente!G26,0)","v":0},{"$f":"IF($A16=F$1,Assistente!$C$38/3,0)","v":0},{"$f":"IF($A16=G$1,Assistente!$C$38*Assistente!G26,0)","v":0},{"$f":"-IF($A16=H$1,Assistente!$C$38/220*Assistente!G26,0)","v":0},{"$f":"-IF($A16=I$1,Assistente!$C$38/30*Assistente!G26,0)","v":0},{"$f":"-IF($A16=J$1,Assistente!$C$38*VLOOKUP(Assistente!$C$38,tabINSS,2,1),0)","v":0},{"$f":"-IF($A16=K$1,Assistente!$C$38*VLOOKUP(Assistente!$C$38,tabIRRF,2,1)-VLOOKUP(Assistente!$C$38,tabIRRF,3,1),0)","v":0},"",null,null,""]
[{"$f":"Assistente!D27","v":0},{"$f":"IF($A17=B$1,Assistente!$C$38,0)","v":0},{"$f":"IF($A17=C$1,Assistente!$C$38,0)","v":0},{"$f":"IF($A17=D$1,Assistente!$C$38/220*1.5*Assistente!G27,0)","v":0},{"$f":"IF($A17=E$1,Assistente!$C$38/220*2*Assistente!G27,0)","v":0},{"$f":"IF($A17=F$1,Assistente!$C$38/3,0)","v":0},{"$f":"IF($A17=G$1,Assistente!$C$38*Assistente!G27,0)","v":0},{"$f":"-IF($A17=H$1,Assistente!$C$38/220*Assistente!G27,0)","v":0},{"$f":"-IF($A17=I$1,Assistente!$C$38/30*Assistente!G27,0)","v":0},{"$f":"-IF($A17=J$1,Assistente!$C$38*VLOOKUP(Assistente!$C$38,tabINSS,2,1),0)","v":0},{"$f":"-IF($A17=K$1,Assistente!$C$38*VLOOKUP(Assistente!$C$38,tabIRRF,2,1)-VLOOKUP(Assistente!$C$38,tabIRRF,3,1),0)","v":0},"",null,null,""]
[{"$f":"Assistente!D28","v":0},{"$f":"IF($A18=B$1,Assistente!$C$38,0)","v":0},{"$f":"IF($A18=C$1,Assistente!$C$38,0)","v":0},{"$f":"IF($A18=D$1,Assistente!$C$38/220*1.5*Assistente!G28,0)","v":0},{"$f":"IF($A18=E$1,Assistente!$C$38/220*2*Assistente!G28,0)","v":0},{"$f":"IF($A18=F$1,Assistente!$C$38/3,0)","v":0},{"$f":"IF($A18=G$1,Assistente!$C$38*Assistente!G28,0)","v":0},{"$f":"-IF($A18=H$1,Assistente!$C$38/220*Assistente!G28,0)","v":0},{"$f":"-IF($A18=I$1,Assistente!$C$38/30*Assistente!G28,0)","v":0},{"$f":"-IF($A18=J$1,Assistente!$C$38*VLOOKUP(Assistente!$C$38,tabINSS,2,1),0)","v":0},{"$f":"-IF($A18=K$1,Assistente!$C$38*VLOOKUP(Assistente!$C$38,tabIRRF,2,1)-VLOOKUP(Assistente!$C$38,tabIRRF,3,1),0)","v":0},"",null,null,""]
[{"$f":"Assistente!D29","v":0},{"$f":"IF($A19=B$1,Assistente!$C$38,0)","v":0},{"$f":"IF($A19=C$1,Assistente!$C$38,0)","v":0},{"$f":"IF($A19=D$1,Assistente!$C$38/220*1.5*Assistente!G29,0)","v":0},{"$f":"IF($A19=E$1,Assistente!$C$38/220*2*Assistente!G29,0)","v":0},{"$f":"IF($A19=F$1,Assistente!$C$38/3,0)","v":0},{"$f":"IF($A19=G$1,Assistente!$C$38*Assistente!G29,0)","v":0},{"$f":"-IF($A19=H$1,Assistente!$C$38/220*Assistente!G29,0)","v":0},{"$f":"-IF($A19=I$1,Assistente!$C$38/30*Assistente!G29,0)","v":0},{"$f":"-IF($A19=J$1,Assistente!$C$38*VLOOKUP(Assistente!$C$38,tabINSS,2,1),0)","v":0},{"$f":"-IF($A19=K$1,Assistente!$C$38*VLOOKUP(Assistente!$C$38,tabIRRF,2,1)-VLOOKUP(Assistente!$C$38,tabIRRF,3,1),0)","v":0},"",null,null,""]

{"sheet":"Informações","index":2,"n_rows":33,"n_cols":12,"rows_kept":33,"cut":false,"hidden":true,"merged":[]}
["SALÁRIO DE CONTRIBUIÇÃO (R$)","ALÍQUOTA INSS",null,null,null,null,null,"Base de cálculo (R$)","Alíquota (%)","Parcela a deduzir do IRPF (R$)",null,"Meses"]
["até 1.693,72",0.08,null,0,{"$f":"B2","v":0.08},null,null,0,0,0,1,"Janeiro"]
["de 1.693,73 até 2.822,90",0.09,null,{"$f":"RIGHT(A2,8)","v":"1.693,72"},{"$f":"B3","v":0.09},null,null,1903.98,7.4999999999999997E-2,142.80000000000001,2,"Fevereiro"]
["de 2.822,91 até 5.645,80",0.11,null,{"$f":"RIGHT(A3,8)","v":"2.822,90"},{"$f":"B4","v":0.11},null,null,2826.65,0.15,354.8,3,"Março"]
[null,null,null,null,null,null,null,3751.05,0.22500000000000001,636.13,4,"Abril"]
[null,null,null,null,null,null,null,4664.68,0.27500000000000002,869.36,5,"Maio"]
[null,null,null,null,null,null,null,null,null,null,null,"Junho"]
["DESCRIÇÃO","COD",null,null,null,null,null,"Nome da empresa","Empresa Fictícia LTDA",null,null,"Julho"]
["SALÁRIO",1,null,null,null,null,null,"CNPJ da empresa","12345675334211",null,null,"Agosto"]
["VENCIMENTOS",2,null,null,null,null,null,"Mês Ref","Março",null,null,"Setembro"]
["ADICIONAL TEMPO DE SERVIÇO",4,null,null,null,null,null,"Ano Ref",2018,null,null,"Outubro"]
["SERV. EXTRAORDINARIO 50%",6,null,null,null,null,null,null,null,null,null,"Novembro"]
["SERV. EXTRAORDINÁRIO 100%",7,null,null,null,null,null,"CNPJ com formato","12.345.675/3342-11",null,null,"Dezembro"]
["ABONO DE FÉRIAS (1/3)",13]
["ADICIONAL NOTURNO",30,null,null,null,null,null,"CodFuncionario",1]
["SALDO SALÁRIO RESCISÃO",32]
["GRAT. INCENTIVO TITULAÇÃO",34]
["GRATIF PRODUTIVIDADE",35]
["ADICIONAL PERICULOSIDADE",36]
["SALÁRIO FAMILIA CLT",42]
["AUXÍLIO ALIMENTAÇÃO",43]
["13º SALÁRIO CLT",44]
["ADIANTAMENTO DE SALÁRIO",47]
["HORAS FALTA",54]
["PENSÃO JUDICIAL ",59]
["FALTAS EM DIAS",61]
["INSS",90]
["VALE TRANSPORTE",96]
["INSS S/13º SALÁRIO",98]
["DÉCIMO TERCEIRO",119]
["AJUDA DE CUSTO",130]
["CONVÊNIO MÉDICO",171]
["IRRF",200]

{"sheet":"BaseFuncionarios","index":3,"n_rows":2,"n_cols":5,"rows_kept":2,"cut":false,"hidden":true,"merged":[]}
["Cod","Nome","CBO","Ocupação","Salário"]
[1,"João","3331-05","Instrutor de cursos livres",1837]

{"sheet":"GerarManualColorido","index":4,"n_rows":85,"n_cols":17,"rows_kept":85,"cut":false,"hidden":false,"merged":[[17,10,17,12],[18,3,18,5],[18,7,18,9],[18,10,18,12],[19,3,19,5],[19,7,19,9],[19,10,19,12],[10,16,27,16],[11,2,11,12],[12,3,12,5],[13,3,13,5],[13,6,13,12],[14,2,14,12],[15,3,15,5],[15,7,15,9],[15,10,15,12],[16,3,16,5],[8,14,43,14],[9,15,27,15],[10,6,10,12],[16,7,16,9],[16,10,16,12],[17,3,17,5],[17,7,17,9],[22,3,22,5],[22,7,22,9],[22,10,22,12],[23,3,23,5],[23,7,23,9],[23,10,23,12],[20,3,20,5],[20,7,20,9],[20,10,20,12],[21,3,21,5],[21,7,21,9],[21,10,21,12],[26,3,26,5],[26,7,26,9],[26,10,26,12],[27,3,27,5],[27,7,27,9],[27,10,27,12],[24,3,24,5],[24,7,24,9],[24,10,24,12],[25,3,25,5],[25,7,25,9],[25,10,25,12],[30,15,42,15],[30,16,42,16],[31,3,31,5],[31,7,31,9],[31,10,31,12],[32,3,32,5],[32,7,32,9],[28,3,28,5],[28,7,28,9],[28,10,28,12],[29,3,29,5],[29,7,29,9],[29,10,29,12],[32,10,32,12],[33,3,33,5],[33,7,33,9],[33,10,33,12],[34,3,34,5],[34,7,34,9],[34,10,34,12],[30,3,30,5],[30,7,30,9],[30,10,30,12],[35,3,35,5],[35,7,35,9],[35,10,35,12],[36,2,40,6],[36,7,36,9],[36,10,36,12],[37,7,37,9],[37,10,37,12],[38,7,38,12],[39,7,40,9],[39,10,40,12],[42,2,42,3],[42,6,42,7],[42,8,42,10],[42,11,42,12],[43,2,43,3],[43,6,43,7],[43,8,43,10],[43,11,43,12],[54,3,54,5],[54,6,54,12],[55,2,55,12],[56,3,56,5],[56,7,56,9],[56,10,56,12],[46,1,46,17],[49,2,50,5],[49,6,50,12],[49,14,84,14],[50,15,68,15],[51,2,51,5],[51,6,51,12],[51,16,68,16],[52,2,52,12],[53,3,53,5],[59,3,59,5],[59,7,59,9],[59,10,59,12],[60,3,60,5],[60,7,60,9],[60,10,60,12],[57,3,57,5],[57,7,57,9],[57,10,57,12],[58,3,58,5],[58,7,58,9],[58,10,58,12],[63,3,63,5],[63,7,63,9],[63,10,63,12],[64,3,64,5],[64,7,64,9],[64,10,64,12],[61,3,61,5],[61,7,61,9],[61,10,61,12],[62,3,62,5],[62,7,62,9],[62,10,62,12],[68,3,68,5],[68,7,68,9],[68,10,68,12],[65,3,65,5],[65,7,65,9],[65,10,65,12],[66,3,66,5],[66,7,66,9],[66,10,66,12],[67,3,67,5],[67,7,67,9],[67,10,67,12],[71,15,83,15],[71,16,83,16],[72,3,72,5],[72,7,72,9],[72,10,72,12],[73,3,73,5],[73,7,73,9],[69,3,69,5],[69,7,69,9],[69,10,69,12],[70,3,70,5],[70,7,70,9],[70,10,70,12],[73,10,73,12],[74,3,74,5],[74,7,74,9],[74,10,74,12],[75,3,75,5],[75,7,75,9],[75,10,75,12],[71,3,71,5],[71,7,71,9],[71,10,71,12],[76,3,76,5],[1,11,1,15],[2,11,2,15],[10,3,10,5],[4,7,4,10],[4,11,4,15],[1,4,1,5],[2,4,2,5],[3,4,3,5],[4,4,4,5],[5,4,5,5],[1,7,1,10],[2,7,2,10],[1,1,1,3],[2,1,2,3],[3,1,3,3],[4,1,4,3],[5,1,5,3],[8,2,9,5],[8,6,9,12],[83,2,83,3],[83,6,83,7],[83,8,83,10],[83,11,83,12],[84,2,84,3],[84,6,84,7],[84,8,84,10],[84,11,84,12],[76,7,76,9],[76,10,76,12],[77,2,81,6],[77,7,77,9],[77,10,77,12],[78,7,78,9],[78,10,78,12],[79,7,79,12],[80,7,81,9],[80,10,81,12]]}
[]
[null,"Nome da empresa",null,null,"Nome fantasia LTDA",null,null,"Cargo do funcionário",null,null,null,"Instrutor"]
[null,"CNPJ",null,null,123456789000189,null,null,"Salário do funcionário",null,null,null,1844]
[null,"Código do funcionário",null,null,105]
[null,"Nome do funcionário",null,null,"Evandro Gomes Ferreira",null,null,"Referente à",null,null,null,"Junho/2018"]
[null,"Código CBO",null,null,"2332-25"]
[]
[]
[null,null,"00.0067 - Compuclass Informática LTDA",null,null,null,"Recibo de Pagamento de Salário",null,null,null,null,null,null,null,"DECLARO TER RECEBIDO  A I MPOTÂNCIA LÍQUIDA DISCRIMINADA NESTE RECIBO\n"]
[null,null,null,null,null,null,null,null,null,null,null,null,null,null,null,"________________________________"]
[null,null,"CNPJ:","01.932.018.0001/94",null,null,{"$f":"L5","v":"Junho/2018"},null,null,null,null,null,null,null,null,null,"ASSINATURA DO FUNCIONÁRIO"]
[]
[null,null,"Código","Nome do Funcionário",null,null,"CBO","Emp.","Local","Depto.","Setor","Seção","Fl."]
[null,null,3043,{"$f":"E5","v":"Evandro Gomes Ferreira"},null,null,{"$f":"E6&\" - \"&L2","v":"2332-25 - Instrutor"}]
[]
[null,null,"Cód.","Descrição",null,null,"Referência","Vencimentos",null,null,"Descontos"]
[]
[null,null,null,"Salário",null,null,null,1844]
[null,null,null,"Adiantamento 15/05",null,null,null,null,null,null,737]
[null,null,null,"Hora extra",null,null,28.8333333333333,{"$f":"G20*H18/220*1.75","v":422.93257575757525}]
[null,null,null,"Integração HE no DSR",null,null,{"$f":"G20*0.2","v":5.7666666666666604},{"$f":"H20*0.21","v":88.815840909090795}]
[null,null,null,"INSS sobre salário",null,null,0.09,null,null,null,{"$f":"G22*H38","v":212.01735749999992}]
[null,null,null,"Vale transporte",null,null,0.06,null,null,null,{"$f":"H18*G23","v":110.64}]
[null,null,null,"Assistência odontológica",null,null,null,null,null,null,9.48]
[]
[]
[]
[]
[]
[]
[null,null,null,null,null,null,null,null,null,null,null,null,null,null,null,"_____/_____/_____","DATA"]
[]
[]
[]
[]
[]
[null,null,null,null,null,null,null,"Total de Vencimentos",null,null,"Total de Descontos"]
[null,null,null,null,null,null,null,{"$f":"SUM(H18:J35)","v":2355.7484166666659},null,null,{"$f":"SUM(K18:M35)","v":1069.1373575}]
[]
[null,null,null,null,null,null,null,"Valor Líquido",null,null,{"$f":"H38-K38","v":1286.6110591666659}]
[]
[]
[null,null,"Salário Base",null,"Sal. Contr. INSS","Base Cálc. FGTS","FGTS do Mês",null,"Base Cálc. IRRF",null,null,"Faixa IRRF"]
[null,null,{"$f":"L3","v":1844},null,{"$f":"C44","v":1844},{"$f":"E44","v":1844},{"$f":"C44*8%","v":147.52000000000001},null,{"$f":"C44","v":1844},null,null,{"$f":"VLOOKUP(I38,tabIRRF,4)","v":1}]
[]
[]
[null,"- - - - - - - - - - - - - - - - - - - - - - - - - - - - - - - - - - - - - - - - - - - - - - - - - - - - - - - - - - - - Cortar aqui - - - - - - - - - - - - - - - - - - - - - - - - - - - - - - - - - - - - - - - - - - - - - - - - - - - - - - - - - - - -"]
[]
[]
[null,null,{"$f":"IF(C9=\"\",\"\",C9)","v":"00.0067 - Compuclass Informática LTDA"},null,null,null,"Recibo de Pagamento de Salário",null,null,null,null,null,null,null,"DECLARO TER RECEBIDO  A I MPOTÂNCIA LÍQUIDA DISCRIMINADA NESTE RECIBO\n"]
[null,null,null,null,null,null,null,null,null,null,null,null,null,null,null,"________________________________"]
[null,null,{"$f":"IF(C11=\"\",\"\",C11)","v":"CNPJ:"},null,null,null,{"$f":"IF(G11=\"\",\"\",G11)","v":"Junho/2018"},null,null,null,null,null,null,null,null,null,"ASSINATURA DO FUNCIONÁRIO"]
[]
[null,null,"Código","Nome do Funcionário",null,null,"CBO","Emp.","Local","Depto.","Setor","Seção","Fl."]
[null,null,{"$f":"IF(C14=\"\",\"\",C14)","v":3043},{"$f":"IF(D14=\"\",\"\",D14)","v":"Evandro Gomes Ferreira"},null,null,{"$f":"IF(G14=\"\",\"\",G14)","v":"2332-25 - Instrutor"}]
[]
[null,null,"Cód.","Descrição",null,null,"Referência","Vencimentos",null,null,"Descontos"]
[]
[null,null,{"$f":"IF(C18=\"\",\"\",C18)","v":""},{"$f":"IF(D18=\"\",\"\",D18)","v":"Salário"},null,null,{"$f":"IF(G18=\"\",\"\",G18)","v":""},{"$f":"IF(H18=\"\",\"\",H18)","v":1844},null,null,{"$f":"IF(K18=\"\",\"\",K18)","v":""}]
[null,null,{"$f":"IF(C19=\"\",\"\",C19)","v":""},"Adiantamento 15/05",null,null,{"$f":"IF(G19=\"\",\"\",G19)","v":""},"",null,null,{"$f":"IF(K19=\"\",\"\",K19)","v":737}]
[null,null,"","Hora extra",null,null,28.8333333333333,422.93257575757525,null,null,{"$f":"IF(K20=\"\",\"\",K20)","v":""}]
[null,null,"","Integração HE no DSR",null,null,5.7666666666666604,88.815840909090795,null,null,{"$f":"IF(K21=\"\",\"\",K21)","v":""}]
[null,null,"","INSS sobre salário",null,null,0.09,"",null,null,{"$f":"IF(K22=\"\",\"\",K22)","v":212.01735749999992}]
[null,null,"","Vale transporte",null,null,0.06,"",null,null,110.64]
[null,null,"","Assistência odontológica",null,null,"","",null,null,9.48]
[null,null,"","",null,null,"","",null,null,""]
[null,null,"","",null,null,"","",null,null,""]
[null,null,"","",null,null,"","",null,null,""]
[null,null,"","",null,null,"","",null,null,""]
[null,null,"","",null,null,"","",null,null,""]
[null,null,"","",null,null,"","",null,null,""]
[null,null,"","",null,null,"","",null,null,"",null,null,null,null,"_____/_____/_____","DATA"]
[null,null,"","",null,null,"","",null,null,""]
[null,null,"","",null,null,"","",null,null,""]
[null,null,"","",null,null,"","",null,null,""]
[null,null,{"$f":"IF(C35=\"\",\"\",C35)","v":""},{"$f":"IF(D35=\"\",\"\",D35)","v":""},null,null,{"$f":"IF(G35=\"\",\"\",G35)","v":""},{"$f":"IF(H35=\"\",\"\",H35)","v":""},null,null,""]
[]
[null,null,null,null,null,null,null,"Total de Vencimentos",null,null,"Total de Descontos"]
[null,null,null,null,null,null,null,{"$f":"IF(H38=\"\",\"\",H38)","v":2355.7484166666659},null,null,{"$f":"IF(K38=\"\",\"\",K38)","v":1069.1373575}]
[]
[null,null,null,null,null,null,null,"Valor Líquido",null,null,{"$f":"IF(K40=\"\",\"\",K40)","v":1286.6110591666659}]
[]
[]
[null,null,"Salário Base",null,"Sal. Contr. INSS","Base Cálc. FGTS","FGTS do Mês",null,"Base Cálc. IRRF",null,null,"Faixa IRRF"]
[null,null,{"$f":"IF(C44=\"\",\"\",C44)","v":1844},null,{"$f":"IF(E44=\"\",\"\",E44)","v":1844},{"$f":"IF(F44=\"\",\"\",F44)","v":1844},{"$f":"IF(G44=\"\",\"\",G44)","v":147.52000000000001},null,{"$f":"IF(I44=\"\",\"\",I44)","v":1844},null,null,{"$f":"IF(L44=\"\",\"\",L44)","v":1}]

{"sheet":"GerarManualPB","index":5,"n_rows":85,"n_cols":17,"rows_kept":85,"cut":false,"hidden":false,"merged":[[3,1,3,3],[3,4,3,5],[4,1,4,3],[4,4,4,5],[4,7,4,10],[4,11,4,15],[1,1,1,3],[1,4,1,5],[1,7,1,10],[1,11,1,15],[2,1,2,3],[2,4,2,5],[2,7,2,10],[2,11,2,15],[5,1,5,3],[5,4,5,5],[8,2,9,5],[8,6,9,12],[8,14,43,14],[9,15,27,15],[10,3,10,5],[10,6,10,12],[16,7,16,9],[16,10,16,12],[17,3,17,5],[17,7,17,9],[17,10,17,12],[18,3,18,5],[18,7,18,9],[18,10,18,12],[25,10,25,12],[26,3,26,5],[26,7,26,9],[26,10,26,12],[23,3,23,5],[23,7,23,9],[23,10,23,12],[24,3,24,5],[10,16,27,16],[11,2,11,12],[12,3,12,5],[13,3,13,5],[13,6,13,12],[14,2,14,12],[15,3,15,5],[15,7,15,9],[15,10,15,12],[16,3,16,5],[21,3,21,5],[21,7,21,9],[21,10,21,12],[22,3,22,5],[22,7,22,9],[22,10,22,12],[19,3,19,5],[19,7,19,9],[19,10,19,12],[20,3,20,5],[20,7,20,9],[20,10,20,12],[25,3,25,5],[25,7,25,9],[24,7,24,9],[24,10,24,12],[29,3,29,5],[29,7,29,9],[29,10,29,12],[30,3,30,5],[30,7,30,9],[30,10,30,12],[27,3,27,5],[27,7,27,9],[27,10,27,12],[28,3,28,5],[28,7,28,9],[28,10,28,12],[33,10,33,12],[34,3,34,5],[34,7,34,9],[34,10,34,12],[35,3,35,5],[35,7,35,9],[35,10,35,12],[30,15,42,15],[30,16,42,16],[31,3,31,5],[31,7,31,9],[31,10,31,12],[32,3,32,5],[32,7,32,9],[32,10,32,12],[33,3,33,5],[33,7,33,9],[42,2,42,3],[42,6,42,7],[42,8,42,10],[42,11,42,12],[43,2,43,3],[43,6,43,7],[43,8,43,10],[43,11,43,12],[36,2,40,6],[36,7,36,9],[36,10,36,12],[37,7,37,9],[37,10,37,12],[38,7,38,12],[39,7,40,9],[39,10,40,12],[46,1,46,17],[49,2,50,5],[49,6,50,12],[49,14,84,14],[50,15,68,15],[51,6,51,12],[51,16,68,16],[52,2,52,12],[53,3,53,5],[57,3,57,5],[57,7,57,9],[57,10,57,12],[58,3,58,5],[58,7,58,9],[58,10,58,12],[54,3,54,5],[54,6,54,12],[55,2,55,12],[56,3,56,5],[56,7,56,9],[56,10,56,12],[61,3,61,5],[61,7,61,9],[61,10,61,12],[62,3,62,5],[62,7,62,9],[62,10,62,12],[59,3,59,5],[59,7,59,9],[59,10,59,12],[60,3,60,5],[60,7,60,9],[60,10,60,12],[65,3,65,5],[65,7,65,9],[65,10,65,12],[66,3,66,5],[66,7,66,9],[66,10,66,12],[63,3,63,5],[63,7,63,9],[63,10,63,12],[64,3,64,5],[64,7,64,9],[64,10,64,12],[69,3,69,5],[69,7,69,9],[69,10,69,12],[70,3,70,5],[70,7,70,9],[70,10,70,12],[67,3,67,5],[67,7,67,9],[67,10,67,12],[68,3,68,5],[68,7,68,9],[68,10,68,12],[75,3,75,5],[75,7,75,9],[75,10,75,12],[71,3,71,5],[71,7,71,9],[71,10,71,12],[71,15,83,15],[71,16,83,16],[72,3,72,5],[72,7,72,9],[72,10,72,12],[73,3,73,5],[73,7,73,9],[51,3,51,5],[80,10,81,12],[83,2,83,3],[83,6,83,7],[83,8,83,10],[83,11,83,12],[84,2,84,3],[84,6,84,7],[84,8,84,10],[84,11,84,12],[76,3,76,5],[76,7,76,9],[76,10,76,12],[77,2,81,6],[77,7,77,9],[77,10,77,12],[78,7,78,9],[78,10,78,12],[79,7,79,12],[80,7,81,9],[73,10,73,12],[74,3,74,5],[74,7,74,9],[74,10,74,12]]}
[]
[null,"Nome da empresa",null,null,"Nome fantasia LTDA",null,null,"Cargo do funcionário",null,null,null,"Padeiro"]
[null,"CNPJ",null,null,123456789000189,null,null,"Salário do funcionário",null,null,null,1200]
[null,"Código do funcionário",null,null,105]
[null,"Nome do funcionário",null,null,"João de Jesus",null,null,"Referente à",null,null,null,"Abril/2018"]
[null,"Código CBO",null,null,"7232-40"]
[]
[]
[null,null,{"$f":"E2","v":"Nome fantasia LTDA"},null,null,null,"Recibo de Pagamento de Salário",null,null,null,null,null,null,null,"DECLARO TER RECEBIDO  A I MPOTÂNCIA LÍQUIDA DISCRIMINADA NESTE RECIBO\n"]
[null,null,null,null,null,null,null,null,null,null,null,null,null,null,null,"________________________________"]
[null,null,"CNPJ:",{"$f":"E3","v":123456789000189},null,null,{"$f":"L5","v":"Abril/2018"},null,null,null,null,null,null,null,null,null,"ASSINATURA DO FUNCIONÁRIO"]
[]
[null,null,"Código","Nome do Funcionário",null,null,"CBO","Emp.","Local","Depto.","Setor","Seção","Fl."]
[null,null,{"$f":"CodFuncionario","v":1},{"$f":"IF(MAX(BaseFuncionarios!A:A)=0,\"Nenhum funcionário cadastrado\",IFERROR(VLOOKUP(C14,BaseFuncionarios!A:C,2,0),\"Não encontrado\"))","v":"João"},null,null,{"$f":"E6&\" - \"&L2","v":"7232-40 - Padeiro"}]
[]
[null,null,"Cód.","Descrição",null,null,"Referência","Vencimentos",null,null,"Descontos"]
[]
[null,null,null,null,null,null,null,{"$f":"IF(C18=1,C44,\"\")","v":""}]
[]
[]
[]
[]
[]
[]
[]
[]
[]
[]
[]
[]
[null,null,null,null,null,null,null,null,null,null,null,null,null,null,null,"_____/_____/_____","DATA"]
[]
[]
[]
[]
[]
[null,null,null,null,null,null,null,"Total de Vencimentos",null,null,"Total de Descontos"]
[null,null,null,null,null,null,null,{"$f":"SUM(H18:J35)","v":0},null,null,{"$f":"SUM(K18:M35)","v":0}]
[]
[null,null,null,null,null,null,null,"Valor Líquido",null,null,{"$f":"H38-K38","v":0}]
[]
[]
[null,null,"Salário Base",null,"Sal. Contr. INSS","Base Cálc. FGTS","FGTS do Mês",null,"Base Cálc. IRRF",null,null,"Faixa IRRF"]
[null,null,{"$f":"IFERROR(VLOOKUP(C14,BaseFuncionarios!A:F,5,0),0)","v":1837},null,{"$f":"C44","v":1837},{"$f":"E44","v":1837},{"$f":"C44*8%","v":146.96},null,2225,null,null,2]
[]
[]
[null,"- - - - - - - - - - - - - - - - - - - - - - - - - - - - - - - - - - - - - - - - - - - - - - - - - - - - - - - - - - - - Cortar aqui - - - - - - - - - - - - - - - - - - - - - - - - - - - - - - - - - - - - - - - - - - - - - - - - - - - - - - - - - - - -"]
[]
[]
[null,null,{"$f":"IF(C9=\"\",\"\",C9)","v":"Nome fantasia LTDA"},null,null,null,"Recibo de Pagamento de Salário",null,null,null,null,null,null,null,"DECLARO TER RECEBIDO  A I MPOTÂNCIA LÍQUIDA DISCRIMINADA NESTE RECIBO\n"]
[null,null,null,null,null,null,null,null,null,null,null,null,null,null,null,"________________________________"]
[null,null,{"$f":"IF(C11=\"\",\"\",C11)","v":"CNPJ:"},null,null,null,{"$f":"IF(G11=\"\",\"\",G11)","v":"Abril/2018"},null,null,null,null,null,null,null,null,null,"ASSINATURA DO FUNCIONÁRIO"]
[]
[null,null,"Código","Nome do Funcionário",null,null,"CBO","Emp.","Local","Depto.","Setor","Seção","Fl."]
[null,null,{"$f":"IF(C14=\"\",\"\",C14)","v":1},{"$f":"IF(D14=\"\",\"\",D14)","v":"João"},null,null,{"$f":"IF(G14=\"\",\"\",G14)","v":"7232-40 - Padeiro"}]
[]
[null,null,"Cód.","Descrição",null,null,"Referência","Vencimentos",null,null,"Descontos"]
[]
[null,null,{"$f":"IF(C18=\"\",\"\",C18)","v":""},{"$f":"IF(D18=\"\",\"\",D18)","v":""},null,null,{"$f":"IF(G18=\"\",\"\",G18)","v":""},{"$f":"IF(H18=\"\",\"\",H18)","v":""},null,null,{"$f":"IF(K18=\"\",\"\",K18)","v":""}]
[null,null,{"$f":"IF(C19=\"\",\"\",C19)","v":""},"",null,null,{"$f":"IF(G19=\"\",\"\",G19)","v":""},"",null,null,{"$f":"IF(K19=\"\",\"\",K19)","v":""}]
[null,null,"","",null,null,"","",null,null,{"$f":"IF(K20=\"\",\"\",K20)","v":""}]
[null,null,"","",null,null,"","",null,null,{"$f":"IF(K21=\"\",\"\",K21)","v":""}]
[null,null,"","",null,null,"","",null,null,{"$f":"IF(K22=\"\",\"\",K22)","v":""}]
[null,null,"","",null,null,"","",null,null,""]
[null,null,"","",null,null,"","",null,null,""]
[null,null,"","",null,null,"","",null,null,""]
[null,null,"","",null,null,"","",null,null,""]
[null,null,"","",null,null,"","",null,null,""]
[null,null,"","",null,null,"","",null,null,""]
[null,null,"","",null,null,"","",null,null,""]
[null,null,"","",null,null,"","",null,null,""]
[null,null,"","",null,null,"","",null,null,"",null,null,null,null,"_____/_____/_____","DATA"]
[null,null,"","",null,null,"","",null,null,""]
[null,null,"","",null,null,"","",null,null,""]
[null,null,"","",null,null,"","",null,null,""]
[null,null,{"$f":"IF(C35=\"\",\"\",C35)","v":""},{"$f":"IF(D35=\"\",\"\",D35)","v":""},null,null,{"$f":"IF(G35=\"\",\"\",G35)","v":""},{"$f":"IF(H35=\"\",\"\",H35)","v":""},null,null,""]
[]
[null,null,null,null,null,null,null,"Total de Vencimentos",null,null,"Total de Descontos"]
[null,null,null,null,null,null,null,{"$f":"IF(H38=\"\",\"\",H38)","v":0},null,null,{"$f":"IF(K38=\"\",\"\",K38)","v":0}]
[]
[null,null,null,null,null,null,null,"Valor Líquido",null,null,{"$f":"IF(K40=\"\",\"\",K40)","v":0}]
[]
[]
[null,null,"Salário Base",null,"Sal. Contr. INSS","Base Cálc. FGTS","FGTS do Mês",null,"Base Cálc. IRRF",null,null,"Faixa IRRF"]
[null,null,{"$f":"IF(C44=\"\",\"\",C44)","v":1837},null,{"$f":"IF(E44=\"\",\"\",E44)","v":1837},{"$f":"IF(F44=\"\",\"\",F44)","v":1837},{"$f":"IF(G44=\"\",\"\",G44)","v":146.96},null,{"$f":"IF(I44=\"\",\"\",I44)","v":2225},null,null,{"$f":"IF(L44=\"\",\"\",L44)","v":2}]

{"sheet":"Modelo","index":6,"n_rows":79,"n_cols":17,"rows_kept":79,"cut":false,"hidden":true,"merged":[[2,2,3,5],[2,6,3,12],[2,14,37,14],[3,15,21,15],[4,3,4,5],[4,6,4,12],[10,7,10,9],[10,10,10,12],[11,3,11,5],[11,7,11,9],[11,10,11,12],[12,3,12,5],[12,7,12,9],[12,10,12,12],[19,10,19,12],[20,3,20,5],[20,7,20,9],[20,10,20,12],[17,3,17,5],[17,7,17,9],[17,10,17,12],[18,3,18,5],[18,7,18,9],[18,10,18,12],[4,16,21,16],[5,2,5,12],[6,3,6,5],[7,3,7,5],[7,6,7,12],[8,2,8,12],[9,3,9,5],[9,7,9,9],[9,10,9,12],[10,3,10,5],[15,3,15,5],[15,7,15,9],[15,10,15,12],[16,3,16,5],[16,7,16,9],[16,10,16,12],[13,3,13,5],[13,7,13,9],[13,10,13,12],[14,3,14,5],[14,7,14,9],[14,10,14,12],[19,3,19,5],[19,7,19,9],[23,3,23,5],[23,7,23,9],[23,10,23,12],[24,3,24,5],[24,7,24,9],[24,10,24,12],[21,3,21,5],[21,7,21,9],[21,10,21,12],[22,3,22,5],[22,7,22,9],[22,10,22,12],[27,10,27,12],[28,3,28,5],[28,7,28,9],[28,10,28,12],[29,3,29,5],[29,7,29,9],[29,10,29,12],[24,15,36,15],[24,16,36,16],[25,3,25,5],[25,7,25,9],[25,10,25,12],[26,3,26,5],[26,7,26,9],[26,10,26,12],[27,3,27,5],[27,7,27,9],[36,2,36,3],[36,6,36,7],[36,8,36,10],[36,11,36,12],[37,2,37,3],[37,6,37,7],[37,8,37,10],[37,11,37,12],[30,2,34,6],[30,7,30,9],[30,10,30,12],[31,7,31,9],[31,10,31,12],[32,7,32,12],[33,7,34,9],[33,10,34,12],[48,3,48,5],[48,6,48,12],[49,2,49,12],[50,3,50,5],[50,7,50,9],[50,10,50,12],[40,1,40,17],[43,2,44,5],[43,6,44,12],[43,14,78,14],[44,15,62,15],[45,3,45,5],[45,6,45,12],[45,16,62,16],[46,2,46,12],[47,3,47,5],[53,3,53,5],[53,7,53,9],[53,10,53,12],[54,3,54,5],[54,7,54,9],[54,10,54,12],[51,3,51,5],[51,7,51,9],[51,10,51,12],[52,3,52,5],[52,7,52,9],[52,10,52,12],[57,3,57,5],[57,7,57,9],[57,10,57,12],[58,3,58,5],[58,7,58,9],[58,10,58,12],[55,3,55,5],[55,7,55,9],[55,10,55,12],[56,3,56,5],[56,7,56,9],[56,10,56,12],[61,3,61,5],[61,7,61,9],[61,10,61,12],[62,3,62,5],[62,7,62,9],[62,10,62,12],[59,3,59,5],[59,7,59,9],[59,10,59,12],[60,3,60,5],[60,7,60,9],[60,10,60,12],[65,15,77,15],[65,16,77,16],[66,3,66,5],[66,7,66,9],[66,10,66,12],[67,3,67,5],[67,7,67,9],[63,3,63,5],[63,7,63,9],[63,10,63,12],[64,3,64,5],[64,7,64,9],[64,10,64,12],[67,10,67,12],[68,3,68,5],[68,7,68,9],[68,10,68,12],[69,3,69,5],[69,7,69,9],[69,10,69,12],[65,3,65,5],[65,7,65,9],[65,10,65,12],[70,3,70,5],[77,2,77,3],[77,6,77,7],[77,8,77,10],[77,11,77,12],[78,2,78,3],[78,6,78,7],[78,8,78,10],[78,11,78,12],[70,7,70,9],[70,10,70,12],[71,2,75,6],[71,7,71,9],[71,10,71,12],[72,7,72,9],[72,10,72,12],[73,7,73,12],[74,7,75,9],[74,10,75,12]]}
[]
[]
[null,null,null,null,null,null,"Recibo de Pagamento de Salário",null,null,null,null,null,null,null,"DECLARO TER RECEBIDO  A I MPOTÂNCIA LÍQUIDA DISCRIMINADA NESTE RECIBO\n"]
[null,null,null,null,null,null,null,null,null,null,null,null,null,null,null,"________________________________"]
[null,null,null,null,null,null,null,null,null,null,null,null,null,null,null,null,"ASSINATURA DO FUNCIONÁRIO"]
[]
[null,null,"Código","Nome do Funcionário",null,null,"CBO","Emp.","Local","Depto.","Setor","Seção","Fl."]
[]
[]
[null,null,"Cód.","Descrição",null,null,"Referência","Vencimentos",null,null,"Descontos"]
[]
[]
[]
[]
[]
[]
[]
[]
[]
[]
[]
[]
[]
[]
[null,null,null,null,null,null,null,null,null,null,null,null,null,null,null,"_____/_____/_____","DATA"]
[]
[]
[]
[]
[]
[null,null,null,null,null,null,null,"Total de Vencimentos",null,null,"Total de Descontos"]
[null,null,null,null,null,null,null,{"$f":"SUM(H12:J29)","v":0},null,null,{"$f":"SUM(K12:M29)","v":0}]
[]
[null,null,null,null,null,null,null,"Valor Líquido",null,null,{"$f":"H32-K32","v":0}]
[]
[]
[null,null,"Salário Base",null,"Sal. Contr. INSS","Base Cálc. FGTS","FGTS do Mês",null,"Base Cálc. IRRF",null,null,"Faixa IRRF"]
[null,null,{"$f":"IFERROR(VLOOKUP(C8,BaseFuncionarios!A:F,5,0),0)","v":0},null,{"$f":"C38","v":0},{"$f":"E38","v":0},{"$f":"C38*8%","v":0},null,2225,null,null,2]
[]
[]
[null,"- - - - - - - - - - - - - - - - - - - - - - - - - - - - - - - - - - - - - - - - - - - - - - - - - - - - - - - - - - - - Cortar aqui - - - - - - - - - - - - - - - - - - - - - - - - - - - - - - - - - - - - - - - - - - - - - - - - - - - - - - - - - - - -"]
[]
[]
[null,null,{"$f":"IF(C3=\"\",\"\",C3)","v":""},null,null,null,"Recibo de Pagamento de Salário",null,null,null,null,null,null,null,"DECLARO TER RECEBIDO  A I MPOTÂNCIA LÍQUIDA DISCRIMINADA NESTE RECIBO\n"]
[null,null,null,null,null,null,null,null,null,null,null,null,null,null,null,"________________________________"]
[null,null,{"$f":"IF(C5=\"\",\"\",C5)","v":""},null,null,null,{"$f":"IF(G5=\"\",\"\",G5)","v":""},null,null,null,null,null,null,null,null,null,"ASSINATURA DO FUNCIONÁRIO"]
[]
[null,null,"Código","Nome do Funcionário",null,null,"CBO","Emp.","Local","Depto.","Setor","Seção","Fl."]
[null,null,{"$f":"IF(C8=\"\",\"\",C8)","v":""},{"$f":"IF(D8=\"\",\"\",D8)","v":""},null,null,{"$f":"IF(G8=\"\",\"\",G8)","v":""}]
[]
[null,null,"Cód.","Descrição",null,null,"Referência","Vencimentos",null,null,"Descontos"]
[]
[null,null,{"$f":"IF(C12=\"\",\"\",C12)","v":""}]
[null,null,{"$f":"IF(C13=\"\",\"\",C13)","v":""}]
[null,null,""]
[null,null,""]
[null,null,""]
[null,null,""]
[null,null,""]
[null,null,""]
[null,null,""]
[null,null,""]
[null,null,""]
[null,null,""]
[null,null,""]
[null,null,"",null,null,null,null,null,null,null,null,null,null,null,null,"_____/_____/_____","DATA"]
[null,null,""]
[null,null,""]
[null,null,""]
[null,null,{"$f":"IF(C29=\"\",\"\",C29)","v":""}]
[]
[null,null,null,null,null,null,null,"Total de Vencimentos",null,null,"Total de Descontos"]
[null,null,null,null,null,null,null,{"$f":"IF(H32=\"\",\"\",H32)","v":0},null,null,{"$f":"IF(K32=\"\",\"\",K32)","v":0}]
[]
[null,null,null,null,null,null,null,"Valor Líquido",null,null,{"$f":"IF(K34=\"\",\"\",K34)","v":0}]
[]
[]
[null,null,"Salário Base",null,"Sal. Contr. INSS","Base Cálc. FGTS","FGTS do Mês",null,"Base Cálc. IRRF",null,null,"Faixa IRRF"]
[null,null,{"$f":"IF(C38=\"\",\"\",C38)","v":0},null,{"$f":"IF(E38=\"\",\"\",E38)","v":0},{"$f":"IF(F38=\"\",\"\",F38)","v":0},{"$f":"IF(G38=\"\",\"\",G38)","v":0},null,{"$f":"IF(I38=\"\",\"\",I38)","v":2225},null,null,{"$f":"IF(L38=\"\",\"\",L38)","v":2}]

{"sheet":"CBO","index":7,"n_rows":2627,"n_cols":8,"rows_kept":2627,"cut":false,"hidden":true,"merged":[]}
["CBO","Letra","TITULO",null,"LETRA","I",{"$f":"VLOOKUP(F1,B2:C2627,2,0)","v":"Identificador florestal"},"Instrutor de cursos livres"]
["8485-05",{"$f":"LEFT(C2,1)","v":"A"},"Abatedor",null,null,null,{"$f":"INDIRECT(\"A\"&MATCH(escolha,cbo,0))","v":"3331-05"}]
["7643-05",{"$f":"LEFT(C3,1)","v":"A"},"Acabador de calçados"]
["7663-05","A","Acabador de embalagens (flexíveis e cartotécnicas)"]
["7161-05","A","Acabador de superfícies de concreto"]
["8485-10","A","Açougueiro"]
["3762-05","A","Acrobata"]
["6230-05","A","Adestrador de animais"]
["2521-05","A","Administrador"]
["2123-05","A","Administrador de banco de dados"]
["5101-10","A","Administrador de edifícios"]
["2525-05","A","Administrador de fundos e carteiras de investimento"]
["2123-10","A","Administrador de redes"]
["2123-15","A","Administrador de sistemas operacionais"]
["2123-20","A","Administrador em segurança da informação"]
["2410-05","A","Advogado"]
["2410-30","A","Advogado (áreas especiais)"]
["2410-15","A","Advogado (direito civil)"]
["2410-35","A","Advogado (direito do trabalho)"]
["2410-25","A","Advogado (direito penal)"]
["2410-20","A","Advogado (direito público)"]
["2412-05","A","Advogado da união"]
["2410-10","A","Advogado de empresa"]
["7213-05","A","Afiador de cardas"]
["7213-10","A","Afiador de cutelaria"]
["7213-15","A","Afiador de ferramentas"]
["7213-20","A","Afiador de serras"]
["7421-05","A","Afinador de instrumentos musicais"]
["3421-20","A","Afretador"]
["2531-40","A","Agenciador de propaganda"]
["5151-05","A","Agente comunitário de saúde"]
["5153-10","A","Agente de ação social"]
["5151-40","A","Agente de combate às endemias"]
["3522-05","A","Agente de defesa ambiental"]
["3524-05","A","Agente de direitos autorais"]
["3424-05","A","Agente de estação (ferrovia e metrô)"]
["2543-10","A","Agente de higiene e segurança"]
["3519-05","A","Agente de inteligência"]
["2151-05","A","Agente de manobra e docagem"]
["4110-50","A","Agente de microcrédito"]
["7831-05","A","Agente de pátio"]
["5172-05","A","Agente de polícia federal"]
["5173-05","A","Agente de proteção de aeroporto"]
["3425-50","A","Agente de proteção de aviação civil"]
["3513-15","A","Agente de recrutamento e seleção"]
["3522-10","A","Agente de saúde pública"]
["5173-10","A","Agente de segurança"]
["5173-15","A","Agente de segurança penitenciária"]
["5172-20","A","Agente de trânsito"]
["3541-20","A","Agente de vendas de serviços"]
["3548-15","A","Agente de viagem"]
["3523-10","A","Agente fiscal de qualidade"]
["3523-15","A","Agente fiscal metrológico"]
["3523-20","A","Agente fiscal têxtil"]
["5165-05","A","Agente funerário"]
["5151-30","A","Agente indígena de saneamento"]
["5151-25","A","Agente indígena de saúde"]
["3519-10","A","Agente técnico de inteligência"]
["6326-15","A","Ajudante de carvoaria"]
["7631-25","A","Ajudante de confecção"]
["3422-05","A","Ajudante de despachante aduaneiro"]
["7832-25","A","Ajudante de motorista"]
["7411-05","A","Ajustador de instrumentos de precisão"]
["7250-05","A","Ajustador ferramenteiro"]
["7250-10","A","Ajustador mecânico"]
["7250-15","A","Ajustador mecânico (usinagem em bancada e em máquinas-ferramentas)"]
["7250-20",{"$f":"LEFT(C67,1)","v":"A"},"Ajustador mecânico em bancada"]
["7250-25","A","Ajustador naval (reparo e construção)"]
["8417-05","A","Alambiqueiro"]
["7630-05","A","Alfaiate"]
["7842-05","A","Alimentador de linha de produção"]
["9921-05","A","Alinhador de pneus"]
["4141-05","A","Almoxarife"]
["7614-05","A","Alvejador (tecidos)"]
["7832-40","A","Amarrador e desamarrado de embarcações"]
["7111-05","A","Amostrador de minérios"]
["2525-10","A","Analista de câmbio"]
["2525-15","A","Analista de cobrança (instituições financeiras)"]
["2525-25","A","Analista de crédito (instituições financeiras)"]
["2525-30","A","Analista de crédito rural"]
["3422-15","A","Analista de desembaraço aduaneiro"]
["2124-05","A","Analista de desenvolvimento de sistemas"]
["3543-05","A","Analista de exportação e importação"]
["4131-05","A","Analista de folha de pagamento"]
["2527-25","A","Analista de gestão de estoque"]
["2612-15","A","Analista de informações (pesquisador de informações de rede)"]
["2525-35","A","Analista de leasing"]
["2527-15","A","Analista de logistica"]
["1423-30","A","Analista de negócios"]
["2527-05","A","Analista de pcp (programação e controle da produção)"]
["1423-35","A","Analista de pesquisa de mercado"]
["2527-10","A","Analista de planejamento de materias"]
["1115-10","A","Analista de planejamento e orçamento - apo"]
["2525-40","A","Analista de produtos bancários"]
["2527-20","A","Analista de projetos logisticos"]
["2524-05","A","Analista de recursos humanos"]
["2124-10","A","Analista de redes e de comunicação de dados"]
["3517-05","A","Analista de seguros (técnico)"]
["3517-10","A","Analista de sinistros"]
["2124-15","A","Analista de sistemas de automação"]
["2124-20","A","Analista de suporte computacional"]
["3421-05","A","Analista de transporte em comércio exterior"]
["2525-45","A","Analista financeiro (instituições financeiras)"]
["3741-55","A","Analista musical"]
["2617-05","Â","Âncora de mídias audiovisuais"]
["2511-05","A","Antropólogo"]
["6134-05","A","Apicultor"]
["7157-05","A","Aplicador de asfalto impermeabilizante (coberturas)"]
["4242-10","A","Aplicador de provas (concurso, avaliação,exame)"]
["7522-05","A","Aplicador serigráfico em vidros"]
["4142-05","A","Apontador de mão-de-obra"]
["4142-10","A","Apontador de produção"]
["3763-25","A","Apresentador de circo"]
["3763-05","A","Apresentador de eventos"]
["3763-10","A","Apresentador de festas populares"]
["3763-15","A","Apresentador de programas de rádio"]
["3763-20","A","Apresentador de programas de televisão"]
["3772-10","Á","Árbitro de atletismo"]
["3772-15","Á","Árbitro de basquete"]
["3772-20","Á","Árbitro de futebol"]
["3772-25","Á","Árbitro de futebol de salão"]
["3772-30","Á","Árbitro de judô"]
["3772-35","Á","Árbitro de karatê"]
["3772-40","Á","Árbitro de poló aquático"]
["3772-45","Á","Árbitro de vôlei"]
["3772-05","Á","Árbitro desportivo"]
["7153-05","A","Armador de estrutura de concreto"]
["7153-15","A","Armador de estrutura de concreto armado"]
["4141-10","A","Armazenista"]
["3250-10","A","Aromista"]
["2511-10",{"$f":"LEFT(C131,1)","v":"A"},"Arqueólogo"]
["2141-05","A","Arquiteto de edificações"]
["2141-10","A","Arquiteto de interiores"]
["2141-15","A","Arquiteto de patrimônio"]
["2141-20","A","Arquiteto paisagista"]
["2141-25","A","Arquiteto urbanista"]
["2613-05","A","Arquivista"]
["4151-05","A","Arquivista de documentos"]
["2611-05","A","Arquivista pesquisador (jornalismo)"]
["7633-05","A","Arrematadeira"]
["7911-05","A","Artesão bordador"]
["7911-10","A","Artesão ceramista"]
["7911-15","A","Artesão com material reciclável"]
["7911-20","A","Artesão confeccionador de biojóias e ecojóias"]
["7911-50","A","Artesão crocheteiro"]
["7911-25","A","Artesão do couro"]
["7911-30","A","Artesão escultor"]
["7521-05","A","Artesão modelador (vidros)"]
["7911-35","A","Artesão moveleiro (exceto reciclado)"]
["7911-60","A","Artesão rendeiro"]
["7911-40","A","Artesão tecelão"]
["7911-45","A","Artesão trançador"]
["7911-55","A","Artesão tricoteiro"]
["2263-10","A","Arteterapeuta"]
["7683-05","A","Artífice do couro"]
["2624-05","A","Artista (artes visuais)"]
["3762-10","A","Artista aéreo"]
["3762-15","A","Artista de circo (outros)"]
["5141-05","A","Ascensorista"]
["7241-05","A","Assentador de canalização (edificações)"]
["7165-10","A","Assentador de revestimentos cerâmicos"]
["2611-10","A","Assessor de imprensa"]
["4110-10","A","Assistente administrativo"]
["3517-15","A","Assistente comercial de seguros"]
["2628-05","A","Assistente de coreografia"]
["2619-10","A","Assistente de direção (tv)"]
["8181-05","A","Assistente de laboratório industrial"]
["3731-45","A","Assistente de operações audiovisuais"]
["3541-25","A","Assistente de vendas"]
["2516-05","A","Assistente social"]
["3517-20","A","Assistente técnico de seguros"]
["7165-05","A","Assoalhador"]
["5167-05","A","Astrólogo"]
["2133-05","A","Astrônomo"]
["4211-05","A","Atendente comercial (agência postal)"]
["4132-05","A","Atendente de agência"]
["5151-10","A","Atendente de enfermagem"]
["5211-30","A","Atendente de farmácia - balconista"]
["4110-15","A","Atendente de judiciário"]
["5134-35","A","Atendente de lanchonete"]
["5163-40","A","Atendente de lavanderia"]
["5211-40","A","Atendente de lojas e mercados"]
["3771-05","A","Atleta profissional (outras modalidades)"]
["3771-10","A","Atleta profissional de futebol"]
["3771-15","A","Atleta profissional de golfe"]
["3771-20","A","Atleta profissional de luta"]
["3771-25","A","Atleta profissional de tênis"]
["2625-05","A","Ator"]
["2111-05","A","Atuário"]
["2614-30","A","Audiodescritor"]
["2522-05","A","Auditor (contadores e afins)"]
["2542-05","A","Auditor-fiscal da previdência social"]
["2541-05","A","Auditor-fiscal da receita federal"]
["2543-05","A","Auditor-fiscal do trabalho"]
["2615-05",{"$f":"LEFT(C195,1)","v":"A"},"Autor-roteirista"]
["5152-05","A","Auxiliar de banco de sangue"]
["3711-05","A","Auxiliar de biblioteca"]
["4110-25","A","Auxiliar de cartório"]
["4131-10","A","Auxiliar de contabilidade"]
["7631-05","A","Auxiliar de corte (preparação da confecção de roupas)"]
["3311-10","A","Auxiliar de desenvolvimento infantil"]
["3222-30","A","Auxiliar de enfermagem"]
["3222-50","A","Auxiliar de enfermagem da estratégia de saúde da família"]
["3222-35","A","Auxiliar de enfermagem do trabalho"]
["4110-05","A","Auxiliar de escritório"]
["4110-35","A","Auxiliar de estatística"]
["5152-10","A","Auxiliar de farmácia de manipulação"]
["4131-15","A","Auxiliar de faturamento"]
["4110-20","A","Auxiliar de judiciário"]
["5152-15","A","Auxiliar de laboratório de análises clínicas"]
["8181-10","A","Auxiliar de laboratório de análises físico-químicas"]
["5152-20","A","Auxiliar de laboratório de imunobiológicos"]
["5163-45","A","Auxiliar de lavanderia"]
["4141-40","A","Auxiliar de logistica"]
["5143-10","A","Auxiliar de manutenção predial"]
["7826-25","A","Auxiliar de maquinista de trem"]
["4110-30","A","Auxiliar de pessoal"]
["8421-20","A","Auxiliar de processamento de fumo"]
["5152-25","A","Auxiliar de produção farmacêutica"]
["3224-20","A","Auxiliar de prótese dentária"]
["7664-20","A","Auxiliar de radiologia (revelação fotográfica)"]
["3222-40","A","Auxiliar de saúde (navegação marítima)"]
["4110-40","A","Auxiliar de seguros"]
["4110-45","A","Auxiliar de serviços de importação e exportação"]
["3514-30","A","Auxiliar de serviços jurídicos"]
["5193-05","A","Auxiliar de veterinário"]
["3224-15","A","Auxiliar em saúde bucal"]
["3224-30","A","Auxiliar em saúde bucal da estratégia de saúde da família"]
["9922-25","A","Auxiliar geral de conservação de vias permanentes (exceto trilhos)"]
["5135-05","A","Auxiliar nos serviços de alimentação"]
["3412-50","A","Auxiliar técnico de sinalização nautica"]
["3251-05","A","Auxiliar técnico em laboratório de farmácia"]
["3544-15","A","Avaliador de bens móveis"]
["3544-10","A","Avaliador de imóveis"]
["3524-10","A","Avaliador de produtos do meio de comunicação"]
["2241-05","A","Avaliador físico"]
["6133-05","A","Avicultor"]
["5162-05","B","Babá"]
["5243-15","B","Baiana de acarajé"]
["2628-10","B","Bailarino (exceto danças populares)"]
["9921-10","B","Balanceador"]
["4141-15","B","Balanceiro"]
["8117-05","B","Bamburista"]
["5193-15","B","Banhista de animais domésticos"]
["5161-05","B","Barbeiro"]
["5134-40","B","Barista"]
["5134-20","B","Barman"]
["7511-05","B","Bate-folha a  máquina"]
["2612-05","B","Bibliotecário"]
["5112-20","B","Bilheteiro (estações de metrô, ferroviárias e assemelhadas)"]
["4211-10","B","Bilheteiro de transportes coletivos"]
["4211-15","B","Bilheteiro no serviço de diversões"]
["2011-05","B","Bioengenheiro"]
["2211-05","B","Biólogo"]
["2212-05","B","Biomédico"]
["2011-10","B","Biotecnologista"]
["7832-30","B","Bloqueiro (trabalhador portuário)"]
["7311-65","B","Bobinador eletricista, à mão"]
["7311-70",{"$f":"LEFT(C259,1)","v":"B"},"Bobinador eletricista, à máquina"]
["7828-15","B","Boiadeiro"]
["5171-10","B","Bombeiro civil"]
["5171-05","B","Bombeiro de aeródromo"]
["7650-15","B","Boneleiro"]
["7682-05","B","Bordador, a  mão"]
["7633-10","B","Bordador, à máquina"]
["9921-15","B","Borracheiro"]
["7243-05","B","Brasador"]
["5161-10","C","Cabeleireiro"]
["7224-05","C","Cableador"]
["0312-05","C","Cabo bombeiro militar"]
["0212-05","C","Cabo da polícia militar"]
["1130-05","C","Cacique"]
["6126-05","C","Cafeicultor"]
["4132-10","C","Caixa de banco"]
["7166-05","C","Calafetador"]
["8117-10","C","Calandrista de borracha"]
["8321-05","C","Calandrista de papel"]
["7152-05","C","Calceteiro"]
["7244-05","C","Caldeireiro (chapas de cobre)"]
["7244-10","C","Caldeireiro (chapas de ferro e aço)"]
["5133-05","C","Camareira de teatro"]
["5133-10","C","Camareira de televisão"]
["5133-15","C","Camareiro  de hotel"]
["5133-20","C","Camareiro de embarcações"]
["7825-05","C","Caminhoneiro autônomo (rotas regionais e internacionais)"]
["7111-10","C","Canteiro"]
["0302-05","C","Capitão bombeiro militar"]
["0202-05","C","Capitão da polícia militar"]
["2151-10","C","Capitão de manobra da marinha mercante"]
["6326-10","C","Carbonizador"]
["7155-05","C","Carpinteiro"]
["7155-15","C","Carpinteiro (cenários)"]
["7155-10","C","Carpinteiro (esquadrias)"]
["7155-20","C","Carpinteiro (mineração)"]
["7155-30","C","Carpinteiro (telhados)"]
["7772-05","C","Carpinteiro de carretas"]
["7772-10","C","Carpinteiro de carrocerias"]
["7155-35","C","Carpinteiro de fôrmas para concreto"]
["7155-25","C","Carpinteiro de obras"]
["7155-40","C","Carpinteiro de obras civis de arte (pontes, túneis, barragens)"]
["7771-05","C","Carpinteiro naval (construção de pequenas embarcações)"]
["7771-10","C","Carpinteiro naval (embarcações)"]
["7771-15","C","Carpinteiro naval (estaleiros)"]
["7832-05","C","Carregador (aeronaves)"]
["7832-10","C","Carregador (armazém)"]
["7832-15","C","Carregador (veículos de transportes terrestres)"]
["5199-05","C","Cartazeiro"]
["4152-05","C","Carteiro"]
["8332-05","C","Cartonageiro, a mão (caixas de papelão)"]
["8331-05","C","Cartonageiro, a máquina"]
["6326-05","C","Carvoeiro"]
["6220-05","C","Caseiro (agricultura)"]
["6230-25","C","Casqueador de animais"]
["6310-05","C","Catador de caranguejos e siris"]
["6310-10","C","Catador de mariscos"]
["5192-05","C","Catador de material reciclável"]
["8422-25","C","Celofanista na fabricação de charutos"]
["7231-05","C","Cementador de metais"]
["2623-05","C","Cenógrafo carnavalesco e festas populares"]
["2623-10","C","Cenógrafo de cinema"]
["2623-15","C","Cenógrafo de eventos"]
["2623-20","C","Cenógrafo de teatro"]
["2623-25",{"$f":"LEFT(C323,1)","v":"C"},"Cenógrafo de tv"]
["3742-05","C","Cenotécnico (cinema, vídeo, televisão, teatro e espetáculos)"]
["7523-05","C","Ceramista"]
["7523-10","C","Ceramista (torno de pedal e motor)"]
["7523-15","C","Ceramista (torno semi-automático)"]
["7523-20","C","Ceramista modelador"]
["7523-25","C","Ceramista moldador"]
["7523-30","C","Ceramista prensador"]
["3548-25","C","Cerimonialista"]
["7682-10","C","Cerzidor"]
["7764-05","C","Cesteiro"]
["7244-15","C","Chapeador"]
["7244-30","C","Chapeador de aeronaves"]
["7244-20","C","Chapeador de carrocerias metálicas (fabricação)"]
["7244-25","C","Chapeador naval"]
["7681-25","C","Chapeleiro (chapéus de palha)"]
["7650-10","C","Chapeleiro de senhoras"]
["8422-30","C","Charuteiro a mão"]
["5231-15","C","Chaveiro"]
["5101-30","C","Chefe de bar"]
["8401-20","C","Chefe de confeitaria"]
["3511-10","C","Chefe de contabilidade (técnico)"]
["2711-05","C","Chefe de cozinha"]
["3426-05","C","Chefe de estação portuária"]
["5101-20","C","Chefe de portaria de hotel"]
["3423-05","C","Chefe de serviço de transporte rodoviário (passageiros e cargas)"]
["3532-35","C","Chefe de serviços bancários"]
["5136-05","C","Churrasqueiro"]
["5191-05","C","Ciclista mensageiro"]
["2511-15","C","Cientista político"]
["8311-05","C","Cilindreiro na preparação de pasta para fabricação de papel"]
["8131-05","C","Cilindrista (petroquímica e afins)"]
["3163-40","C","Cimentador (poços de petróleo)"]
["2232-04","C","Cirurgião dentista - auditor"]
["2232-08","C","Cirurgião dentista - clínico geral"]
["2232-80","C","Cirurgião dentista - dentística"]
["2232-84","C","Cirurgião dentista - disfunção temporomandibular e dor orofacial"]
["2232-12","C","Cirurgião dentista - endodontista"]
["2232-16","C","Cirurgião dentista - epidemiologista"]
["2232-20","C","Cirurgião dentista - estomatologista"]
["2232-24","C","Cirurgião dentista - implantodontista"]
["2232-28","C","Cirurgião dentista - odontogeriatra"]
["2232-76","C","Cirurgião dentista - odontologia do trabalho"]
["2232-88","C","Cirurgião dentista - odontologia para pacientes com necessidades especiais"]
["2232-32","C","Cirurgião dentista - odontologista legal"]
["2232-36","C","Cirurgião dentista - odontopediatra"]
["2232-40","C","Cirurgião dentista - ortopedista e ortodontista"]
["2232-44","C","Cirurgião dentista - patologista bucal"]
["2232-48","C","Cirurgião dentista - periodontista"]
["2232-52","C","Cirurgião dentista - protesiólogo bucomaxilofacial"]
["2232-56","C","Cirurgião dentista - protesista"]
["2232-60","C","Cirurgião dentista - radiologista"]
["2232-64","C","Cirurgião dentista - reabilitador oral"]
["2232-68","C","Cirurgião dentista - traumatologista bucomaxilofacial"]
["2232-72","C","Cirurgião dentista de saúde coletiva"]
["2232-93","C","Cirurgião-dentista da estratégia de saúde da família"]
["3242-15","C","Citotécnico"]
["8422-15","C","Classificador de charutos"]
["7622-10","C","Classificador de couros"]
["7611-05","C","Classificador de fibras têxteis"]
["8421-15","C","Classificador de fumo"]
["8484-25","C","Classificador de grãos"]
["7721-05","C","Classificador de madeira"]
["7621-05","C","Classificador de peles"]
["6321-05",{"$f":"LEFT(C387,1)","v":"C"},"Classificador de toras"]
["8233-05","C","Classificador e empilhador de tijolos refratários"]
["5112-15","C","Cobrador de transportes coletivos (exceto trem)"]
["4213-05","C","Cobrador externo"]
["4213-10","C","Cobrador interno"]
["4151-15","C","Codificador de dados"]
["7652-05","C","Colchoeiro (confecção de colchões)"]
["3712-05","C","Colecionador de selos e moedas"]
["5142-05","C","Coletor de lixo domiciliar"]
["5142-30","C","Coletor de resíduos sólidos de serviços de saúde"]
["3117-05","C","Colorista de papel"]
["3117-10","C","Colorista têxtil"]
["2151-15","C","Comandante da marinha mercante"]
["2617-10","C","Comentarista de mídias audiovisuais"]
["1414-05","C","Comerciante atacadista"]
["1414-10","C","Comerciante varejista"]
["5111-10","C","Comissário de trem"]
["5111-05","C","Comissário de vôo"]
["4132-15","C","Compensador de banco"]
["2626-05","C","Compositor"]
["3542-05","C","Comprador"]
["4221-30","C","Concierge"]
["7823-20","C","Condutor de ambulância"]
["3413-10","C","Condutor de máquinas"]
["3413-20","C","Condutor de máquinas (bombeador)"]
["3413-25","C","Condutor de máquinas (mecânico)"]
["7811-05","C","Condutor de processos robotizados de pintura"]
["7811-10","C","Condutor de processos robotizados de soldagem"]
["5115-05","C","Condutor de turismo de aventura"]
["5115-10","C","Condutor de turismo de pesca"]
["7828-20","C","Condutor de veículos a pedais"]
["7828-05","C","Condutor de veículos de tração animal (ruas e estradas)"]
["3413-05","C","Condutor maquinista motorista fluvial"]
["7421-10","C","Confeccionador de acordeão"]
["7650-05","C","Confeccionador de artefatos de couro (exceto sapatos)"]
["8331-10","C","Confeccionador de bolsas, sacos e sacolas e papel, a máquina"]
["7652-15","C","Confeccionador de brinquedos de pano"]
["7686-30","C","Confeccionador de carimbos de borracha"]
["7764-10","C","Confeccionador de escovas, pincéis e produtos similares (a mão)"]
["7764-15","C","Confeccionador de escovas, pincéis e produtos similares (a máquina)"]
["7421-15","C","Confeccionador de instrumentos de corda"]
["7421-20","C","Confeccionador de instrumentos de percussão (pele, couro ou plástico)"]
["7421-25","C","Confeccionador de instrumentos de sopro (madeira)"]
["7421-30","C","Confeccionador de instrumentos de sopro (metal)"]
["7764-20","C","Confeccionador de móveis de vime, junco e bambu"]
["7421-35","C","Confeccionador de órgão"]
["7421-40","C","Confeccionador de piano"]
["8117-15","C","Confeccionador de pneumáticos"]
["8331-15","C","Confeccionador de sacos de celofane, a máquina"]
["7652-25","C","Confeccionador de velas náuticas, barracas e toldos"]
["8117-25","C","Confeccionador de velas por imersão"]
["8117-35","C","Confeccionador de velas por moldagem"]
["8483-10","C","Confeiteiro"]
["4142-15","C","Conferente de carga e descarga"]
["4132-20","C","Conferente de serviços bancários"]
["4141-20","C","Conferente mercadoria (exceto carga e descarga)"]
["5163-35","C","Conferente-expedidor de roupas (lavanderias)"]
["5153-20","C","Conselheiro tutelar"]
["9911-05","C","Conservador de via permanente (trilhos)"]
["2624-15","C","Conservador-restaurador de bens  culturais"]
["3511-15","C","Consultor contábil (técnico)"]
["2410-40","C","Consultor jurídico"]
["2522-10","C","Contador"]
["2619-05","C","Continuista"]
["4122-05",{"$f":"LEFT(C451,1)","v":"C"},"Contínuo"]
["3762-20","C","Contorcionista"]
["7601-05","C","Contramestre de acabamento (indústria têxtil)"]
["3412-05","C","Contramestre de cabotagem"]
["7601-10","C","Contramestre de fiação (indústria têxtil)"]
["7601-15","C","Contramestre de malharia (indústria têxtil)"]
["7601-20","C","Contramestre de tecelagem (indústria têxtil)"]
["3911-15","C","Controlador de entrada e saída"]
["5199-10","C","Controlador de pragas"]
["3421-15","C","Controlador de serviços de máquinas e veículos"]
["3425-05","C","Controlador de tráfego aéreo"]
["2151-20","C","Coordenador de operações de combate à poluição no meio aquaviário"]
["3731-40","C","Coordenador de programação"]
["4242-05","C","Coordenador de provas (concurso, avaliação, exame)"]
["2394-05","C","Coordenador pedagógico"]
["5134-25","C","Copeiro"]
["5134-30","C","Copeiro de hospital"]
["7661-05","C","Copiador de chapa"]
["2628-15","C","Coreógrafo"]
["0301-05","C","Coronel bombeiro militar"]
["0201-05","C","Coronel da polícia militar"]
["3546-05","C","Corretor de imóveis"]
["3545-05","C","Corretor de seguros"]
["2533-05","C","Corretor de valores, ativos financeiros, mercadorias e derivativos"]
["7651-05","C","Cortador de artefatos de couro (exceto roupas e calçados)"]
["7683-10","C","Cortador de calçados, a  mão (exceto solas)"]
["7641-05","C","Cortador de calçados, a  máquina (exceto solas e palmilhas)"]
["8422-20","C","Cortador de charutos"]
["7731-05","C","Cortador de laminados de madeira"]
["7122-05","C","Cortador de pedras"]
["7631-10","C","Cortador de roupas"]
["7641-10","C","Cortador de solas e palmilhas, a  máquina"]
["7651-10","C","Cortador de tapeçaria"]
["7522-10","C","Cortador de vidro"]
["7683-15","C","Costurador de artefatos de couro, a  mão (exceto roupas e calçados)"]
["7653-10","C","Costurador de artefatos de couro, a  máquina (exceto roupas e calçados)"]
["7642-05","C","Costurador de calçados, a  máquina"]
["7630-10","C","Costureira de peças sob encomenda"]
["7630-15","C","Costureira de reparação de roupas"]
["7630-20","C","Costureiro de roupa de couro e pele"]
["7632-05","C","Costureiro de roupas de couro e pele, a  máquina na  confecção em série"]
["7632-10","C","Costureiro na confecção em série"]
["7632-15","C","Costureiro, a  máquina  na confecção em série"]
["8414-08","C","Cozinhador (conservação de alimentos)"]
["8414-16","C","Cozinhador de carnes"]
["8414-20","C","Cozinhador de frutas e legumes"]
["8417-30","C","Cozinhador de malte"]
["8414-28","C","Cozinhador de pescado"]
["5132-25","C","Cozinheiro de embarcações"]
["5132-20","C","Cozinheiro de hospital"]
["5132-10","C","Cozinheiro do serviço doméstico"]
["5132-05","C","Cozinheiro geral"]
["5132-15","C","Cozinheiro industrial"]
["6130-10","C","Criador de animais domésticos"]
["6134-10","C","Criador de animais produtores de veneno"]
["6131-05","C","Criador de asininos e muares"]
["6131-10","C","Criador de bovinos (corte)"]
["6131-15","C","Criador de bovinos (leite)"]
["6131-20","C","Criador de bubalinos (corte)"]
["6131-25","C","Criador de bubalinos (leite)"]
["6313-05","C","Criador de camarões"]
["6132-05","C","Criador de caprinos"]
["6131-30","C","Criador de eqüínos"]
["6313-10","C","Criador de jacarés"]
["6313-15",{"$f":"LEFT(C515,1)","v":"C"},"Criador de mexilhões"]
["6313-20","C","Criador de ostras"]
["6132-10","C","Criador de ovinos"]
["6313-25","C","Criador de peixes"]
["6313-30","C","Criador de quelônios"]
["6313-35","C","Criador de rãs"]
["6132-15","C","Criador de suínos"]
["6130-05","C","Criador em pecuária polivalente"]
["2615-10","C","Crítico"]
["7681-30","C","Crocheteiro, a  mão"]
["3911-05","C","Cronoanalista"]
["3911-10","C","Cronometrista"]
["6321-10","C","Cubador de madeira"]
["5162-10","C","Cuidador de idosos"]
["5162-20","C","Cuidador em saúde"]
["5134-15","C","Cumim"]
["6133-10","C","Cunicultor"]
["7622-05","C","Curtidor (couros e peles)"]
["3761-10","D","Dançarino popular"]
["3761-05","D","Dançarino tradicional"]
["4121-05","D","Datilógrafo"]
["7232-05","D","Decapador"]
["7524-05","D","Decorador de cerâmica"]
["3751-20","D","Decorador de eventos"]
["2629-05","D","Decorador de interiores de nível superior"]
["7524-10","D","Decorador de vidro"]
["7524-15","D","Decorador de vidro à pincel"]
["2424-05","D","Defensor público"]
["8481-05","D","Defumador de carnes e pescados"]
["8484-05","D","Degustador de café"]
["8484-10","D","Degustador de chá"]
["8422-35","D","Degustador de charutos"]
["8484-15","D","Degustador de derivados de cacau"]
["8484-20","D","Degustador de vinhos ou licores"]
["2423-05","D","Delegado de polícia"]
["7170-05","D","Demolidor de edificações"]
["5211-20","D","Demonstrador de mercadorias"]
["1111-15","D","Deputado estadual e distrital"]
["1111-10","D","Deputado federal"]
["7621-10","D","Descarnador de couros e peles, à maquina"]
["3180-10","D","Desenhista copista"]
["3180-15","D","Desenhista detalhista"]
["2624-20","D","Desenhista industrial de produto (designer de produto)"]
["2624-25","D","Desenhista industrial de produto de moda (designer de moda)"]
["2624-10","D","Desenhista industrial gráfico (designer gráfico)"]
["3185-05","D","Desenhista projetista de arquitetura"]
["3185-10","D","Desenhista projetista de construção civil"]
["3187-05","D","Desenhista projetista de eletricidade"]
["3186-05","D","Desenhista projetista de máquinas"]
["3187-10","D","Desenhista projetista eletrônico"]
["3186-10","D","Desenhista projetista mecânico"]
["3180-05","D","Desenhista técnico"]
["3181-05","D","Desenhista técnico (arquitetura)"]
["3184-05","D","Desenhista técnico (artes gráficas)"]
["3183-10","D","Desenhista técnico (calefação, ventilação e refrigeração)"]
["3181-10","D","Desenhista técnico (cartografia)"]
["3181-15","D","Desenhista técnico (construção civil)"]
["3183-05","D","Desenhista técnico (eletricidade e eletrônica)"]
["3184-10","D","Desenhista técnico (ilustrações artísticas)"]
["3184-15","D","Desenhista técnico (ilustrações técnicas)"]
["3184-20","D","Desenhista técnico (indústria têxtil)"]
["3181-20","D","Desenhista técnico (instalações hidrossanitárias)"]
["3184-25","D","Desenhista técnico (mobiliário)"]
["3182-10","D","Desenhista técnico aeronáutico"]
["3184-30",{"$f":"LEFT(C579,1)","v":"D"},"Desenhista técnico de embalagens, maquetes e leiautes"]
["3182-05","D","Desenhista técnico mecânico"]
["3182-15","D","Desenhista técnico naval"]
["8414-32","D","Desidratador de alimentos"]
["3751-05","D","Designer de interiores"]
["3751-10","D","Designer de vitrines"]
["2394-35","D","Designer educacional"]
["3163-35","D","Desincrustador (poços de petróleo)"]
["8485-15","D","Desossador"]
["3422-10","D","Despachante aduaneiro"]
["4231-10","D","Despachante de trânsito"]
["5112-10","D","Despachante de transportes coletivos (exceto trem)"]
["4231-05","D","Despachante documentalista"]
["3425-10","D","Despachante operacional de vôo"]
["8417-35","D","Dessecador de malte"]
["8114-05","D","Destilador de madeira"]
["8114-10","D","Destilador de produtos químicos (exceto petróleo)"]
["7111-15","D","Destroçador de pedra"]
["3518-05","D","Detetive profissional"]
["7111-20","D","Detonador"]
["2237-05","D","Dietista"]
["4121-10","D","Digitador"]
["1231-05","D","Diretor administrativo"]
["1231-10","D","Diretor administrativo e financeiro"]
["2622-35","D","Diretor artistíco"]
["1233-05","D","Diretor comercial"]
["1227-05","D","Diretor comercial em operações de intermediação financeira"]
["1225-05","D","Diretor de  produção e operações de alimentação"]
["1225-10","D","Diretor de  produção e operações de hotel"]
["1225-15","D","Diretor de  produção e operações de turismo"]
["2623-30","D","Diretor de arte"]
["2531-25","D","Diretor de arte (publicidade)"]
["1227-20","D","Diretor de câmbio e comércio exterior"]
["2622-05","D","Diretor de cinema"]
["1227-25","D","Diretor de compliance"]
["2531-35","D","Diretor de contas (publicidade)"]
["1227-30","D","Diretor de crédito (exceto crédito imobiliário)"]
["1227-35","D","Diretor de crédito imobiliário"]
["1227-15","D","Diretor de crédito rural"]
["2531-30","D","Diretor de criação"]
["3721-05","D","Diretor de fotografia"]
["3744-25","D","Diretor de imagens (tv)"]
["1313-05","D","Diretor de instituição educacional da área privada"]
["1313-10","D","Diretor de instituição educacional pública"]
["1227-40","D","Diretor de leasing"]
["1238-05","D","Diretor de manutenção"]
["1233-10","D","Diretor de marketing"]
["1227-45","D","Diretor de mercado de capitais"]
["2531-20","D","Diretor de mídia (publicidade)"]
["1224-05","D","Diretor de operações comerciais (comércio atacadista e varejista)"]
["1226-05","D","Diretor de operações de correios"]
["1223-05","D","Diretor de operações de obras pública e civil"]
["1226-10","D","Diretor de operações de serviços de armazenamento"]
["1226-15","D","Diretor de operações de serviços de telecomunicações"]
["1226-20","D","Diretor de operações de serviços de transporte"]
["1237-05","D","Diretor de pesquisa e desenvolvimento (p&d)"]
["1210-05","D","Diretor de planejamento estratégico"]
["2622-30","D","Diretor de produção"]
["1222-05","D","Diretor de produção e operações da indústria de transformação, extração mineral e utilidades"]
["1221-05","D","Diretor de produção e operações em empresa agropecuária"]
["1221-10","D","Diretor de produção e operações em empresa aqüícola"]
["1221-15","D","Diretor de produção e operações em empresa florestal"]
["1221-20","D","Diretor de produção e operações em empresa pesqueira"]
["1227-10","D","Diretor de produtos bancários"]
["2622-25",{"$f":"LEFT(C643,1)","v":"D"},"Diretor de programação"]
["2622-10","D","Diretor de programas de rádio"]
["2622-15","D","Diretor de programas de televisão"]
["1227-50","D","Diretor de recuperação de créditos em operações de intermediação financeira"]
["1232-05","D","Diretor de recursos humanos"]
["2611-15","D","Diretor de redação"]
["1232-10","D","Diretor de relações de trabalho"]
["1227-55","D","Diretor de riscos de mercado"]
["1311-05","D","Diretor de serviços culturais"]
["1236-05","D","Diretor de serviços de informática"]
["1312-05","D","Diretor de serviços de saúde"]
["1311-10","D","Diretor de serviços sociais"]
["1234-05","D","Diretor de suprimentos"]
["1234-10","D","Diretor de suprimentos no serviço público"]
["1231-15","D","Diretor financeiro"]
["1210-10","D","Diretor geral de empresa e organizações (exceto de interesse público)"]
["2622-20","D","Diretor teatral"]
["1141-05","D","Dirigente de partido político"]
["1114-10","D","Dirigente do serviço público estadual e distrital"]
["1114-05","D","Dirigente do serviço público federal"]
["1114-15","D","Dirigente do serviço público municipal"]
["1144-05","D","Dirigente e administrador de organização da sociedade civil sem fins lucrativos"]
["1143-05","D","Dirigente e administrador de organização religiosa"]
["1142-05","D","Dirigentes de entidades de trabalhadores"]
["1142-10","D","Dirigentes de entidades patronais"]
["3741-45","D","Dj (disc jockey)"]
["2612-10","D","Documentalista"]
["3762-25","D","Domador de animais (circense)"]
["3221-35","D","Doula"]
["8118-10","D","Drageador (medicamentos)"]
["2628-20","D","Dramaturgo de dança"]
["2512-05","E","Economista"]
["2512-10","E","Economista agroindustrial"]
["2512-30","E","Economista ambiental"]
["2512-25","E","Economista do setor público"]
["2516-10","E","Economista doméstico"]
["2512-15","E","Economista financeiro"]
["2512-20","E","Economista industrial"]
["2512-35","E","Economista regional e urbano"]
["2611-20","E","Editor"]
["2616-05","E","Editor de jornal"]
["2616-10","E","Editor de livro"]
["3744-05","E","Editor de mídia audiovisual"]
["2616-15","E","Editor de mídia eletrônica"]
["2616-20","E","Editor de revista"]
["2616-25","E","Editor de revista científica"]
["7661-20","E","Editor de texto e imagem"]
["5153-05","E","Educador social"]
["3413-15","E","Eletricista de bordo"]
["7156-15","E","Eletricista de instalações"]
["9531-05","E","Eletricista de instalações (aeronaves)"]
["7156-05","E","Eletricista de instalações (cenários)"]
["7156-10","E","Eletricista de instalações (edifícios)"]
["9531-10","E","Eletricista de instalações (embarcações)"]
["9531-15","E","Eletricista de instalações (veículos automotores e máquinas operatrizes, exceto aeronaves e embarcações)"]
["7321-05","E","Eletricista de manutenção de linhas elétricas, telefônicas e de comunicação de dados"]
["9511-05","E","Eletricista de manutenção eletroeletrônica"]
["9541-05","E","Eletromecânico de manutenção de elevadores"]
["9541-10","E","Eletromecânico de manutenção de escadas rolantes"]
["9541-15","E","Eletromecânico de manutenção de portas automáticas"]
["3131-05","E","Eletrotécnico"]
["3131-10","E","Eletrotécnico (produção de energia)"]
["3131-15","E","Eletrotécnico na fabricação, montagem e instalação de máquinas e equipamentos"]
["7841-05","E","Embalador, a mão"]
["7841-10",{"$f":"LEFT(C707,1)","v":"E"},"Embalador, a máquina"]
["3281-05","E","Embalsamador"]
["7321-10","E","Emendador de cabos elétricos e telefônicos (aéreos e subterrâneos)"]
["4211-20","E","Emissor de passagens"]
["5121-05","E","Empregado  doméstico  nos serviços gerais"]
["5121-10","E","Empregado doméstico  arrumador"]
["5121-15","E","Empregado doméstico  faxineiro"]
["5121-20","E","Empregado doméstico diarista"]
["7241-10","E","Encanador"]
["8214-05","E","Encarregado de acabamento de chapas e metais  (têmpera)"]
["7603-05","E","Encarregado de corte na confecção do vestuário"]
["7603-10","E","Encarregado de costura na confecção do vestuário"]
["9922-10","E","Encarregado de equipe de conservação de vias permanentes (exceto trilhos)"]
["3134-15","E","Encarregado de manutenção de instrumentos de controle, medição e similares"]
["9502-05","E","Encarregado de manutenção elétrica de veículos"]
["9101-05","E","Encarregado de manutenção mecânica de sistemas operacionais"]
["9922-05","E","Encarregado geral de operações de conservação de vias permanentes (exceto trilhos)"]
["2235-05","E","Enfermeiro"]
["2235-10","E","Enfermeiro auditor"]
["2235-65","E","Enfermeiro da estratégia de saúde da família"]
["2235-15","E","Enfermeiro de bordo"]
["2235-20","E","Enfermeiro de centro cirúrgico"]
["2235-25","E","Enfermeiro de terapia intensiva"]
["2235-30","E","Enfermeiro do trabalho"]
["2235-35","E","Enfermeiro nefrologista"]
["2235-40","E","Enfermeiro neonatologista"]
["2235-45","E","Enfermeiro obstétrico"]
["2235-50","E","Enfermeiro psiquiátrico"]
["2235-55","E","Enfermeiro puericultor e pediátrico"]
["2235-60","E","Enfermeiro sanitarista"]
["7631-15","E","Enfestador de roupas"]
["7510-05","E","Engastador (jóias)"]
["2144-25","E","Engenheiro aeronáutico"]
["2221-05","E","Engenheiro agrícola"]
["2148-05","E","Engenheiro agrimensor"]
["2221-10","E","Engenheiro agrônomo"]
["2140-05","E","Engenheiro ambiental"]
["2148-10","E","Engenheiro cartógrafo"]
["2142-05","E","Engenheiro civil"]
["2142-10","E","Engenheiro civil (aeroportos)"]
["2142-15","E","Engenheiro civil (edificações)"]
["2142-20","E","Engenheiro civil (estruturas metálicas)"]
["2142-25","E","Engenheiro civil (ferrovias e metrovias)"]
["2142-30","E","Engenheiro civil (geotécnia)"]
["2142-40","E","Engenheiro civil (hidráulica)"]
["2142-35","E","Engenheiro civil (hidrologia)"]
["2142-45","E","Engenheiro civil (pontes e viadutos)"]
["2142-50","E","Engenheiro civil (portos e vias navegáveis)"]
["2142-55","E","Engenheiro civil (rodovias)"]
["2142-60","E","Engenheiro civil (saneamento)"]
["2142-70","E","Engenheiro civil (transportes e trânsito)"]
["2142-65","E","Engenheiro civil (túneis)"]
["2222-05","E","Engenheiro de alimentos"]
["2122-05","E","Engenheiro de aplicativos em computação"]
["2149-10","E","Engenheiro de controle de qualidade"]
["2021-10","E","Engenheiro de controle e automação"]
["2122-10","E","Engenheiro de equipamentos em computação"]
["2149-45","E","Engenheiro de logistica"]
["2143-35","E","Engenheiro de manutenção de telecomunicações"]
["2146-05","E","Engenheiro de materiais"]
["2147-05","E","Engenheiro de minas"]
["2147-10","E","Engenheiro de minas (beneficiamento)"]
["2147-15","E","Engenheiro de minas (lavra a céu aberto)"]
["2147-20","E","Engenheiro de minas (lavra subterrânea)"]
["2147-25",{"$f":"LEFT(C771,1)","v":"E"},"Engenheiro de minas (pesquisa mineral)"]
["2147-30","E","Engenheiro de minas (planejamento)"]
["2147-35","E","Engenheiro de minas (processo)"]
["2147-40","E","Engenheiro de minas (projeto)"]
["2221-15","E","Engenheiro de pesca"]
["2149-05","E","Engenheiro de produção"]
["2143-50","E","Engenheiro de redes de comunicação"]
["2149-20","E","Engenheiro de riscos"]
["2149-15","E","Engenheiro de segurança do trabalho"]
["2143-40","E","Engenheiro de telecomunicações"]
["2149-25","E","Engenheiro de tempos e movimentos"]
["2143-05","E","Engenheiro eletricista"]
["2143-15","E","Engenheiro eletricista de manutenção"]
["2143-20","E","Engenheiro eletricista de projetos"]
["2143-10","E","Engenheiro eletrônico"]
["2143-25","E","Engenheiro eletrônico de manutenção"]
["2143-30","E","Engenheiro eletrônico de projetos"]
["2221-20","E","Engenheiro florestal"]
["2144-05","E","Engenheiro mecânico"]
["2144-15","E","Engenheiro mecânico (energia nuclear)"]
["2144-10","E","Engenheiro mecânico automotivo"]
["2144-20","E","Engenheiro mecânico industrial"]
["2021-05","E","Engenheiro mecatrônico"]
["2146-10","E","Engenheiro metalurgista"]
["2144-30","E","Engenheiro naval"]
["2143-45","E","Engenheiro projetista de telecomunicações"]
["2145-05","E","Engenheiro químico"]
["2145-10","E","Engenheiro químico (indústria química)"]
["2145-15","E","Engenheiro químico (mineração, metalurgia, siderurgia, cimenteira e cerâmica)"]
["2145-20","E","Engenheiro químico (papel e celulose)"]
["2145-25","E","Engenheiro químico (petróleo e borracha)"]
["2145-30","E","Engenheiro químico (utilidades e meio ambiente)"]
["2122-15","E","Engenheiros de sistemas operacionais em computação"]
["5199-15","E","Engraxate"]
["3250-05","E","Enólogo"]
["2628-25","E","Ensaiador de dança"]
["7751-05","E","Entalhador  de madeira"]
["4152-15","E","Entregador de publicações"]
["4241-05","E","Entrevistador censitário e de pesquisas amostrais"]
["4241-10","E","Entrevistador de pesquisa de opinião e mídia"]
["4241-15","E","Entrevistador de pesquisas de mercado"]
["4241-20","E","Entrevistador de preços"]
["4241-30","E","Entrevistador social"]
["7622-15","E","Enxugador de couros"]
["3762-30","E","Equilibrista"]
["2263-15","E","Equoterapeuta"]
["8214-10","E","Escarfador"]
["3912-25","E","Escolhedor de papel"]
["7111-25","E","Escorador de minas"]
["3514-05","E","Escrevente"]
["2615-15","E","Escritor de ficção"]
["2615-20","E","Escritor de não ficção"]
["4241-25","E","Escriturário  em  estatística"]
["4132-25","E","Escriturário de banco"]
["3514-20","E","Escrivão de polícia"]
["3514-15","E","Escrivão extra - judicial"]
["3514-10","E","Escrivão judicial"]
["5168-05","E","Esotérico"]
["1115-05","E","Especialista de políticas públicas e gestão governamental - eppgg"]
["2012-10","E","Especialista em calibrações metrológicas"]
["1426-10","E","Especialista em desenvolvimento de cigarros"]
["2012-15","E","Especialista em ensaios metrológicos"]
["2012-20","E","Especialista em instrumentação metrológica"]
["2012-25","E","Especialista em materiais de referência metrológica"]
["2111-10",{"$f":"LEFT(C835,1)","v":"E"},"Especialista em pesquisa operacional"]
["7614-10","E","Estampador de tecido"]
["2112-05","E","Estatístico"]
["2112-10","E","Estatístico (estatística aplicada)"]
["2112-15","E","Estatístico teórico"]
["7764-25","E","Esteireiro"]
["3515-15","E","Estenotipista"]
["8414-40","E","Esterilizador de alimentos"]
["3221-30","E","Esteticista"]
["5193-10","E","Esteticista de animais domésticos"]
["7623-05","E","Estirador de couros e peles (acabamento)"]
["7621-15","E","Estirador de couros e peles (preparação)"]
["7224-10","E","Estirador de tubos de metal sem costura"]
["7832-20","E","Estivador"]
["7652-30","E","Estofador de aviões"]
["7652-35","E","Estofador de móveis"]
["4141-25","E","Estoquista"]
["7321-15","E","Examinador de cabos, linhas elétricas e telefônicas"]
["4141-35","E","Expedidor de mercadorias"]
["8232-10","E","Extrusor de fios ou fibras de vidro"]
["2234-05","F","Farmacêutico"]
["2234-15","F","Farmacêutico analista clínico"]
["2234-20","F","Farmacêutico de alimentos"]
["2234-30","F","Farmacêutico em saúde pública"]
["2234-45","F","Farmacêutico hospitalar e clínico"]
["2234-35","F","Farmacêutico industrial"]
["2234-25","F","Farmacêutico práticas integrativas e complementares"]
["2234-40","F","Farmacêutico toxicologista"]
["5143-20","F","Faxineiro"]
["5242-05","F","Feirante"]
["8417-15","F","Fermentador"]
["6230-30","F","Ferrador de animais"]
["7211-05","F","Ferramenteiro"]
["7211-10","F","Ferramenteiro de mandris, calibradores e outros dispositivos"]
["2614-05","F","Filólogo"]
["2514-05","F","Filósofo"]
["8417-10","F","Filtrador de cerveja"]
["3744-10","F","Finalizador de filmes"]
["3744-15","F","Finalizador de vídeo"]
["2545-05","F","Fiscal de atividades urbanas"]
["3425-15","F","Fiscal de aviação civil (fac)"]
["5174-25","F","Fiscal de loja"]
["7102-25","F","Fiscal de pátio de usina de concreto"]
["5112-05","F","Fiscal de transportes coletivos (exceto trem)"]
["2544-05","F","Fiscal de tributos estadual"]
["2544-10","F","Fiscal de tributos municipal"]
["2131-05","F","Físico"]
["2131-10","F","Físico (acústica)"]
["2131-15","F","Físico (atômica e molecular)"]
["2131-20","F","Físico (cosmologia)"]
["2131-25","F","Físico (estatística e matemática)"]
["2131-30","F","Físico (fluidos)"]
["2131-35","F","Físico (instrumentação)"]
["2131-40","F","Físico (matéria condensada)"]
["2131-45","F","Físico (materiais)"]
["2131-50","F","Físico (medicina)"]
["2131-55","F","Físico (nuclear e reatores)"]
["2131-60","F","Físico (óptica)"]
["2131-65","F","Físico (partículas e campos)"]
["2131-70","F","Físico (plasma)"]
["2131-75","F","Físico (térmica)"]
["2236-60","F","Fisioterapeuta  do trabalho"]
["2236-50","F","Fisioterapeuta acupunturista"]
["2236-55","F","Fisioterapeuta esportivo"]
["2236-05",{"$f":"LEFT(C899,1)","v":"F"},"Fisioterapeuta geral"]
["2236-30","F","Fisioterapeuta neurofuncional"]
["2236-40","F","Fisioterapeuta osteopata"]
["2236-45","F","Fisioterapeuta quiropraxista"]
["2236-25","F","Fisioterapeuta respiratória"]
["2236-35","F","Fisioterapeuta traumato-ortopédica funcional"]
["4151-20","F","Fitotecário"]
["8621-05","F","Foguista (locomotivas a vapor)"]
["7751-10","F","Folheador de móveis de madeira"]
["2238-15","F","Fonoaudiólogo educacional"]
["2238-20","F","Fonoaudiólogo em audiologia"]
["2238-25","F","Fonoaudiólogo em disfagia"]
["2238-30","F","Fonoaudiólogo em linguagem"]
["2238-35","F","Fonoaudiólogo em motricidade orofacial"]
["2238-40","F","Fonoaudiólogo em saúde coletiva"]
["2238-45","F","Fonoaudiólogo em voz"]
["2238-10","F","Fonoaudiólogo geral"]
["7221-05","F","Forjador"]
["7221-10","F","Forjador a martelo"]
["7221-15","F","Forjador prensista"]
["8233-15","F","Forneiro (materiais de construção)"]
["8221-05","F","Forneiro de cubilô"]
["8221-10","F","Forneiro de forno-poço"]
["8221-15","F","Forneiro de fundição (forno de redução)"]
["8221-20","F","Forneiro de reaquecimento e tratamento térmico na metalurgia"]
["8221-25","F","Forneiro de revérbero"]
["8212-05","F","Forneiro e operador (alto-forno)"]
["8212-10","F","Forneiro e operador (conversor a oxigênio)"]
["8212-15","F","Forneiro e operador (forno elétrico)"]
["8212-20","F","Forneiro e operador (refino de metais não-ferrosos)"]
["8212-25","F","Forneiro e operador de forno de redução direta"]
["8232-15","F","Forneiro na fundição de vidro"]
["8232-20","F","Forneiro no recozimento de vidro"]
["7232-10","F","Fosfatizador"]
["2618-05","F","Fotógrafo"]
["2618-10","F","Fotógrafo publicitário"]
["2618-15","F","Fotógrafo retratista"]
["5211-35","F","Frentista"]
["7621-20","F","Fuloneiro"]
["7623-10","F","Fuloneiro no acabamento de couros e peles"]
["7511-10","F","Fundidor (joalheria e ourivesaria)"]
["7222-05","F","Fundidor de metais"]
["9913-05","F","Funileiro de veículos (reparação)"]
["7244-35","F","Funileiro industrial"]
["7232-15","G","Galvanizador"]
["5199-20","G","Gandula"]
["5141-10","G","Garagista"]
["5134-05","G","Garçom"]
["5134-10","G","Garçom (serviços de vinhos)"]
["7114-05","G","Garimpeiro"]
["6314-05","G","Gelador industrial"]
["6314-10","G","Gelador profissional"]
["2011-15","G","Geneticista"]
["2134-15","G","Geofísico"]
["2133-10","G","Geofísico espacial"]
["2513-05","G","Geógrafo"]
["2134-05","G","Geólogo"]
["2134-10","G","Geólogo de engenharia"]
["2134-20","G","Geoquímico"]
["1421-05","G","Gerente administrativo"]
["1423-05","G","Gerente comercial"]
["3425-20","G","Gerente da administração de aeroportos"]
["1417-10","G","Gerente de agência"]
["1424-15","G","Gerente de almoxarifado"]
["1415-15",{"$f":"LEFT(C963,1)","v":"G"},"Gerente de bar"]
["1417-15","G","Gerente de câmbio e comércio exterior"]
["2532-05","G","Gerente de captação (fundos e investimentos institucionais)"]
["2532-10","G","Gerente de clientes especiais (private)"]
["1424-05","G","Gerente de compras"]
["1423-10","G","Gerente de comunicação"]
["2532-15","G","Gerente de contas - pessoa física e jurídica"]
["1417-20","G","Gerente de crédito e cobrança"]
["1417-25","G","Gerente de crédito imobiliário"]
["1417-30","G","Gerente de crédito rural"]
["1422-10","G","Gerente de departamento pessoal"]
["1425-10","G","Gerente de desenvolvimento de sistemas"]
["3425-25","G","Gerente de empresa aérea em aeroportos"]
["2532-20","G","Gerente de grandes contas (corporate)"]
["1415-05","G","Gerente de hotel"]
["1313-15","G","Gerente de instituição educacional da área privada"]
["1416-15","G","Gerente de logística (armazenagem e distribuição)"]
["1414-15","G","Gerente de loja e supermercado"]
["1423-15","G","Gerente de marketing"]
["1416-10","G","Gerente de operações de correios e telecomunicações"]
["1414-20","G","Gerente de operações de serviços de assistência técnica"]
["1416-05","G","Gerente de operações de transportes"]
["1415-20","G","Gerente de pensão"]
["1426-05","G","Gerente de pesquisa e desenvolvimento (p&d)"]
["1425-15","G","Gerente de produção de tecnologia da informação"]
["1412-05","G","Gerente de produção e operações"]
["1411-05","G","Gerente de produção e operações  aqüícolas"]
["1411-10","G","Gerente de produção e operações  florestais"]
["1411-15","G","Gerente de produção e operações agropecuárias"]
["1413-05","G","Gerente de produção e operações da construção civil e obras públicas"]
["1411-20","G","Gerente de produção e operações pesqueiras"]
["1417-05","G","Gerente de produtos bancários"]
["1425-20","G","Gerente de projetos de tecnologia da informação"]
["1427-05","G","Gerente de projetos e serviços de manutenção"]
["1417-35","G","Gerente de recuperação de crédito"]
["1422-05","G","Gerente de recursos humanos"]
["1425-05","G","Gerente de rede"]
["1415-10","G","Gerente de restaurante"]
["1421-10","G","Gerente de riscos"]
["1425-25","G","Gerente de segurança de tecnologia da informação"]
["1311-15","G","Gerente de serviços culturais"]
["1312-10","G","Gerente de serviços de saúde"]
["1313-20","G","Gerente de serviços educacionais da área pública"]
["1311-20","G","Gerente de serviços sociais"]
["1425-30","G","Gerente de suporte técnico de tecnologia da informação"]
["1424-10","G","Gerente de suprimentos"]
["1415-25","G","Gerente de turismo"]
["1423-20","G","Gerente de vendas"]
["1421-15","G","Gerente financeiro"]
["1312-20","G","Gerontólogo"]
["7164-05","G","Gesseiro"]
["2526-05","G","Gestor em segurança"]
["1112-30","G","Governador de estado"]
["1112-35","G","Governador do distrito federal"]
["5131-15","G","Governanta de hotelaria"]
["7511-15","G","Gravador (joalheria e ourivesaria)"]
["7122-10","G","Gravador de inscrições em pedra"]
["7661-35","G","Gravador de matriz calcográfica"]
["7661-15","G","Gravador de matriz para flexografia (clicherista)"]
["7661-30","G","Gravador de matriz para rotogravura (eletromecânico e químico)"]
["7661-40","G","Gravador de matriz serigráfica"]
["7122-15","G","Gravador de relevos em pedra"]
["7522-15","G","Gravador de vidro a  água-forte"]
["7522-20","G","Gravador de vidro a  esmeril"]
["7522-25",{"$f":"LEFT(C1027,1)","v":"G"},"Gravador de vidro a  jato de areia"]
["7687-05","G","Gravador, à mão (encadernação)"]
["5173-35","G","Guarda portuário"]
["5172-15","G","Guarda-civil municipal"]
["5199-25","G","Guardador de veículos"]
["5133-25","G","Guarda-roupeira de cinema"]
["5114-05","G","Guia de turismo"]
["6320-05","G","Guia florestal"]
["7822-05","G","Guincheiro (construção civil)"]
["8414-44","H","Hidrogenador de óleos e gorduras"]
["2134-25","H","Hidrogeólogo"]
["2149-40","H","Higienista ocupacional"]
["6321-15","I","Identificador florestal"]
["3721-10","I","Iluminador (televisão)"]
["2151-25","I","Imediato da marinha mercante"]
["7721-10","I","Impregnador de madeira"]
["7662-05","I","Impressor (serigrafia)"]
["7662-10","I","Impressor calcográfico"]
["7663-10","I","Impressor de corte e vinco"]
["7662-15","I","Impressor de ofsete (plano e rotativo)"]
["7662-20","I","Impressor de rotativa"]
["7662-25","I","Impressor de rotogravura"]
["7662-30","I","Impressor digital"]
["7662-35","I","Impressor flexográfico"]
["7662-40","I","Impressor letterset"]
["7662-45","I","Impressor tampográfico"]
["7662-50","I","Impressor tipográfico"]
["6230-10","I","Inseminador"]
["3341-05","I","Inspetor de alunos de escola privada"]
["3341-10","I","Inspetor de alunos de escola pública"]
["3425-30","I","Inspetor de aviação civil"]
["7618-05","I","Inspetor de estamparia (produção têxtil)"]
["3912-05","I","Inspetor de qualidade"]
["3517-25","I","Inspetor de risco"]
["3423-10","I","Inspetor de serviços de transportes rodoviários (passageiros e cargas)"]
["3517-30","I","Inspetor de sinistros"]
["3146-05","I","Inspetor de soldagem"]
["2151-30","I","Inspetor de terminal"]
["7102-15","I","Inspetor de terraplenagem"]
["9911-10","I","Inspetor de via permanente (trilhos)"]
["2151-35","I","Inspetor naval"]
["5231-05","I","Instalador de cortinas e persianas, portas sanfonadas e boxe"]
["7157-10","I","Instalador de isolantes acústicos"]
["7157-15","I","Instalador de isolantes térmicos (refrigeração e climatização)"]
["7157-20","I","Instalador de isolantes térmicos de caldeira e tubulações"]
["7321-20","I","Instalador de linhas elétricas de alta e baixa - tensão (rede aérea e subterrânea)"]
["7157-25","I","Instalador de material isolante, a mão (edificações)"]
["7157-30","I","Instalador de material isolante, a máquina (edificações)"]
["9513-05","I","Instalador de sistemas eletroeletrônicos de segurança"]
["7321-40","I","Instalador de sistemas fotovoltaicos"]
["5231-10","I","Instalador de som e acessórios de veículos"]
["7241-15","I","Instalador de tubulações"]
["7241-20","I","Instalador de tubulações (aeronaves)"]
["7241-25","I","Instalador de tubulações (embarcações)"]
["7241-30","I","Instalador de tubulações de gás combustível (produção e distribuição)"]
["7241-35","I","Instalador de tubulações de vapor (produção e distribuição)"]
["7321-25","I","Instalador eletricista (tração de veículos)"]
["7313-05","I","Instalador-reparador de equipamentos de comutação em telefonia"]
["7313-10","I","Instalador-reparador de equipamentos de energia em telefonia"]
["7313-15","I","Instalador-reparador de equipamentos de transmissão em telefonia"]
["7313-20","I","Instalador-reparador de linhas e aparelhos de telecomunicações"]
["7313-25","I","Instalador-reparador de redes e cabos telefônicos"]
["7321-30","I","Instalador-reparador de redes telefônicas e de comunicação de dados"]
["3222-25","I","Instrumentador cirúrgico"]
["2332-05",{"$f":"LEFT(C1091,1)","v":"I"},"Instrutor de aprendizagem e treinamento agropecuário"]
["2332-15","I","Instrutor de aprendizagem e treinamento comercial"]
["2332-10","I","Instrutor de aprendizagem e treinamento industrial"]
["3331-05","I","Instrutor de auto-escola"]
["3331-10","I","Instrutor de cursos livres"]
["2153-15","I","Instrutor de vôo"]
["2614-10","I","Intérprete"]
["2614-25","I","Intérprete de língua de sinais"]
["3518-10","I","Investigador de polícia"]
["6220-10","J","Jardineiro"]
["7510-10","J","Joalheiro"]
["7510-15","J","Joalheiro (reparações)"]
["3771-30","J","Jóquei"]
["5242-10","J","Jornaleiro (em banca de jornal)"]
["2611-25","J","Jornalista"]
["1113-40","J","Juiz auditor estadual - justiça militar"]
["1113-35","J","Juiz auditor federal - justiça militar"]
["1113-25","J","Juiz de direito"]
["1113-45","J","Juiz do trabalho"]
["1113-30","J","Juiz federal"]
["4151-25","K","Kardexista"]
["7664-05","L","Laboratorista fotográfico"]
["8414-48","L","Lagareiro"]
["7511-20","L","Laminador de metais preciosos a  mão"]
["8117-45","L","Laminador de plástico"]
["7510-20","L","Lapidador (jóias)"]
["7522-30","L","Lapidador de vidros e cristais"]
["5163-05","L","Lavadeiro, em geral"]
["5163-15","L","Lavador de artefatos de tapeçaria"]
["5199-30","L","Lavador de garrafas, vidros e outros utensílios"]
["7611-10","L","Lavador de lã"]
["9921-20","L","Lavador de peças"]
["5164-05","L","Lavador de roupas"]
["5163-10","L","Lavador de roupas  a maquina"]
["5199-35","L","Lavador de veículos"]
["3544-05","L","Leiloeiro"]
["5199-40","L","Leiturista"]
["1130-10","L","Líder de comunidade caiçara"]
["7321-35","L","Ligador de linhas telefônicas"]
["5163-20","L","Limpador a seco, à máquina"]
["5143-15","L","Limpador de fachadas"]
["5143-30","L","Limpador de piscinas"]
["5164-10","L","Limpador de roupas a seco, à mão"]
["5143-05","L","Limpador de vidros"]
["7222-10","L","Lingotador"]
["2614-15","L","Lingüista"]
["7686-10","L","Linotipista"]
["7623-15","L","Lixador de couros e peles"]
["4213-15","L","Localizador (cobrador)"]
["2617-15","L","Locutor de mídias audiovisuais"]
["9191-15","L","Lubrificador de embarcações"]
["9191-10","L","Lubrificador de veículos automotores (exceto embarcações)"]
["9191-05","L","Lubrificador industrial"]
["2241-10","L","Ludomotricista"]
["7751-15","L","Lustrador de peças de madeira"]
["7165-20","L","Lustrador de piso"]
["9152-15","L","Luthier (restauração de cordas arcadas)"]
["7223-10","M","Macheiro, a  máquina"]
["7223-05","M","Macheiro, a mão"]
["5162-15","M","Mãe social"]
["8485-20","M","Magarefe"]
["3762-35","M","Mágico"]
["5101-35","M","Maître"]
["0301-10","M","Major bombeiro militar"]
["0201-15",{"$f":"LEFT(C1155,1)","v":"M"},"Major da polícia militar"]
["3762-40","M","Malabarista"]
["8417-25","M","Malteiro (germinação)"]
["5161-20","M","Manicure"]
["7831-10","M","Manobrador"]
["8482-15","M","Manteigueiro na fabricação de laticínio"]
["9912-05","M","Mantenedor de equipamentos de parques de diversões e similares"]
["9513-10","M","Mantenedor de sistemas eletroeletrônicos de segurança"]
["7711-15","M","Maquetista na marcenaria"]
["5161-25","M","Maquiador"]
["5161-30","M","Maquiador de caracterização"]
["3742-10","M","Maquinista de cinema e vídeo"]
["8621-10","M","Maquinista de embarcações"]
["3742-15","M","Maquinista de teatro e espetáculos"]
["7826-10","M","Maquinista de trem"]
["7826-15","M","Maquinista de trem metropolitano"]
["7633-15","M","Marcador de peças confeccionadas para bordar"]
["8214-15","M","Marcador de produtos (siderúrgico e metalúrgico)"]
["7711-05","M","Marceneiro"]
["7751-20","M","Marcheteiro"]
["7827-30","M","Marinheiro auxiliar de convés (marítimo e aquaviario)"]
["7827-35","M","Marinheiro auxiliar de máquinas (marítimo e aquaviário)"]
["7827-05","M","Marinheiro de convés (marítimo e fluviário)"]
["7827-25","M","Marinheiro de esporte e recreio"]
["7827-10","M","Marinheiro de máquinas"]
["7165-25","M","Marmorista (construção)"]
["8483-15","M","Masseiro (massas alimentícias)"]
["3221-20","M","Massoterapeuta"]
["2111-15","M","Matemático"]
["2111-20","M","Matemático aplicado"]
["7623-20","M","Matizador de couros e peles"]
["9141-05","M","Mecânico de manutenção de aeronaves, em geral"]
["9131-05","M","Mecânico de manutenção de aparelhos de levantamento"]
["9193-05","M","Mecânico de manutenção de aparelhos esportivos e de ginástica"]
["9144-05","M","Mecânico de manutenção de automóveis, motocicletas e veículos similares"]
["9193-10","M","Mecânico de manutenção de bicicletas e veículos similares"]
["9111-05","M","Mecânico de manutenção de bomba injetora (exceto de veículos automotores)"]
["9111-10","M","Mecânico de manutenção de bombas"]
["9111-15","M","Mecânico de manutenção de compressores de ar"]
["9144-10","M","Mecânico de manutenção de empilhadeiras e outros veículos de cargas leves"]
["9131-10","M","Mecânico de manutenção de equipamento de mineração"]
["9541-20","M","Mecânico de manutenção de instalações mecânicas de edifícios"]
["9131-15","M","Mecânico de manutenção de máquinas agrícolas"]
["9192-05","M","Mecânico de manutenção de máquinas cortadoras de grama, roçadeiras, motosserras e similares"]
["9131-20","M","Mecânico de manutenção de máquinas de construção e terraplenagem"]
["9113-10","M","Mecânico de manutenção de máquinas gráficas"]
["9113-15","M","Mecânico de manutenção de máquinas operatrizes (lavra de madeira)"]
["9113-20","M","Mecânico de manutenção de máquinas têxteis"]
["9113-05","M","Mecânico de manutenção de máquinas, em geral"]
["9113-25","M","Mecânico de manutenção de máquinas-ferramentas (usinagem de metais)"]
["9144-15","M","Mecânico de manutenção de motocicletas"]
["9111-20","M","Mecânico de manutenção de motores diesel (exceto de veículos automotores)"]
["9142-05","M","Mecânico de manutenção de motores e equipamentos navais"]
["9111-25","M","Mecânico de manutenção de redutores"]
["9141-10","M","Mecânico de manutenção de sistema hidráulico de aeronaves (serviços de pista e hangar)"]
["9144-20","M","Mecânico de manutenção de tratores"]
["9111-30","M","Mecânico de manutenção de turbinas (exceto de aeronaves)"]
["9111-35","M","Mecânico de manutenção de turbocompressores"]
["9143-05","M","Mecânico de manutenção de veículos ferroviários"]
["9112-05","M","Mecânico de manutenção e instalação de aparelhos de climatização e  refrigeração"]
["7257-05","M","Mecânico de refrigeração"]
["9144-25","M","Mecânico de veículos automotores a diesel (exceto tratores)"]
["3411-15","M","Mecânico de vôo"]
["7254-05","M","Mecânico montador de motores de aeronaves"]
["7254-10",{"$f":"LEFT(C1219,1)","v":"M"},"Mecânico montador de motores de embarcações"]
["7254-15","M","Mecânico montador de motores de explosão e diesel"]
["7254-20","M","Mecânico montador de turboalimentadores"]
["2251-05","M","Médico acupunturista"]
["2251-10","M","Médico alergista e imunologista"]
["2251-48","M","Médico anatomopatologista"]
["2251-51","M","Médico anestesiologista"]
["2251-15","M","Médico angiologista"]
["2251-54","M","Médico antroposófico"]
["2252-90","M","Médico cancerologista cirurgíco"]
["2251-22","M","Médico cancerologista pediátrico"]
["2251-20","M","Médico cardiologista"]
["2252-10","M","Médico cirurgião cardiovascular"]
["2252-95","M","Médico cirurgião da mão"]
["2252-15","M","Médico cirurgião de cabeça e pescoço"]
["2252-20","M","Médico cirurgião do aparelho digestivo"]
["2252-25","M","Médico cirurgião geral"]
["2252-30","M","Médico cirurgião pediátrico"]
["2252-35","M","Médico cirurgião plástico"]
["2252-40","M","Médico cirurgião torácico"]
["2253-05","M","Médico citopatologista"]
["2251-25","M","Médico clínico"]
["2252-80","M","Médico coloproctologista"]
["2251-42","M","Médico da estratégia de saúde da família"]
["2251-30","M","Médico de família e comunidade"]
["2251-35","M","Médico dermatologista"]
["2251-40","M","Médico do trabalho"]
["2252-03","M","Médico em cirurgia vascular"]
["2253-10","M","Médico em endoscopia"]
["2251-45","M","Médico em medicina de tráfego"]
["2251-50","M","Médico em medicina intensiva"]
["2253-15","M","Médico em medicina nuclear"]
["2253-20","M","Médico em radiologia e diagnóstico por imagem"]
["2251-55","M","Médico endocrinologista e metabologista"]
["2251-60","M","Médico fisiatra"]
["2251-65","M","Médico gastroenterologista"]
["2251-70","M","Médico generalista"]
["2251-75","M","Médico geneticista"]
["2251-80","M","Médico geriatra"]
["2252-50","M","Médico ginecologista e obstetra"]
["2251-85","M","Médico hematologista"]
["2253-40","M","Médico hemoterapeuta"]
["2253-45","M","Médico hiperbarista"]
["2251-95","M","Médico homeopata"]
["2251-03","M","Médico infectologista"]
["2251-06","M","Médico legista"]
["2252-55","M","Médico mastologista"]
["2251-09","M","Médico nefrologista"]
["2252-60","M","Médico neurocirurgião"]
["2253-50","M","Médico neurofisiologista clínico"]
["2251-12","M","Médico neurologista"]
["2251-18","M","Médico nutrologista"]
["2252-65","M","Médico oftalmologista"]
["2251-21","M","Médico oncologista clínico"]
["2252-70","M","Médico ortopedista e traumatologista"]
["2252-75","M","Médico otorrinolaringologista"]
["2253-25","M","Médico patologista"]
["2253-35","M","Médico patologista clínico / medicina laboratorial"]
["2251-24","M","Médico pediatra"]
["2251-27","M","Médico pneumologista"]
["2251-33","M","Médico psiquiatra"]
["2253-30","M","Médico radioterapeuta"]
["2251-36","M","Médico reumatologista"]
["2251-39","M","Médico sanitarista"]
["2252-85",{"$f":"LEFT(C1283,1)","v":"M"},"Médico urologista"]
["2233-05","M","Médico veterinário"]
["1130-15","M","Membro de liderança quilombola"]
["1112-25","M","Membro superior do poder executivo"]
["7817-05","M","Mergulhador profissional (raso e profundo)"]
["7201-05","M","Mestre (afiador de ferramentas)"]
["7102-05","M","Mestre (construção civil)"]
["7202-05","M","Mestre (construção naval)"]
["7202-10","M","Mestre (indústria de automotores e material de transportes)"]
["8102-05","M","Mestre (indústria de borracha e plástico)"]
["8301-05","M","Mestre (indústria de celulose, papel e papelão)"]
["7701-05","M","Mestre (indústria de madeira e mobiliário)"]
["7202-15","M","Mestre (indústria de máquinas e outros equipamentos mecânicos)"]
["8101-05","M","Mestre (indústria petroquímica e carboquímica)"]
["7601-25","M","Mestre (indústria têxtil e de confecções)"]
["7701-10","M","Mestre carpinteiro"]
["8201-10","M","Mestre de aciaria"]
["8201-15","M","Mestre de alto-forno"]
["3412-10","M","Mestre de cabotagem"]
["7201-10","M","Mestre de caldeiraria"]
["3763-30","M","Mestre de cerimonias"]
["7202-20","M","Mestre de construção de fornos"]
["7201-15","M","Mestre de ferramentaria"]
["7201-20","M","Mestre de forjaria"]
["8201-20","M","Mestre de forno elétrico"]
["7201-25","M","Mestre de fundição"]
["7201-30","M","Mestre de galvanoplastia"]
["8201-25","M","Mestre de laminação"]
["7102-10","M","Mestre de linhas (ferrovias)"]
["7201-35","M","Mestre de pintura (tratamento de superfícies)"]
["8103-05","M","Mestre de produção farmacêutica"]
["8101-10","M","Mestre de produção química"]
["8201-05","M","Mestre de siderurgia"]
["7201-40","M","Mestre de soldagem"]
["7201-45","M","Mestre de trefilação de metais"]
["7201-50","M","Mestre de usinagem"]
["3412-15","M","Mestre fluvial"]
["7201-55","M","Mestre serralheiro"]
["7232-25","M","Metalizador (banho quente)"]
["7232-20","M","Metalizador a pistola"]
["2133-15","M","Meteorologista"]
["3523-05","M","Metrologista"]
["3741-40","M","Microfonista"]
["7111-30","M","Mineiro"]
["6134-15","M","Minhocultor"]
["2631-05","M","Ministro de culto religioso"]
["1112-15","M","Ministro de estado"]
["1113-20","M","Ministro do  superior tribunal do trabalho"]
["1113-15","M","Ministro do  superior tribunal militar"]
["1113-10","M","Ministro do superior tribunal de justiça"]
["1113-05","M","Ministro do supremo tribunal federal"]
["2631-10","M","Missionário"]
["8416-05","M","Misturador de café"]
["8416-30","M","Misturador de chá ou mate"]
["7827-15","M","Moço de convés (marítimo e fluviário)"]
["7827-20","M","Moço de máquinas (marítimo e fluviário)"]
["7711-10","M","Modelador de madeira"]
["7211-15","M","Modelador de metais (fundição)"]
["3188-15","M","Modelista de calçados"]
["3188-10","M","Modelista de roupas"]
["3764-05","M","Modelo artístico"]
["3764-10","M","Modelo de modas"]
["3764-15","M","Modelo publicitário"]
["8416-15","M","Moedor de café"]
["8412-05",{"$f":"LEFT(C1347,1)","v":"M"},"Moedor de sal"]
["7521-10","M","Moldador (vidros)"]
["8232-30","M","Moldador de abrasivos na fabricação de cerâmica, vidro e porcelana"]
["8117-50","M","Moldador de borracha por compressão"]
["7153-10","M","Moldador de corpos de prova em usinas de concreto"]
["8117-60","M","Moldador de plástico por compressão"]
["8117-70","M","Moldador de plástico por injeção"]
["7223-15","M","Moldador, a  mão"]
["7223-20","M","Moldador, a  máquina"]
["8111-05","M","Moleiro (tratamentos químicos e afins)"]
["8411-05","M","Moleiro de cereais (exceto arroz)"]
["8411-10","M","Moleiro de especiarias"]
["7121-05","M","Moleiro de minérios"]
["5153-15","M","Monitor de dependente químico"]
["5153-30","M","Monitor de ressocialização prisional"]
["9513-20","M","Monitor de sistemas eletrônicos de segurança externo"]
["9513-15","M","Monitor de sistemas eletrônicos de segurança interno"]
["4222-15","M","Monitor de teleatendimento"]
["3341-15","M","Monitor de transporte escolar"]
["7686-15","M","Monotipista"]
["7155-45","M","Montador de andaimes (edificações)"]
["7653-15","M","Montador de artefatos de couro (exceto roupas e calçados)"]
["9193-15","M","Montador de bicicletas"]
["7642-10","M","Montador de calçados"]
["7253-05","M","Montador de equipamento de levantamento"]
["7311-35","M","Montador de equipamentos elétricos"]
["7311-20","M","Montador de equipamentos elétricos (aparelhos eletrodomésticos)"]
["7311-25","M","Montador de equipamentos elétricos (centrais elétricas)"]
["7311-55","M","Montador de equipamentos elétricos (elevadores e equipamentos similares)"]
["7311-15","M","Montador de equipamentos elétricos (instrumentos de medição)"]
["7311-30","M","Montador de equipamentos elétricos (motores e dínamos)"]
["7311-60","M","Montador de equipamentos elétricos (transformadores)"]
["7311-50","M","Montador de equipamentos eletrônicos"]
["7311-05","M","Montador de equipamentos eletrônicos (aparelhos médicos)"]
["7311-10","M","Montador de equipamentos eletrônicos (computadores e equipamentos auxiliares)"]
["7312-05","M","Montador de equipamentos eletrônicos (estação de rádio, tv e equipamentos de radar)"]
["7311-40","M","Montador de equipamentos eletrônicos (instalações de sinalização)"]
["7311-45","M","Montador de equipamentos eletrônicos (máquinas industriais)"]
["7256-05","M","Montador de estruturas de aeronaves"]
["7242-05","M","Montador de estruturas metálicas"]
["7242-10","M","Montador de estruturas metálicas de embarcações"]
["3744-20","M","Montador de filmes"]
["7661-25","M","Montador de fotolito (analógico e digital)"]
["7411-10","M","Montador de instrumentos de óptica"]
["7411-15","M","Montador de instrumentos de precisão"]
["7252-05","M","Montador de máquinas"]
["7253-10","M","Montador de máquinas agrícolas"]
["7253-15","M","Montador de máquinas de minas e pedreiras"]
["7253-20","M","Montador de máquinas de terraplenagem"]
["7252-10","M","Montador de máquinas gráficas"]
["7252-15","M","Montador de máquinas operatrizes para madeira"]
["7252-20","M","Montador de máquinas têxteis"]
["7251-05","M","Montador de máquinas, motores e acessórios (montagem em série)"]
["7252-25","M","Montador de máquinas-ferramentas (usinagem de metais)"]
["7741-05","M","Montador de móveis e artefatos de madeira"]
["7256-10","M","Montador de sistemas de combustível de aeronaves"]
["7255-05","M","Montador de veículos (linha de montagem)"]
["9913-10","M","Montador de veículos (reparação)"]
["5131-10","M","Mordomo de hotelaria"]
["5131-05","M","Mordomo de residência"]
["7165-30","M","Mosaísta"]
["5191-10","M","Motofretista"]
["7825-10","M","Motorista de caminhão (rotas regionais e internacionais)"]
["7823-05","M","Motorista de carro de passeio"]
["7823-10",{"$f":"LEFT(C1411,1)","v":"M"},"Motorista de furgão ou veículo similar"]
["7824-05","M","Motorista de ônibus rodoviário"]
["7824-10","M","Motorista de ônibus urbano"]
["7823-15","M","Motorista de táxi"]
["7824-15","M","Motorista de trólebus"]
["7825-15","M","Motorista operacional de guincho"]
["7826-20","M","Motorneiro"]
["5191-15","M","Mototaxista"]
["2613-10","M","Museólogo"]
["2626-10","M","Músico arranjador"]
["2627-05","M","Músico intérprete cantor"]
["2627-10","M","Músico intérprete instrumentista"]
["2626-15","M","Músico regente"]
["2626-20","M","Musicólogo"]
["2263-05","M","Musicoterapeuta"]
["2263-20","N","Naturólogo"]
["2515-45","N","Neuropsicólogo"]
["7231-10","N","Normalizador de metais e de compósitos"]
["5167-10","N","Numerólogo"]
["2237-10","N","Nutricionista"]
["2134-40","O","Oceanógrafo"]
["0102-05","O","Oficial da aeronáutica"]
["0102-15","O","Oficial da marinha"]
["2429-05","O","Oficial de inteligência"]
["3514-25","O","Oficial de justiça"]
["2151-40","O","Oficial de quarto de navegação da marinha mercante"]
["2413-05","O","Oficial de registro de contratos marítimos"]
["0102-10","O","Oficial do exército"]
["2413-10","O","Oficial do registro civil de pessoas jurídicas"]
["2413-15","O","Oficial do registro civil de pessoas naturais"]
["2413-20","O","Oficial do registro de distribuições"]
["2413-25","O","Oficial do registro de imóveis"]
["2413-30","O","Oficial do registro de títulos e documentos"]
["0101-05","O","Oficial general da aeronáutica"]
["0101-15","O","Oficial general da marinha"]
["0101-10","O","Oficial general do exército"]
["2152-05","O","Oficial superior de máquinas da marinha mercante"]
["2429-10","O","Oficial técnico de inteligência"]
["8281-05","O","Oleiro (fabricação de telhas)"]
["8281-10","O","Oleiro (fabricação de tijolos)"]
["8621-60","O","Operador de abastecimento de combustível de aeronave"]
["7612-05","O","Operador de abertura (fiação)"]
["7663-15","O","Operador de acabamento (indústria gráfica)"]
["7222-15","O","Operador de acabamento de peças fundidas"]
["8212-30","O","Operador de aciaria (basculamento de convertedor)"]
["8212-35","O","Operador de aciaria (dessulfuração de gusa)"]
["8212-40","O","Operador de aciaria (recebimento de gusa)"]
["8114-15","O","Operador de alambique de funcionamento contínuo (produtos químicos, exceto petróleo)"]
["7121-10","O","Operador de aparelho de flotação"]
["7121-15","O","Operador de aparelho de precipitação (minas de ouro ou prata)"]
["8114-20","O","Operador de aparelho de reação e conversão (produtos químicos, exceto petróleo)"]
["8212-45","O","Operador de área de corrida"]
["3425-35","O","Operador de atendimento aeroviário"]
["8231-35","O","Operador de atomizador"]
["8232-35","O","Operador de banho metálico de vidro por flutuação"]
["7151-05","O","Operador de bate-estacas"]
["8621-15","O","Operador de bateria de gás de hulha"]
["7154-05","O","Operador de betoneira"]
["7612-10","O","Operador de binadeira"]
["7612-15","O","Operador de bobinadeira"]
["8214-20","O","Operador de bobinadeira de tiras a quente, no acabamento de chapas e metais"]
["7154-10","O","Operador de bomba de concreto"]
["8311-10","O","Operador de branqueador de pasta para fabricação de papel"]
["8111-15","O","Operador de britadeira (tratamentos químicos e afins)"]
["8116-05",{"$f":"LEFT(C1475,1)","v":"O"},"Operador de britador de coque"]
["7121-20","O","Operador de britador de mandíbulas"]
["8214-25","O","Operador de cabine de laminação (fio-máquina)"]
["4211-25","O","Operador de caixa"]
["8131-10","O","Operador de calandra (química, petroquímica e afins)"]
["7614-15","O","Operador de calandras (tecidos)"]
["8112-05","O","Operador de calcinação (tratamento químico e afins)"]
["8621-20","O","Operador de caldeira"]
["8414-56","O","Operador de câmaras frias"]
["3721-15","O","Operador de câmera de televisão"]
["7112-05","O","Operador de caminhão (minas e pedreiras)"]
["7612-20","O","Operador de cardas"]
["7112-10","O","Operador de carregadeira"]
["8116-10","O","Operador de carro de apagamento e coque"]
["9922-15","O","Operador de ceifadeira na conservação de vias permanentes"]
["7154-15","O","Operador de central de concreto"]
["8611-05","O","Operador de central hidrelétrica"]
["8611-15","O","Operador de central termoelétrica"]
["8113-05","O","Operador de centrifugadora (tratamentos químicos e afins)"]
["8211-05","O","Operador de centro de controle"]
["3424-10","O","Operador de centro de controle (ferrovia e metrô)"]
["7214-05","O","Operador de centro de usinagem com comando numérico"]
["7735-05","O","Operador de centro de usinagem de madeira (cnc)"]
["7614-20","O","Operador de chamuscadeira de tecidos"]
["4132-30","O","Operador de cobrança bancária"]
["6420-05","O","Operador de colhedor florestal"]
["6410-05","O","Operador de colheitadeira"]
["7151-10","O","Operador de compactadora de solos"]
["8621-30","O","Operador de compressor de ar"]
["3172-05","O","Operador de computador (inclusive microcomputador)"]
["8111-20","O","Operador de concentração"]
["7612-25","O","Operador de conicaleira"]
["3731-35","O","Operador de controle mestre"]
["8321-10","O","Operador de cortadeira de papel"]
["8413-05","O","Operador de cristalização na refinação de açucar"]
["7733-05","O","Operador de desempenadeira na usinagem convencional de madeira"]
["8212-50","O","Operador de desgaseificação"]
["8116-15","O","Operador de destilação e subprodutos de coque"]
["8311-15","O","Operador de digestor de pasta para fabricação de papel"]
["7822-10","O","Operador de docagem"]
["7821-05","O","Operador de draga"]
["7822-20","O","Operador de empilhadeira"]
["8116-20","O","Operador de enfornamento e desenfornamento de coque"]
["7613-48","O","Operador de engomadeira de urdume"]
["7733-10","O","Operador de entalhadeira (usinagem de madeira)"]
["8114-25","O","Operador de equipamento de destilação de álcool"]
["7233-05","O","Operador de equipamento de secagem de pintura"]
["7231-15","O","Operador de equipamento para resfriamento"]
["7223-25","O","Operador de equipamentos de preparação de areia"]
["8413-10","O","Operador de equipamentos de refinação de açúcar (processo contínuo)"]
["7151-15","O","Operador de escavadeira"]
["8214-30","O","Operador de escória e sucata"]
["7524-20","O","Operador de esmaltadeira"]
["7524-25","O","Operador de espelhamento"]
["7121-25","O","Operador de espessador"]
["7613-51","O","Operador de espuladeira"]
["8621-40","O","Operador de estação de bombeamento"]
["8622-05","O","Operador de estação de captação, tratamento e distribuição de água"]
["8623-05","O","Operador de estação de tratamento de água e efluentes"]
["8114-30","O","Operador de evaporador na destilação"]
["8116-25","O","Operador de exaustor (coqueria)"]
["8113-10","O","Operador de exploração de petróleo"]
["8416-20","O","Operador de extração de café solúvel"]
["8131-15","O","Operador de extrusora (química, petroquímica e afins)"]
["7612-30",{"$f":"LEFT(C1539,1)","v":"O"},"Operador de filatório"]
["8113-15","O","Operador de filtro de secagem (mineração)"]
["8113-20","O","Operador de filtro de tambor rotativo (tratamentos químicos e afins)"]
["8113-25","O","Operador de filtro-esteira (mineração)"]
["8113-30","O","Operador de filtro-prensa (tratamentos químicos e afins)"]
["8113-35","O","Operador de filtros de parafina (tratamentos químicos e afins)"]
["8418-05","O","Operador de forno (fabricação de pães, biscoitos e similares)"]
["5166-05","O","Operador de forno (serviços funerários)"]
["8623-10","O","Operador de forno de incineração no tratamento de água, efluentes e resíduos industriais"]
["7231-20","O","Operador de forno de tratamento térmico de metais"]
["7733-15","O","Operador de fresadora (usinagem de madeira)"]
["7214-10","O","Operador de fresadora com comando numérico"]
["7663-20","O","Operador de guilhotina (corte de papel)"]
["7821-10","O","Operador de guindaste (fixo)"]
["7821-15","O","Operador de guindaste móvel"]
["7614-25","O","Operador de impermeabilizador de tecidos"]
["6233-15","O","Operador de incubadora"]
["3912-15","O","Operador de inspeção de qualidade"]
["8625-15","O","Operador de instalação de ar-condicionado"]
["8624-05","O","Operador de instalação de extração, processamento, envasamento e distribuição de gases"]
["8625-05","O","Operador de instalação de refrigeração"]
["8214-35","O","Operador de jato abrasivo"]
["7121-30","O","Operador de jig (minas)"]
["7246-05","O","Operador de laços de cabos de aço"]
["7612-35","O","Operador de laminadeira e reunideira"]
["8213-05","O","Operador de laminador"]
["8213-10","O","Operador de laminador de barras a frio"]
["8213-15","O","Operador de laminador de barras a quente"]
["8213-20","O","Operador de laminador de metais não-ferrosos"]
["8213-25","O","Operador de laminador de tubos"]
["8311-20","O","Operador de lavagem e depuração de pasta para fabricação de papel"]
["7311-75","O","Operador de linha de montagem (aparelhos elétricos)"]
["7311-80","O","Operador de linha de montagem (aparelhos eletrônicos)"]
["7733-20","O","Operador de lixadeira (usinagem de madeira)"]
["7612-40","O","Operador de maçaroqueira"]
["7214-15","O","Operador de mandriladora com comando numérico"]
["8421-25","O","Operador de máquina (fabricação de cigarros)"]
["7734-05","O","Operador de máquina bordatriz"]
["7222-20","O","Operador de máquina centrifugadora de fundição"]
["4151-30","O","Operador de máquina copiadora (exceto operador de gráfica rápida)"]
["7112-15","O","Operador de máquina cortadora (minas e pedreiras)"]
["7151-20","O","Operador de máquina de abrir valas"]
["7245-05","O","Operador de máquina de cilindrar chapas"]
["7613-54","O","Operador de máquina de cordoalha"]
["8331-20","O","Operador de máquina de cortar e dobrar papelão"]
["7734-10","O","Operador de máquina de cortina d´água (produção de móveis)"]
["7633-20","O","Operador de máquina de costura de acabamento"]
["7245-10","O","Operador de máquina de dobrar chapas"]
["7212-05","O","Operador de máquina de eletroerosão"]
["7841-20","O","Operador de máquina de envasar líquidos"]
["7841-15","O","Operador de máquina de etiquetar"]
["7112-20","O","Operador de máquina de extração contínua (minas de carvão)"]
["8118-15","O","Operador de máquina de fabricação de cosméticos"]
["8118-20","O","Operador de máquina de fabricação de produtos de higiene e limpeza (sabão, sabonete, detergente, absorvente, fraldas cotonetes e outros)"]
["8422-10","O","Operador de máquina de fabricar charutos e cigarrilhas"]
["8321-15","O","Operador de máquina de fabricar papel  (fase úmida)"]
["8321-20","O","Operador de máquina de fabricar papel (fase seca)"]
["8321-25","O","Operador de máquina de fabricar papel e papelão"]
["7222-25","O","Operador de máquina de fundir sob pressão"]
["7614-30","O","Operador de máquina de lavar fios e tecidos"]
["7223-30","O","Operador de máquina de moldar automatizada"]
["8421-35","O","Operador de máquina de preparação de matéria prima para produção de cigarros"]
["8118-05","O","Operador de máquina de produtos farmacêuticos"]
["8311-25","O","Operador de máquina de secar celulose"]
["8211-10",{"$f":"LEFT(C1603,1)","v":"O"},"Operador de máquina de sinterizar"]
["8232-40","O","Operador de máquina de soprar vidro"]
["7734-15","O","Operador de máquina de usinagem de madeira (produção em série)"]
["7733-25","O","Operador de máquina de usinagem madeira, em geral"]
["7214-20","O","Operador de máquina eletroerosão, à fio, com comando numérico"]
["8232-45","O","Operador de máquina extrusora de varetas e tubos de vidro"]
["7732-05","O","Operador de máquina intercaladora e placas (compensados)"]
["8111-10","O","Operador de máquina misturadeira (tratamentos químicos e afins)"]
["7112-25","O","Operador de máquina perfuradora (minas e pedreiras)"]
["7112-30","O","Operador de máquina perfuratriz"]
["7232-30","O","Operador de máquina recobridora de arame"]
["7821-20","O","Operador de máquina rodoferroviária"]
["6410-10","O","Operador de máquinas de beneficiamento de produtos agrícolas"]
["7151-25","O","Operador de máquinas de construção civil e mineração"]
["8418-15","O","Operador de máquinas de fabricação de chocolates e achocolatados"]
["8418-10","O","Operador de máquinas de fabricação de doces, salgados e massas alimentícias"]
["7735-10","O","Operador de máquinas de usinar madeira (cnc)"]
["7623-25","O","Operador de máquinas do acabamento de couros e peles"]
["9911-15","O","Operador de máquinas especiais em conservação de via permanente (trilhos)"]
["8621-50","O","Operador de máquinas fixas, em geral"]
["6420-10","O","Operador de máquinas florestais estáticas"]
["7212-10","O","Operador de máquinas operatrizes"]
["7212-15","O","Operador de máquinas-ferramenta convencionais"]
["7170-10","O","Operador de martelete"]
["4121-15","O","Operador de mensagens de telecomunicações (correios)"]
["3731-05","O","Operador de mídia audiovisual"]
["8413-15","O","Operador de moenda na fabricação de açúcar"]
["7733-30","O","Operador de molduradora (usinagem de madeira)"]
["7821-25","O","Operador de monta-cargas (construção civil)"]
["8213-30","O","Operador de montagem de cilindros e mancais"]
["7151-30","O","Operador de motoniveladora"]
["7112-35","O","Operador de motoniveladora (extração de minerais sólidos)"]
["6321-20","O","Operador de motosserra"]
["2532-25","O","Operador de negócios"]
["7612-45","O","Operador de open-end"]
["7151-35","O","Operador de pá carregadeira"]
["8116-30","O","Operador de painel de controle"]
["8115-05","O","Operador de painel de controle (refinação de petróleo)"]
["7612-50","O","Operador de passador (fiação)"]
["7151-40","O","Operador de pavimentadora (asfalto, concreto e materiais similares)"]
["7121-35","O","Operador de peneiras hidráulicas"]
["7612-55","O","Operador de penteadeira"]
["7733-35","O","Operador de plaina desengrossadeira"]
["7821-30","O","Operador de ponte rolante"]
["7821-35","O","Operador de pórtico rolante"]
["7734-20","O","Operador de prensa de alta freqüência na usinagem de madeira"]
["8331-25","O","Operador de prensa de embutir papelão"]
["7841-25","O","Operador de prensa de enfardamento"]
["5192-15","O","Operador de prensa de material reciclável"]
["8232-50","O","Operador de prensa de moldar vidro"]
["8414-60","O","Operador de preparação de grãos vegetais (óleos e gorduras)"]
["8116-35","O","Operador de preservação e controle térmico"]
["8131-20","O","Operador de processo (química, petroquímica e afins)"]
["8411-15","O","Operador de processo de moagem"]
["7661-50","O","Operador de processo de tratamento de imagem"]
["8110-05","O","Operador de processos químicos e petroquímicos"]
["8131-25","O","Operador de produção (química, petroquímica e afins)"]
["3743-05","O","Operador de projetor cinematográfico"]
["8611-10","O","Operador de quadro de distribuição de energia elétrica"]
["4222-20","O","Operador de rádio-chamada"]
["7614-35","O","Operador de rameuse"]
["8116-40","O","Operador de reator de coque de petróleo"]
["8611-20","O","Operador de reator nuclear"]
["8321-35","O","Operador de rebobinadeira na fabricação de papel e papelão"]
["3722-05",{"$f":"LEFT(C1667,1)","v":"O"},"Operador de rede de teleprocessamento"]
["8116-45","O","Operador de refrigeração (coqueria)"]
["8625-10","O","Operador de refrigeração com amônia"]
["7214-25","O","Operador de retificadora com comando numérico"]
["7612-60","O","Operador de retorcedeira"]
["8110-10","O","Operador de sala de controle de instalações químicas, petroquímicas e afins"]
["7114-10","O","Operador de salina (sal marinho)"]
["7112-40","O","Operador de schutthecar"]
["7733-40","O","Operador de serras (usinagem de madeira)"]
["7731-10","O","Operador de serras no desdobramento de madeira"]
["8116-50","O","Operador de sistema de reversão (coqueria)"]
["7661-45","O","Operador de sistemas de prova (analógico e digital)"]
["7113-05","O","Operador de sonda de percussão"]
["7113-10","O","Operador de sonda rotativa"]
["8612-05","O","Operador de subestação"]
["7821-40","O","Operador de talha elétrica"]
["7826-30","O","Operador de teleférico (passageiros)"]
["4223-05","O","Operador de telemarketing ativo"]
["4223-10","O","Operador de telemarketing ativo e receptivo"]
["4223-15","O","Operador de telemarketing receptivo"]
["4223-20","O","Operador de telemarketing técnico"]
["8214-40","O","Operador de tesoura mecânica e máquina de corte, no acabamento de chapas e metais"]
["7255-10","O","Operador de time de montagem"]
["7733-45","O","Operador de torno automático (usinagem de madeira)"]
["7214-30","O","Operador de torno com comando numérico"]
["8115-10","O","Operador de transferência e estocagem - na refinação do petróleo"]
["3421-10","O","Operador de transporte multimodal"]
["8413-20","O","Operador de tratamento de calda na refinação de açúcar"]
["8112-15","O","Operador de tratamento químico de materiais radioativos"]
["7112-45","O","Operador de trator (minas e pedreiras)"]
["7151-45","O","Operador de trator de lâmina"]
["6420-15","O","Operador de trator florestal"]
["7826-05","O","Operador de trem de metrô"]
["4152-10","O","Operador de triagem e transbordo"]
["7733-50","O","Operador de tupia (usinagem de madeira)"]
["3548-10","O","Operador de turismo"]
["7613-57","O","Operador de urdideira"]
["7212-20","O","Operador de usinagem convencional por abrasão"]
["8621-55","O","Operador de utilidade (produção e distribuição de vapor, gás, óleo, combustível, energia, oxigênio)"]
["7222-30","O","Operador de vazamento (lingotamento)"]
["7813-05","O","Operador de veículos subaquáticos controlados remotamente"]
["7232-35","O","Operador de zincagem (processo eletrolítico)"]
["9541-25","O","Operador eletromecânico"]
["7610-05","O","Operador polivalente da indústria têxtil"]
["3743-10","O","Operador-mantenedor de projetor cinematográfico"]
["3548-20","O","Organizador de evento"]
["2394-10","O","Orientador educacional"]
["2239-10","O","Ortoptista"]
["2261-10","O","Osteopata"]
["7511-25","O","Ourives"]
["1423-40","O","Ouvidor"]
["7243-10","O","Oxicortador a mão e a  máquina"]
["7232-40","O","Oxidador"]
["8483-05","P","Padeiro"]
["7686-20","P","Paginador"]
["7623-35","P","Palecionador de couros e peles"]
["2134-30","P","Paleontólogo"]
["3762-45","P","Palhaço"]
["3518-15","P","Papiloscopista policial"]
["5168-10","P","Paranormal"]
["5151-15","P","Parteira leiga"]
["7633-25","P","Passadeira de peças confeccionadas"]
["5163-25","P","Passador de roupas em geral"]
["5164-15","P","Passador de roupas, à mão"]
["7613-60",{"$f":"LEFT(C1731,1)","v":"P"},"Passamaneiro a  máquina"]
["8482-05","P","Pasteurizador"]
["7165-15","P","Pastilheiro"]
["3412-20","P","Patrão de pesca de alto-mar"]
["3412-25","P","Patrão de pesca na navegação interior"]
["2394-15","P","Pedagogo"]
["5161-40","P","Pedicure"]
["7152-10","P","Pedreiro"]
["7152-15","P","Pedreiro (chaminés industriais)"]
["7152-20","P","Pedreiro (material refratário)"]
["7152-25","P","Pedreiro (mineração)"]
["9922-20","P","Pedreiro de conservação de vias permanentes (exceto trilhos)"]
["7152-30","P","Pedreiro de edificações"]
["3250-15","P","Perfumista"]
["2235-70","P","Perfusionista"]
["2522-15","P","Perito contábil"]
["2041-05","P","Perito criminal"]
["6311-05","P","Pescador artesanal de água doce"]
["6310-15","P","Pescador artesanal de lagostas"]
["6310-20","P","Pescador artesanal de peixes e camarões"]
["6312-05","P","Pescador industrial"]
["6312-10","P","Pescador profissional"]
["2033-05","P","Pesquisador de clínica médica"]
["2032-05","P","Pesquisador de engenharia civil"]
["2032-10","P","Pesquisador de engenharia e tecnologia (outras áreas da engenharia)"]
["2032-15","P","Pesquisador de engenharia elétrica e eletrônica"]
["2032-20","P","Pesquisador de engenharia mecânica"]
["2032-25","P","Pesquisador de engenharia metalúrgica, de minas e de materiais"]
["2032-30","P","Pesquisador de engenharia química"]
["2033-10","P","Pesquisador de medicina básica"]
["2030-05","P","Pesquisador em biologia ambiental"]
["2030-10","P","Pesquisador em biologia animal"]
["2030-15","P","Pesquisador em biologia de microorganismos e parasitas"]
["2030-20","P","Pesquisador em biologia humana"]
["2030-25","P","Pesquisador em biologia vegetal"]
["2034-05","P","Pesquisador em ciências agronômicas"]
["2031-05","P","Pesquisador em ciências da computação e informática"]
["2035-15","P","Pesquisador em ciências da educação"]
["2034-10","P","Pesquisador em ciências da pesca e aqüicultura"]
["2031-10","P","Pesquisador em ciências da terra e meio ambiente"]
["2034-15","P","Pesquisador em ciências da zootecnia"]
["2034-20","P","Pesquisador em ciências florestais"]
["2035-05","P","Pesquisador em ciências sociais e humanas"]
["2035-10","P","Pesquisador em economia"]
["2031-15","P","Pesquisador em física"]
["2035-20","P","Pesquisador em história"]
["2031-20","P","Pesquisador em matemática"]
["2033-15","P","Pesquisador em medicina veterinária"]
["2012-05","P","Pesquisador em metrologia"]
["2035-25","P","Pesquisador em psicologia"]
["2031-25","P","Pesquisador em química"]
["2033-20","P","Pesquisador em saúde coletiva"]
["2134-35","P","Petrógrafo"]
["7613-66","P","Picotador de cartões jacquard"]
["3411-20","P","Piloto agrícola"]
["3411-05","P","Piloto comercial (exceto linhas aéreas)"]
["3411-10","P","Piloto comercial de helicóptero (exceto linhas aéreas)"]
["2153-05","P","Piloto de aeronaves"]
["3771-35","P","Piloto de competição automobilística"]
["2153-10","P","Piloto de ensaios em vôo"]
["3412-30","P","Piloto fluvial"]
["7233-10","P","Pintor a pincel e rolo (exceto obras e estruturas metálicas)"]
["7524-30","P","Pintor de cerâmica, a  pincel"]
["7233-15","P","Pintor de estruturas metálicas"]
["7686-25",{"$f":"LEFT(C1795,1)","v":"P"},"Pintor de letreiros"]
["7166-10","P","Pintor de obras"]
["7233-20","P","Pintor de veículos (fabricação)"]
["9913-15","P","Pintor de veículos (reparação)"]
["7233-25","P","Pintor por imersão"]
["7233-30","P","Pintor, a  pistola (exceto obras e estruturas metálicas)"]
["5243-10","P","Pipoqueiro ambulante"]
["8121-05","P","Pirotécnico"]
["5136-10","P","Pizzaiolo"]
["3911-20","P","Planejista"]
["7113-25","P","Plataformista (petróleo)"]
["7170-15","P","Poceiro (edificações)"]
["3221-10","P","Podólogo"]
["2615-25","P","Poeta"]
["5172-25","P","Policial legislativo"]
["5172-10","P","Policial rodoviário federal"]
["7213-25","P","Polidor de metais"]
["7122-20","P","Polidor de pedras"]
["5174-05","P","Porteiro (hotel)"]
["5174-10","P","Porteiro de edifícios"]
["5174-15","P","Porteiro de locais de diversão"]
["0103-05","P","Praça da aeronáutica"]
["0103-15","P","Praça da marinha"]
["0103-10","P","Praça do exército"]
["2151-45","P","Prático de portos da marinha mercante"]
["1112-50","P","Prefeito"]
["7623-30","P","Prensador de couros e peles"]
["8414-64","P","Prensador de frutas (exceto oleaginosas)"]
["7245-15","P","Prensista (operador de prensa)"]
["7732-10","P","Prensista de aglomerados"]
["7732-15","P","Prensista de compensados"]
["8231-30","P","Preparador de aditivos"]
["7732-20","P","Preparador de aglomerantes"]
["2241-15","P","Preparador de atleta"]
["8231-20","P","Preparador de barbotina"]
["7641-15","P","Preparador de calçados"]
["7623-40","P","Preparador de couros curtidos"]
["8231-25","P","Preparador de esmaltes (cerâmica)"]
["7242-20","P","Preparador de estruturas metálicas"]
["8422-05","P","Preparador de fumo na fabricação de charutos"]
["7212-25","P","Preparador de máquinas-ferramenta"]
["8231-05","P","Preparador de massa (fabricação de abrasivos)"]
["8231-10","P","Preparador de massa (fabricação de vidro)"]
["8231-15","P","Preparador de massa de argila"]
["7663-25","P","Preparador de matrizes de corte e vinco"]
["8421-05","P","Preparador de melado e essência de fumo"]
["7222-35","P","Preparador de panelas (lingotamento)"]
["8414-68","P","Preparador de rações"]
["7641-20","P","Preparador de solas e palmilhas"]
["8214-45","P","Preparador de sucata e aparas"]
["3117-15","P","Preparador de tintas"]
["3117-20","P","Preparador de tintas (fábrica de tecidos)"]
["2241-20","P","Preparador físico"]
["1112-05","P","Presidente da república"]
["2152-10","P","Primeiro oficial de máquinas da marinha mercante"]
["0203-05","P","Primeiro tenente de polícia militar"]
["8421-10","P","Processador de fumo"]
["2412-10","P","Procurador autárquico"]
["2424-10","P","Procurador da assistência judiciária"]
["2412-15","P","Procurador da fazenda nacional"]
["2422-05","P","Procurador da república"]
["2422-10","P","Procurador de justiça"]
["2422-15","P","Procurador de justiça militar"]
["2412-20","P","Procurador do estado"]
["2412-25",{"$f":"LEFT(C1859,1)","v":"P"},"Procurador do município"]
["2422-20","P","Procurador do trabalho"]
["2412-30","P","Procurador federal"]
["2412-35","P","Procurador fundacional"]
["2422-25","P","Procurador regional da república"]
["2422-30","P","Procurador regional do trabalho"]
["6120-05","P","Produtor agrícola polivalente"]
["6110-05","P","Produtor agropecuário, em geral"]
["2621-10","P","Produtor cinematográfico"]
["2621-05","P","Produtor cultural"]
["6127-05","P","Produtor da cultura de amendoim"]
["6127-10","P","Produtor da cultura de canola"]
["6127-15","P","Produtor da cultura de coco-da-baia"]
["6127-20","P","Produtor da cultura de dendê"]
["6127-25","P","Produtor da cultura de girassol"]
["6127-30","P","Produtor da cultura de linho"]
["6127-35","P","Produtor da cultura de mamona"]
["6127-40","P","Produtor da cultura de soja"]
["6122-05","P","Produtor de algodão"]
["6121-05","P","Produtor de arroz"]
["6125-05","P","Produtor de árvores frutíferas"]
["6126-10","P","Produtor de cacau"]
["6121-10","P","Produtor de cana-de-açúcar"]
["6121-15","P","Produtor de cereais de inverno"]
["6122-10","P","Produtor de curauá"]
["6126-15","P","Produtor de erva-mate"]
["6128-05","P","Produtor de especiarias"]
["6125-10","P","Produtor de espécies frutíferas rasteiras"]
["6125-15","P","Produtor de espécies frutíferas trepadeiras"]
["6124-05","P","Produtor de flores de corte"]
["6124-10","P","Produtor de flores em vaso"]
["6124-15","P","Produtor de forrações"]
["6126-20","P","Produtor de fumo"]
["6121-20","P","Produtor de gramíneas forrageiras"]
["6126-25","P","Produtor de guaraná"]
["6122-15","P","Produtor de juta"]
["6121-25","P","Produtor de milho e sorgo"]
["6128-10","P","Produtor de plantas aromáticas e medicinais"]
["6124-20","P","Produtor de plantas ornamentais"]
["2621-15","P","Produtor de rádio"]
["6122-20","P","Produtor de rami"]
["6122-25","P","Produtor de sisal"]
["2621-20","P","Produtor de teatro"]
["2621-25","P","Produtor de televisão"]
["2611-30","P","Produtor de texto"]
["6123-20","P","Produtor na olericultura de frutos e sementes"]
["6123-05","P","Produtor na olericultura de legumes"]
["6123-10","P","Produtor na olericultura de raízes, bulbos e tubérculos"]
["6123-15","P","Produtor na olericultura de talos, folhas e flores"]
["6314-15","P","Proeiro"]
["2312-05","P","Professor da  educação de jovens e adultos do ensino fundamental (primeira a quarta série)"]
["2331-05","P","Professor da área de meio ambiente"]
["2348-10","P","Professor de administração"]
["2392-05","P","Professor de alunos com deficiência auditiva e surdos"]
["2392-10","P","Professor de alunos com deficiência física"]
["2392-15","P","Professor de alunos com deficiência mental"]
["2392-20","P","Professor de alunos com deficiência múltipla"]
["2392-25","P","Professor de alunos com deficiência visual"]
["2347-05","P","Professor de antropologia do ensino superior"]
["2343-05","P","Professor de arquitetura"]
["2347-10","P","Professor de arquivologia do ensino superior"]
["2349-05","P","Professor de artes do espetáculo no ensino superior"]
["2321-05","P","Professor de artes no ensino médio"]
["2349-10","P","Professor de artes visuais no ensino superior (artes plásticas e multimídia)"]
["2342-15",{"$f":"LEFT(C1923,1)","v":"P"},"Professor de astronomia (ensino superior)"]
["2347-15","P","Professor de biblioteconomia do ensino superior"]
["2321-10","P","Professor de biologia no ensino médio"]
["2347-20","P","Professor de ciência política do ensino superior"]
["2344-05","P","Professor de ciências biológicas do ensino superior"]
["2313-05","P","Professor de ciências exatas e naturais do ensino fundamental"]
["2341-20","P","Professor de computação (no ensino superior)"]
["2347-25","P","Professor de comunicação social do ensino superior"]
["2348-15","P","Professor de contabilidade"]
["2628-30","P","Professor de dança"]
["2331-10","P","Professor de desenho técnico"]
["2347-30","P","Professor de direito do ensino superior"]
["2321-15","P","Professor de disciplinas pedagógicas no ensino médio"]
["2348-05","P","Professor de economia"]
["2313-10","P","Professor de educação artística do ensino fundamental"]
["2313-15","P","Professor de educação física do ensino fundamental"]
["2321-20","P","Professor de educação física no ensino médio"]
["2344-10","P","Professor de educação física no ensino superior"]
["2344-15","P","Professor de enfermagem do ensino superior"]
["2343-10","P","Professor de engenharia"]
["2345-05","P","Professor de ensino superior na área de didática"]
["2345-10","P","Professor de ensino superior na área de orientação educacional"]
["2345-15","P","Professor de ensino superior na área de pesquisa educacional"]
["2345-20","P","Professor de ensino superior na área de prática de ensino"]
["2341-15","P","Professor de estatística (no ensino superior)"]
["2344-20","P","Professor de farmácia e bioquímica"]
["2346-76","P","Professor de filologia e crítica textual"]
["2347-35","P","Professor de filosofia do ensino superior"]
["2321-25","P","Professor de filosofia no ensino médio"]
["2342-05","P","Professor de física (ensino superior)"]
["2321-30","P","Professor de física no ensino médio"]
["2344-25","P","Professor de fisioterapia"]
["2344-30","P","Professor de fonoaudiologia"]
["2343-15","P","Professor de geofísica"]
["2313-20","P","Professor de geografia do ensino fundamental"]
["2347-40","P","Professor de geografia do ensino superior"]
["2321-35","P","Professor de geografia no ensino médio"]
["2343-20","P","Professor de geologia"]
["2313-25","P","Professor de história do ensino fundamental"]
["2347-45","P","Professor de história do ensino superior"]
["2321-40","P","Professor de história no ensino médio"]
["2347-50","P","Professor de jornalismo"]
["2346-04","P","Professor de língua alemã"]
["2321-45","P","Professor de língua e literatura brasileira no ensino médio"]
["2346-20","P","Professor de língua espanhola"]
["2313-30","P","Professor de língua estrangeira moderna do ensino fundamental"]
["2321-50","P","Professor de língua estrangeira moderna no ensino médio"]
["2346-12","P","Professor de língua francesa"]
["2346-16","P","Professor de língua inglesa"]
["2346-08","P","Professor de língua italiana"]
["2346-24","P","Professor de língua portuguesa"]
["2313-35","P","Professor de língua portuguesa do ensino fundamental"]
["2346-68","P","Professor de línguas estrangeiras modernas"]
["2346-72","P","Professor de lingüística e lingüística aplicada"]
["2346-36","P","Professor de literatura alemã"]
["2346-28","P","Professor de literatura brasileira"]
["2346-40","P","Professor de literatura comparada"]
["2346-60","P","Professor de literatura de línguas estrangeiras modernas"]
["2346-44","P","Professor de literatura espanhola"]
["2346-48","P","Professor de literatura francesa"]
["2346-52","P","Professor de literatura inglesa"]
["2346-56","P","Professor de literatura italiana"]
["2346-32","P","Professor de literatura portuguesa"]
["2341-05","P","Professor de matemática aplicada (no ensino superior)"]
["2313-40",{"$f":"LEFT(C1987,1)","v":"P"},"Professor de matemática do ensino fundamental"]
["2321-55","P","Professor de matemática no ensino médio"]
["2341-10","P","Professor de matemática pura (no ensino superior)"]
["2344-35","P","Professor de medicina"]
["2344-40","P","Professor de medicina veterinária"]
["2347-55","P","Professor de museologia do ensino superior"]
["2349-15","P","Professor de música no ensino superior"]
["3311-05","P","Professor de nível médio na educação infantil"]
["3312-05","P","Professor de nível médio no ensino fundamental"]
["3313-05","P","Professor de nível médio no ensino profissionalizante"]
["2312-10","P","Professor de nível superior do ensino fundamental (primeira a quarta série)"]
["2311-05","P","Professor de nível superior na educação infantil (quatro a seis anos)"]
["2311-10","P","Professor de nível superior na educação infantil (zero a três anos)"]
["2344-45","P","Professor de nutrição"]
["2344-50","P","Professor de odontologia"]
["2346-64","P","Professor de outras línguas e literaturas"]
["2341-25","P","Professor de pesquisa operacional (no ensino superior)"]
["2347-60","P","Professor de psicologia do ensino superior"]
["2321-60","P","Professor de psicologia no ensino médio"]
["2342-10","P","Professor de química (ensino superior)"]
["2321-65","P","Professor de química no ensino médio"]
["2346-80","P","Professor de semiótica"]
["2347-65","P","Professor de serviço social do ensino superior"]
["2347-70","P","Professor de sociologia do ensino superior"]
["2321-70","P","Professor de sociologia no ensino médio"]
["2331-15","P","Professor de técnicas agrícolas"]
["2331-20","P","Professor de técnicas comerciais e secretariais"]
["2331-25","P","Professor de técnicas de enfermagem"]
["2394-20","P","Professor de técnicas e recursos audiovisuais"]
["2331-30","P","Professor de técnicas industriais"]
["2331-35","P","Professor de tecnologia e cálculo técnico"]
["2346-84","P","Professor de teoria da literatura"]
["2344-55","P","Professor de terapia ocupacional"]
["2344-60","P","Professor de zootecnia do ensino superior"]
["2332-20","P","Professor instrutor de ensino e aprendizagem agroflorestal"]
["2332-25","P","Professor instrutor de ensino e aprendizagem em serviços"]
["3321-05","P","Professor leigo no ensino fundamental"]
["3322-05","P","Professor prático no ensino profissionalizante"]
["3331-15","P","Professores de cursos livres"]
["3771-40","P","Profissional de atletismo"]
["2525-50","P","Profissional de relações com investidores"]
["1423-45","P","Profissional de relações institucionais e governamentais"]
["5198-05","P","Profissional do sexo"]
["3171-05","P","Programador de internet"]
["3171-15","P","Programador de máquinas - ferramenta com comando numérico"]
["3171-20","P","Programador de multimídia"]
["3171-10","P","Programador de sistemas de informação"]
["7661-55","P","Programador visual gráfico"]
["3188-05","P","Projetista de móveis"]
["3741-35","P","Projetista de sistemas de áudio"]
["3741-20","P","Projetista de som"]
["2422-35","P","Promotor de justiça"]
["5211-15","P","Promotor de vendas"]
["3541-30","P","Promotor de vendas especializado"]
["3541-50","P","Propagandista de produtos famacêuticos"]
["3224-10","P","Protético dentário"]
["2515-50","P","Psicanalista"]
["2515-55","P","Psicólogo acupunturista"]
["2515-10","P","Psicólogo clínico"]
["2515-15","P","Psicólogo do esporte"]
["2515-40","P","Psicólogo do trabalho"]
["2515-35","P","Psicólogo do trânsito"]
["2515-05","P","Psicólogo educacional"]
["2515-20","P","Psicólogo hospitalar"]
["2515-25",{"$f":"LEFT(C2051,1)","v":"P"},"Psicólogo jurídico"]
["2515-30","P","Psicólogo social"]
["2394-25","P","Psicopedagogo"]
["2531-15","P","Publicitário"]
["3771-45","P","Pugilista"]
["8482-10","Q","Queijeiro na fabricação de laticínio"]
["2132-05","Q","Químico"]
["2132-10","Q","Químico industrial"]
["2261-05","Q","Quiropraxista"]
["7621-25","R","Rachador de couros e peles"]
["3722-10","R","Radiotelegrafista"]
["6320-10","R","Raizeiro"]
["7622-20","R","Rebaixador de couros"]
["8214-50","R","Rebarbador de metal"]
["7242-15","R","Rebitador a  martelo pneumático"]
["7242-30","R","Rebitador, a  mão"]
["4212-05","R","Recebedor de apostas (loteria)"]
["4212-10","R","Recebedor de apostas (turfe)"]
["4221-25","R","Recepcionista de banco"]
["5199-45","R","Recepcionista de casas de espetáculos"]
["4221-10","R","Recepcionista de consultório médico ou dentário"]
["4221-20","R","Recepcionista de hotel"]
["4221-15","R","Recepcionista de seguro saúde"]
["4221-05","R","Recepcionista, em geral"]
["3714-10","R","Recreador"]
["3714-05","R","Recreador de acantonamento"]
["8213-35","R","Recuperador de guias e cilindros"]
["2531-10","R","Redator de publicidade"]
["2615-30","R","Redator de textos técnicos"]
["7681-20","R","Redeiro"]
["6314-20","R","Redeiro (pesca)"]
["8414-72","R","Refinador de óleo e gordura"]
["8412-10","R","Refinador de sal"]
["4153-05","R","Registrador de câncer"]
["7165-40","R","Rejuntador de revestimentos"]
["1423-25","R","Relações públicas"]
["7411-20","R","Relojoeiro (fabricação)"]
["7411-25","R","Relojoeiro (reparação)"]
["7613-63","R","Remetedor de fios"]
["7313-30","R","Reparador de aparelhos de telecomunicações em laboratório"]
["9542-05","R","Reparador de aparelhos eletrodomésticos (exceto imagem e som)"]
["9543-05","R","Reparador de equipamentos de escritório"]
["9154-05","R","Reparador de equipamentos fotográficos"]
["9152-10","R","Reparador de instrumentos musicais"]
["9542-10","R","Reparador de rádio, tv e som"]
["2611-35","R","Repórter (exclusive rádio e televisão)"]
["2617-30","R","Repórter de mídias audiovisuais"]
["2618-20","R","Repórter fotográfico"]
["5211-25","R","Repositor de mercadorias"]
["3547-05","R","Representante comercial autônomo"]
["9152-05","R","Restaurador de instrumentos musicais (exceto cordas arcadas)"]
["7687-10","R","Restaurador de livros"]
["8485-25","R","Retalhador de carne"]
["7664-15","R","Revelador de filmes fotográficos, em cores"]
["7664-10","R","Revelador de filmes fotográficos, em preto e branco"]
["7166-15","R","Revestidor de interiores (papel, material plástico e emborrachados)"]
["7161-10","R","Revestidor de superfícies de concreto"]
["7618-10","R","Revisor de fios (produção têxtil)"]
["7618-15","R","Revisor de tecidos acabados"]
["7618-20","R","Revisor de tecidos crus"]
["2611-40","R","Revisor de texto"]
["7242-25","R","Riscador de estruturas metálicas"]
["7631-20","R","Riscador de roupas"]
["5141-15","S","Sacristão"]
["8481-10",{"$f":"LEFT(C2115,1)","v":"S"},"Salgador de alimentos"]
["8481-15","S","Salsicheiro (fabricação de lingüiça, salsicha e produtos similares)"]
["5171-15","S","Salva-vidas"]
["1312-25","S","Sanitarista"]
["7683-20","S","Sapateiro (calçados sob medida)"]
["0311-10","S","Sargento bombeiro militar"]
["0211-10","S","Sargento da policia militar"]
["7721-15","S","Secador de madeira"]
["2523-15","S","Secretária trilíngüe"]
["2523-05","S","Secretária(o) executiva(o)"]
["2523-10","S","Secretário  bilíngüe"]
["1112-20","S","Secretário - executivo"]
["2152-15","S","Segundo oficial de máquinas da marinha mercante"]
["0203-10","S","Segundo tenente de polícia militar"]
["5192-10","S","Selecionador de material reciclável"]
["7683-25","S","Seleiro"]
["1111-05","S","Senador"]
["5166-10","S","Sepultador"]
["6134-20","S","Sericultor"]
["6322-05","S","Seringueiro"]
["7731-15","S","Serrador de bordas no desdobramento de madeira"]
["7731-20","S","Serrador de madeira"]
["7731-25","S","Serrador de madeira (serra circular múltipla)"]
["7731-30","S","Serrador de madeira (serra de fita múltipla)"]
["7244-40","S","Serralheiro"]
["7170-20","S","Servente de obras"]
["6233-25","S","Sexador"]
["7821-45","S","Sinaleiro (ponte-rolante)"]
["5153-25","S","Sócioeducador"]
["2511-20","S","Sociólogo"]
["5151-35","S","Socorrista (exceto médicos e enfermeiros)"]
["0312-10","S","Soldado bombeiro militar"]
["0212-10","S","Soldado da polícia militar"]
["7243-15","S","Soldador"]
["7243-20","S","Soldador a  oxigás"]
["9911-20","S","Soldador aluminotérmico em conservação de trilhos"]
["7243-25","S","Soldador elétrico"]
["7113-15","S","Sondador (poços de petróleo e gás)"]
["7113-20","S","Sondador de poços (exceto de petróleo e gás)"]
["3741-50","S","Sonoplasta"]
["8212-55","S","Soprador de convertedor"]
["7521-15","S","Soprador de vidro"]
["2422-40","S","Subprocurador de justiça militar"]
["2422-45","S","Subprocurador-geral da república"]
["2422-50","S","Subprocurador-geral do trabalho"]
["0311-05","S","Subtenente bombeiro militar"]
["0211-05","S","Subtenente da policia militar"]
["2152-20","S","Superintendente técnico no transporte aquaviário"]
["7604-05","S","Supervisor  (indústria de calçados e artefatos de couro)"]
["4101-05","S","Supervisor administrativo"]
["3425-40","S","Supervisor da administração de aeroportos"]
["6301-05","S","Supervisor da aqüicultura"]
["6301-10","S","Supervisor da área florestal"]
["7605-05","S","Supervisor da confecção de artefatos de tecidos, couros e afins"]
["8401-10","S","Supervisor da indústria de bebidas"]
["8401-15","S","Supervisor da indústria de fumo"]
["7502-05","S","Supervisor da indústria de minerais não metálicos (exceto os derivados de petróleo e carvão)"]
["9102-05","S","Supervisor da manutenção e reparação de veículos leves"]
["9102-10","S","Supervisor da manutenção e reparação de veículos pesados"]
["7401-05","S","Supervisor da mecânica de precisão"]
["7606-05","S","Supervisor das artes gráficas  (indústria editorial e gráfica)"]
["4102-05","S","Supervisor de almoxarifado"]
["5101-15","S","Supervisor de andar"]
["7101-05","S","Supervisor de apoio operacional na mineração"]
["5103-05",{"$f":"LEFT(C2179,1)","v":"S"},"Supervisor de bombeiros"]
["4201-05","S","Supervisor de caixas e bilheteiros (exceto caixa de banco)"]
["4102-10","S","Supervisor de câmbio"]
["3423-15","S","Supervisor de carga e descarga"]
["4201-10","S","Supervisor de cobrança"]
["4201-15","S","Supervisor de coletadores de apostas e de jogos"]
["3542-10","S","Supervisor de compras"]
["4102-15","S","Supervisor de contas a pagar"]
["7201-60","S","Supervisor de controle de tratamento térmico"]
["4102-20","S","Supervisor de controle patrimonial"]
["4102-25","S","Supervisor de crédito e cobrança"]
["7602-05","S","Supervisor de curtimento"]
["4121-20","S","Supervisor de digitação e operação"]
["7801-05","S","Supervisor de embalagem e etiquetagem"]
["3425-45","S","Supervisor de empresa aérea em aeroportos"]
["2394-30","S","Supervisor de ensino"]
["4201-20","S","Supervisor de entrevistadores e recenseadores"]
["6201-05","S","Supervisor de exploração agrícola"]
["6201-10","S","Supervisor de exploração agropecuária"]
["6201-15","S","Supervisor de exploração pecuária"]
["7101-10","S","Supervisor de extração de sal"]
["7401-10","S","Supervisor de fabricação de instrumentos musicais"]
["8202-05","S","Supervisor de fabricação de produtos cerâmicos, porcelanatos e afins"]
["8202-10","S","Supervisor de fabricação de produtos de vidro"]
["7501-05","S","Supervisor de joalheria"]
["5102-05","S","Supervisor de lavanderia"]
["4102-40","S","Supervisor de logística"]
["9101-10","S","Supervisor de manutenção de aparelhos térmicos, de climatização e de refrigeração"]
["9101-15","S","Supervisor de manutenção de bombas, motores, compressores e equipamentos de transmissão"]
["9101-20","S","Supervisor de manutenção de máquinas gráficas"]
["9101-25","S","Supervisor de manutenção de máquinas industriais têxteis"]
["9101-30","S","Supervisor de manutenção de máquinas operatrizes e de usinagem"]
["9109-10","S","Supervisor de manutenção de vias férreas"]
["9501-05","S","Supervisor de manutenção elétrica de alta tensão industrial"]
["9503-05","S","Supervisor de manutenção eletromecânica"]
["8601-05","S","Supervisor de manutenção eletromecânica (utilidades)"]
["9501-10","S","Supervisor de manutenção eletromecânica industrial, comercial e predial"]
["7301-05","S","Supervisor de montagem e instalação eletroeletrônica"]
["8601-10","S","Supervisor de operação de fluidos (distribuição, captação, tratamento de água, gases, vapor)"]
["8601-15","S","Supervisor de operação elétrica (geração, transmissão e distribuição de energia elétrica)"]
["3732-25","S","Supervisor de operações (mídias audiovisuais)"]
["3426-10","S","Supervisor de operações portuárias"]
["4102-30","S","Supervisor de orçamento"]
["7101-15","S","Supervisor de perfuração e desmonte"]
["8401-05","S","Supervisor de produção da indústria alimentícia"]
["7101-20","S","Supervisor de produção na mineração"]
["4201-25","S","Supervisor de recepcionistas"]
["9109-05","S","Supervisor de reparos linhas férreas"]
["4201-30","S","Supervisor de telefonistas"]
["4201-35","S","Supervisor de telemarketing e atendimento"]
["4102-35","S","Supervisor de tesouraria"]
["7101-25","S","Supervisor de transporte na mineração"]
["5101-05","S","Supervisor de transportes"]
["7102-20","S","Supervisor de usina de concreto"]
["5201-10","S","Supervisor de vendas comercial"]
["5201-05","S","Supervisor de vendas de serviços"]
["5103-10","S","Supervisor de vigilantes"]
["3732-30","S","Supervisor técnico (mídias audiovisuais)"]
["3732-20","S","Supervisor técnico operacional de sistemas de televisão e produtoras de vídeo"]
["7522-35","S","Surfassagista"]
["5136-15","S","Sushiman"]
["2413-35","T","Tabelião de notas"]
["2413-40","T","Tabelião de protestos"]
["5111-15","T","Taifeiro (exceto militares)"]
["7711-20",{"$f":"LEFT(C2243,1)","v":"T"},"Tanoeiro"]
["7652-40","T","Tapeceiro de autos"]
["7165-35","T","Taqueiro"]
["3515-10","T","Taquígrafo"]
["3281-10","T","Taxidermista"]
["7613-03","T","Tecelão (redes)"]
["7613-06","T","Tecelão (rendas e bordados)"]
["7613-09","T","Tecelão (tear automático)"]
["7613-12","T","Tecelão (tear jacquard)"]
["7681-05","T","Tecelão (tear manual)"]
["7613-15","T","Tecelão (tear mecânico de maquineta)"]
["7613-18","T","Tecelão (tear mecânico de xadrez)"]
["7613-21","T","Tecelão (tear mecânico liso)"]
["7613-24","T","Tecelão (tear mecânico, exceto jacquard)"]
["7613-30","T","Tecelão de malhas (máquina circular)"]
["7613-33","T","Tecelão de malhas (máquina retilínea)"]
["7613-27","T","Tecelão de malhas, a  máquina"]
["7613-39","T","Tecelão de meias (máquina circular)"]
["7613-42","T","Tecelão de meias (máquina retilínea)"]
["7613-36","T","Tecelão de meias, a  máquina"]
["7681-10","T","Tecelão de tapetes, a  mão"]
["7613-45","T","Tecelão de tapetes, a  máquina"]
["3211-05","T","Técnico agrícola"]
["3211-10","T","Técnico agropecuário"]
["2541-10","T","Técnico da receita federal"]
["3147-05","T","Técnico de acabamento em siderurgia"]
["3147-10","T","Técnico de aciaria em siderurgia"]
["3252-05","T","Técnico de alimentos"]
["3012-05","T","Técnico de apoio à bioengenharia"]
["3172-10","T","Técnico de apoio ao usuário de informática (helpdesk)"]
["3951-05","T","Técnico de apoio em pesquisa e desenvolvimento (exceto agropecuário e florestal)"]
["3951-10","T","Técnico de apoio em pesquisa e desenvolvimento agropecuário florestal"]
["3111-10","T","Técnico de celulose e papel"]
["3133-05","T","Técnico de comunicação de dados"]
["3511-05","T","Técnico de contabilidade"]
["3115-05","T","Técnico de controle de meio ambiente"]
["2241-25","T","Técnico de desporto individual e coletivo (exceto futebol)"]
["3222-05","T","Técnico de enfermagem"]
["3222-45","T","Técnico de enfermagem da estratégia de saúde da família"]
["3222-10","T","Técnico de enfermagem de terapia intensiva"]
["3222-15","T","Técnico de enfermagem do trabalho"]
["3222-20","T","Técnico de enfermagem psiquiátrica"]
["3122-05","T","Técnico de estradas"]
["3147-15","T","Técnico de fundição em siderurgia"]
["3912-10","T","Técnico de garantia da qualidade"]
["3226-05","T","Técnico de imobilização ortopédica"]
["3011-10","T","Técnico de laboratório de análises físico-químicas (materiais de construção)"]
["2241-30","T","Técnico de laboratório e fiscalização desportiva"]
["3011-05","T","Técnico de laboratório industrial"]
["3147-20","T","Técnico de laminação em siderurgia"]
["3144-05","T","Técnico de manutenção de sistemas e instrumentos"]
["3131-20","T","Técnico de manutenção elétrica"]
["3131-25","T","Técnico de manutenção elétrica de máquina"]
["3132-05","T","Técnico de manutenção eletrônica"]
["3132-10","T","Técnico de manutenção eletrônica (circuitos de máquinas com comando numérico)"]
["3911-35","T","Técnico de matéria-prima e material"]
["3115-10","T","Técnico de meteorologia"]
["3163-05","T","Técnico de mineração"]
["3163-10","T","Técnico de mineração (óleo e petróleo)"]
["3121-05","T","Técnico de obras civis"]
["8131-30","T","Técnico de operação (química, petroquímica e afins)"]
["3532-05","T","Técnico de operações e serviços bancários - câmbio"]
["3532-10","T","Técnico de operações e serviços bancários - crédito imobiliário"]
["3532-15","T","Técnico de operações e serviços bancários - crédito rural"]
["3532-20",{"$f":"LEFT(C2307,1)","v":"T"},"Técnico de operações e serviços bancários - leasing"]
["3532-25","T","Técnico de operações e serviços bancários - renda fixa e variável"]
["3225-05","T","Técnico de ortopedia"]
["3912-20","T","Técnico de painel de controle"]
["3911-25","T","Técnico de planejamento de produção"]
["3911-30","T","Técnico de planejamento e programação da manutenção"]
["3163-25","T","Técnico de produção em refino de petróleo"]
["3133-10","T","Técnico de rede (telecomunicações)"]
["3147-25","T","Técnico de redução na siderurgia (primeira fusão)"]
["3147-30","T","Técnico de refratário em siderurgia"]
["3517-35","T","Técnico de resseguros"]
["3122-10","T","Técnico de saneamento"]
["3517-40","T","Técnico de seguros"]
["3731-30","T","Técnico de sistemas audiovisuais"]
["3133-15","T","Técnico de telecomunicações (telefonia)"]
["3133-20","T","Técnico de transmissão (telecomunicações)"]
["2544-15","T","Técnico de tributos estadual"]
["2544-20","T","Técnico de tributos municipal"]
["3115-15","T","Técnico de utilidade (produção e distribuição de vapor, gases, óleos, combustíveis, energia)"]
["3541-35","T","Técnico de vendas"]
["3192-05","T","Técnico do mobiliário"]
["3131-30","T","Técnico eletricista"]
["3132-15","T","Técnico eletrônico"]
["3221-05","T","Técnico em acupuntura"]
["3513-05","T","Técnico em administração"]
["3513-10","T","Técnico em administração de comércio exterior"]
["3123-05","T","Técnico em agrimensura"]
["3541-40","T","Técnico em atendimento e vendas"]
["3143-05","T","Técnico em automobilística"]
["3711-10","T","Técnico em biblioteconomia"]
["3253-05","T","Técnico em biotecnologia"]
["3201-05","T","Técnico em bioterismo"]
["3114-05","T","Técnico em borracha"]
["3191-05","T","Técnico em calçados e artefatos de couro"]
["3146-10","T","Técnico em caldeiraria"]
["3134-05","T","Técnico em calibração"]
["3213-10","T","Técnico em carcinicultura"]
["3191-10","T","Técnico em confecções do vestuário"]
["3111-15","T","Técnico em curtimento"]
["3524-20","T","Técnico em direitos autorais"]
["3003-05","T","Técnico em eletromecânica"]
["3241-30","T","Técnico em espirometria"]
["3146-15","T","Técnico em estruturas metálicas"]
["3251-15","T","Técnico em farmácia"]
["3135-05","T","Técnico em fotônica"]
["3123-10","T","Técnico em geodésia e cartografia"]
["3161-05","T","Técnico em geofísica"]
["3161-10","T","Técnico em geologia"]
["3161-15","T","Técnico em geoquímica"]
["3161-20","T","Técnico em geotecnia"]
["3741-05","T","Técnico em gravação de áudio"]
["3242-20","T","Técnico em hemoterapia"]
["3123-15","T","Técnico em hidrografia"]
["3516-10","T","Técnico em higiene ocupacional"]
["3201-10","T","Técnico em histologia"]
["3253-10","T","Técnico em imunobiológicos"]
["3741-10","T","Técnico em instalação de equipamentos de áudio"]
["3134-10","T","Técnico em instrumentação"]
["3251-10","T","Técnico em laboratório de farmácia"]
["3212-05","T","Técnico em madeira"]
["9151-15","T","Técnico em manutenção de balanças"]
["3132-20","T","Técnico em manutenção de equipamentos de informática"]
["9153-05","T","Técnico em manutenção de equipamentos e instrumentos médico-hospitalares"]
["9151-10","T","Técnico em manutenção de hidrômetros"]
["9151-05",{"$f":"LEFT(C2371,1)","v":"T"},"Técnico em manutenção de instrumentos de medição e precisão"]
["3144-10","T","Técnico em manutenção de máquinas"]
["3741-15","T","Técnico em masterização de áudio"]
["3113-05","T","Técnico em materiais, produtos cerâmicos e vidros"]
["3141-05","T","Técnico em mecânica de precisão"]
["3001-05","T","Técnico em mecatrônica - automação da manufatura"]
["3001-10","T","Técnico em mecatrônica - robótica"]
["3241-05","T","Técnico em métodos eletrográficos em encefalografia"]
["3241-10","T","Técnico em métodos gráficos em cardiologia"]
["3213-15","T","Técnico em mitilicultura"]
["3741-30","T","Técnico em mixagem de áudio"]
["3712-10","T","Técnico em museologia"]
["3252-10","T","Técnico em nutrição e dietética"]
["3223-05","T","Técnico em óptica e optometria"]
["3242-05","T","Técnico em patologia clínica"]
["3231-05","T","Técnico em pecuária"]
["3163-20","T","Técnico em pesquisa mineral"]
["3112-05","T","Técnico em petroquímica"]
["3213-05","T","Técnico em piscicultura"]
["3163-30","T","Técnico em planejamento de lavra de minas"]
["3114-10","T","Técnico em plástico"]
["3163-15","T","Técnico em processamento mineral (exceto petróleo)"]
["3713-05","T","Técnico em programação visual"]
["3221-15","T","Técnico em quiropraxia"]
["3241-15","T","Técnico em radiologia e imagenologia"]
["3213-20","T","Técnico em ranicultura"]
["3224-05","T","Técnico em saúde bucal"]
["3224-25","T","Técnico em saúde bucal da estratégia de saúde da família"]
["3515-05","T","Técnico em secretariado"]
["3516-05","T","Técnico em segurança do trabalho"]
["3412-45","T","Técnico em sinais navais"]
["3146-20","T","Técnico em soldagem"]
["3741-25","T","Técnico em sonorização"]
["3115-20","T","Técnico em tratamento de efluentes"]
["3548-05","T","Técnico em turismo"]
["3212-10","T","Técnico florestal"]
["3713-10","T","Técnico gráfico"]
["3141-10","T","Técnico mecânico"]
["3143-10","T","Técnico mecânico (aeronaves)"]
["3141-15","T","Técnico mecânico (calefação, ventilação e refrigeração)"]
["3143-15","T","Técnico mecânico (embarcações)"]
["3141-20","T","Técnico mecânico (máquinas)"]
["3141-25","T","Técnico mecânico (motores)"]
["3142-05","T","Técnico mecânico na fabricação de ferramentas"]
["3142-10","T","Técnico mecânico na manutenção de ferramentas"]
["3912-30","T","Técnico operacional de serviços de correios"]
["3111-05","T","Técnico químico"]
["3011-15","T","Técnico químico de petróleo"]
["3116-05","T","Técnico têxtil"]
["3116-10","T","Técnico têxtil (tratamentos químicos)"]
["3116-15","T","Técnico têxtil de fiação"]
["3116-20","T","Técnico têxtil de malharia"]
["3116-25","T","Técnico têxtil de tecelagem"]
["3412-40","T","Técnicos em manobras em equipamentos de convés"]
["2222-15","T","Tecnólogo em alimentos"]
["2021-20","T","Tecnólogo em automação industrial"]
["2142-80","T","Tecnólogo em construção civil"]
["2143-60","T","Tecnólogo em eletricidade"]
["2143-65","T","Tecnólogo em eletrônica"]
["2144-35","T","Tecnólogo em fabricação mecânica"]
["2711-10","T","Tecnólogo em gastronomia"]
["1421-20","T","Tecnólogo em gestão administrativo- financeira"]
["1425-35","T","Tecnólogo em gestão da tecnologia da informação"]
["1312-15","T","Tecnólogo em gestão hospitalar"]
["3421-25",{"$f":"LEFT(C2435,1)","v":"T"},"Tecnólogo em logística de transporte"]
["2021-15","T","Tecnólogo em mecatrônica"]
["2140-10","T","Tecnólogo em meio ambiente"]
["2146-15","T","Tecnólogo em metalurgia"]
["2147-45","T","Tecnólogo em petróleo e gás"]
["2132-15","T","Tecnólogo em processos químicos"]
["2621-35","T","Tecnólogo em produção audiovisual"]
["2621-30","T","Tecnólogo em produção fonográfica"]
["2149-30","T","Tecnólogo em produção industrial"]
["2145-35","T","Tecnólogo em produção sulcroalcooleira"]
["3241-20","T","Tecnólogo em radiologia"]
["2147-50","T","Tecnólogo em rochas ornamentais"]
["2523-20","T","Tecnólogo em secretariado escolar"]
["2149-35","T","Tecnólogo em segurança do trabalho"]
["1427-10","T","Tecnólogo em sistemas biomédicos"]
["3146-25","T","Tecnólogo em soldagem"]
["2143-70","T","Tecnólogo em telecomunicações"]
["3241-25","T","Tecnólogo oftálmico"]
["4222-05","T","Telefonista"]
["4222-10","T","Teleoperador"]
["7162-05","T","Telhador (telhas de argila e materiais similares)"]
["7162-10","T","Telhador (telhas de cimento-amianto)"]
["7162-15","T","Telhador (telhas metálicas)"]
["7162-20","T","Telhador (telhas plásticas)"]
["7231-25","T","Temperador de metais e de compósitos"]
["8232-55","T","Temperador de vidro"]
["0303-05","T","Tenente do corpo de bombeiros militar"]
["0301-15","T","Tenente-coronel bombeiro militar"]
["0201-10","T","Tenente-coronel da polícia militar"]
["3412-35","T","Ténico em sinalização nautica"]
["2631-15","T","Teólogo"]
["3221-25","T","Terapeuta holístico"]
["2239-05","T","Terapeuta ocupacional"]
["3532-30","T","Tesoureiro de banco"]
["3117-25","T","Tingidor de couros e peles"]
["5163-30","T","Tingidor de roupas"]
["7686-05","T","Tipógrafo"]
["3762-50","T","Titeriteiro"]
["3123-20","T","Topógrafo"]
["7122-25","T","Torneiro (lavra de pedra)"]
["7733-55","T","Torneiro na usinagem convencional de madeira"]
["8416-25","T","Torrador de cacau"]
["8416-10","T","Torrador de café"]
["7113-30","T","Torrista (petróleo)"]
["5193-20","T","Tosador de animais domésticos"]
["6210-05","T","Trabalhador agropecuário em geral"]
["6233-05","T","Trabalhador da avicultura de corte"]
["6233-10","T","Trabalhador da avicultura de postura"]
["6232-05","T","Trabalhador da caprinocultura"]
["6222-05","T","Trabalhador da cultura de algodão"]
["6221-05","T","Trabalhador da cultura de arroz"]
["6226-05","T","Trabalhador da cultura de cacau"]
["6226-10","T","Trabalhador da cultura de café"]
["6221-10","T","Trabalhador da cultura de cana-de-açúcar"]
["6226-15","T","Trabalhador da cultura de erva-mate"]
["6228-05","T","Trabalhador da cultura de especiarias"]
["6226-20","T","Trabalhador da cultura de fumo"]
["6226-25","T","Trabalhador da cultura de guaraná"]
["6221-15","T","Trabalhador da cultura de milho e sorgo"]
["6228-10","T","Trabalhador da cultura de plantas aromáticas e medicinais"]
["6222-10","T","Trabalhador da cultura de sisal"]
["6221-20","T","Trabalhador da cultura de trigo, aveia, cevada e triticale"]
["6222-15","T","Trabalhador da cultura do rami"]
["6233-20","T","Trabalhador da cunicultura"]
["8233-20",{"$f":"LEFT(C2499,1)","v":"T"},"Trabalhador da elaboração de pré-fabricados (cimento amianto)"]
["8233-25","T","Trabalhador da elaboração de pré-fabricados (concreto armado)"]
["6324-05","T","Trabalhador da exploração de açaí"]
["6323-05","T","Trabalhador da exploração de andiroba"]
["6325-05","T","Trabalhador da exploração de árvores e arbustos produtores de substâncias aromát., Medic. E tóxicas"]
["6323-10","T","Trabalhador da exploração de babaçu"]
["6323-15","T","Trabalhador da exploração de bacaba"]
["6323-20","T","Trabalhador da exploração de buriti"]
["6323-25","T","Trabalhador da exploração de carnaúba"]
["6324-10","T","Trabalhador da exploração de castanha"]
["6325-10","T","Trabalhador da exploração de cipós produtores de substâncias aromáticas, medicinais e tóxicas"]
["6323-30","T","Trabalhador da exploração de coco-da-praia"]
["6323-35","T","Trabalhador da exploração de copaíba"]
["6322-10","T","Trabalhador da exploração de espécies produtoras de gomas não elásticas"]
["6325-15","T","Trabalhador da exploração de madeiras tanantes"]
["6323-40","T","Trabalhador da exploração de malva (pãina)"]
["6323-45","T","Trabalhador da exploração de murumuru"]
["6323-50","T","Trabalhador da exploração de oiticica"]
["6323-55","T","Trabalhador da exploração de ouricuri"]
["6323-60","T","Trabalhador da exploração de pequi"]
["6323-65","T","Trabalhador da exploração de piaçava"]
["6324-15","T","Trabalhador da exploração de pinhão"]
["6324-20","T","Trabalhador da exploração de pupunha"]
["6325-20","T","Trabalhador da exploração de raízes produtoras de substâncias aromáticas, medicinais e tóxicas"]
["6322-15","T","Trabalhador da exploração de resinas"]
["6323-70","T","Trabalhador da exploração de tucum"]
["6325-25","T","Trabalhador da extração de substâncias aromáticas, medicinais e tóxicas, em geral"]
["8121-10","T","Trabalhador da fabricação de munição e explosivos"]
["8233-30","T","Trabalhador da fabricação de pedras artificiais"]
["8111-25","T","Trabalhador da fabricação de resinas e vernizes"]
["5143-25","T","Trabalhador da manutenção de edificações"]
["6232-10","T","Trabalhador da ovinocultura"]
["6231-05","T","Trabalhador da pecuária (asininos e muares)"]
["6231-10","T","Trabalhador da pecuária (bovinos corte)"]
["6231-15","T","Trabalhador da pecuária (bovinos leite)"]
["6231-20","T","Trabalhador da pecuária (bubalinos)"]
["6231-25","T","Trabalhador da pecuária (eqüinos)"]
["6232-15","T","Trabalhador da suinocultura"]
["6321-25","T","Trabalhador de extração florestal, em geral"]
["8414-76","T","Trabalhador de fabricação de margarina"]
["8483-25","T","Trabalhador de fabricação de sorvete"]
["8111-30","T","Trabalhador de fabricação de tintas"]
["8417-20","T","Trabalhador de fabricação de vinhos"]
["6230-15","T","Trabalhador de pecuária polivalente"]
["8414-84","T","Trabalhador de preparação de pescados (limpeza)"]
["5142-25","T","Trabalhador de serviços de limpeza e conservação de áreas públicas"]
["8415-05","T","Trabalhador de tratamento do leite e fabricação de laticínios e afins"]
["7654-05","T","Trabalhador do acabamento de artefatos de tecidos e couros"]
["8486-05","T","Trabalhador do beneficiamento de fumo"]
["6234-05","T","Trabalhador em criatórios de animais produtores de veneno"]
["6234-10","T","Trabalhador na apicultura"]
["6227-05","T","Trabalhador na cultura de amendoim"]
["6227-10","T","Trabalhador na cultura de canola"]
["6227-15","T","Trabalhador na cultura de coco-da-baía"]
["6227-20","T","Trabalhador na cultura de dendê"]
["6227-25","T","Trabalhador na cultura de mamona"]
["6227-30","T","Trabalhador na cultura de soja"]
["6227-35","T","Trabalhador na cultura do girassol"]
["6227-40","T","Trabalhador na cultura do linho"]
["8232-65","T","Trabalhador na fabricação de produtos abrasivos"]
["6234-15","T","Trabalhador na minhocultura"]
["6223-05","T","Trabalhador na olericultura (frutos e sementes)"]
["6223-10","T","Trabalhador na olericultura (legumes)"]
["6223-15","T","Trabalhador na olericultura (raízes, bulbos e tubérculos)"]
["6223-20",{"$f":"LEFT(C2563,1)","v":"T"},"Trabalhador na olericultura (talos, folhas e flores)"]
["6430-05","T","Trabalhador na operação de sistema de irrigação localizada (microaspersão e gotejamento)"]
["6430-10","T","Trabalhador na operação de sistema de irrigação por aspersão (pivô central)"]
["6430-15","T","Trabalhador na operação de sistemas convencionais de irrigação por aspersão"]
["6430-20","T","Trabalhador na operação de sistemas de irrigação e aspersão (alto propelido)"]
["6430-25","T","Trabalhador na operação de sistemas de irrigação por superfície e drenagem"]
["6220-15","T","Trabalhador na produção de mudas e sementes"]
["6234-20","T","Trabalhador na sericicultura"]
["6225-05","T","Trabalhador no cultivo de árvores frutíferas"]
["6225-10","T","Trabalhador no cultivo de espécies frutíferas rasteiras"]
["6224-05","T","Trabalhador no cultivo de flores e folhagens de corte"]
["6224-10","T","Trabalhador no cultivo de flores em vaso"]
["6224-15","T","Trabalhador no cultivo de forrações"]
["6224-20","T","Trabalhador no cultivo de mudas"]
["6224-25","T","Trabalhador no cultivo de plantas ornamentais"]
["6225-15","T","Trabalhador no cultivo de trepadeiras frutíferas"]
["7640-05","T","Trabalhador polivalente da confecção de calçados"]
["7620-05","T","Trabalhador polivalente do curtimento de couros e peles"]
["7832-35","T","Trabalhador portuário de capatazia"]
["6220-20","T","Trabalhador volante da agricultura"]
["7122-30","T","Traçador de pedras"]
["2614-20","T","Tradutor"]
["7246-10","T","Trançador de cabos de aço"]
["7521-20","T","Transformador de tubos de vidro"]
["3762-55","T","Trapezista"]
["6230-20","T","Tratador de animais"]
["6410-15","T","Tratorista agrícola"]
["7511-30","T","Trefilador (joalheria e ourivesaria)"]
["8117-75","T","Trefilador de borracha"]
["7224-15","T","Trefilador de metais, à máquina"]
["2241-35","T","Treinador profissional de futebol"]
["7681-15","T","Tricoteiro, à mão"]
["7828-10","T","Tropeiro"]
["1225-20","T","Turismólogo"]
["2141-30","U","Urbanista"]
["7623-45","V","Vaqueador de couros e peles"]
["5142-15","V","Varredor de rua"]
["7764-30","V","Vassoureiro"]
["5242-15","V","Vendedor  permissionário"]
["5243-05","V","Vendedor ambulante"]
["5211-10","V","Vendedor de comércio varejista"]
["5211-05","V","Vendedor em comércio atacadista"]
["5241-05","V","Vendedor em domicílio"]
["3541-45","V","Vendedor pracista"]
["1111-20","V","Vereador"]
["7170-25","V","Vibradorista"]
["1112-40","V","Vice-governador de estado"]
["1112-45","V","Vice-governador do distrito federal"]
["1112-55","V","Vice-prefeito"]
["1112-10","V","Vice-presidente da república"]
["7163-05","V","Vidraceiro"]
["7163-10","V","Vidraceiro (edificações)"]
["7163-15","V","Vidraceiro (vitrais)"]
["5174-20","V","Vigia"]
["5173-20","V","Vigia florestal"]
["5173-25","V","Vigia portuário"]
["5173-30","V","Vigilante"]
["8417-40","V","Vinagreiro"]
["5151-20","V","Visitador sanitário"]
["2151-50","V","Vistoriador naval"]
["3751-15","V","Visual merchandiser"]
["6320-15","V","Viveirista florestal"]
["8417-45","X","Xaropeiro"]
["5141-20","Z","Zelador de edifício"]
["2233-10",{"$f":"LEFT(C2627,1)","v":"Z"},"Zootecnista"]